{"text_format":"3","workbook":"xlsx","n_sheets":11,"sheets":["Home","STEP1","STEP2","STEP3","STEP4","Tables","Results","Product risks","Resources","CountryRisks2","FairtradeReport"],"not_rendered":{"images":15,"macros":1,"defined_names":23},"read":"whole","date_system":"1900"}

{"sheet":"Home","index":0,"n_rows":160,"n_cols":5,"rows_kept":160,"merged":[[6,10,6,11],[10,1,10,3],[12,1,12,19],[14,1,14,19],[17,1,17,19],[19,1,19,19],[21,1,21,3],[25,4,25,12],[26,4,26,12],[27,4,27,12],[28,4,28,12],[30,4,30,12],[39,1,39,12],[40,1,40,10],[73,1,73,12],[77,1,77,12],[82,1,82,12],[89,1,89,12],[91,1,91,12],[93,1,93,12],[95,1,95,12],[104,1,104,12],[109,1,109,3],[127,1,127,3],[130,1,130,16],[133,1,133,3],[138,1,138,8],[141,1,141,8],[144,1,144,8],[147,1,147,8],[148,1,148,8],[151,1,151,8],[155,1,155,9],[158,1,158,12],[159,1,159,12]]}
[]
[]
[]
[]
[]
[]
[null,{"$f":"+YEAR(TODAY())","v":2023}]
[]
[]
[]
[null,"INTRODUCTION"]
[]
[null,"Fairtrade developed this tool to support Fairtrade-certified Hired Labour Organisations (HLO) to undertake a Human Rights and Environmental Risk Assessment. The aim is to identify the human rights and environmental risks and challenges that are most serious and common - or \"salient\" - related to your business. This helps you to focus your sustainability work on these salient issues. "]
[]
[null,"The tool is compatible with Fairtrade's HREDD guide for plantations and other organisations with hired labour, which you can find here:"]
[null,"https://files.fairtrade.net/publications/Fairtrade_HREDD-guide-for-plantations_EN.pdf"]
[]
[null,"Steps 2 and 4 should not be undertaken by a single individual alone; rather, it is crucial to engage a diverse group of individuals, including your staff, worker representatives, individuals of different genders, age groups, and backgrounds. This way, you your assessment benefits from diverse insights and experiences, and becomes more robust. As you gain proficiency in HREDD risk assessment, you should strive to expand the information sources you utilise."]
[]
[null,"Please note that you need to enable macros, for the tool to work. Read more below."]
[]
[null,"TOOL OVERVIEW"]
[]
[null,"The HLO Risk Assessment tool contains the following steps: "]
[]
[null,null,"STEP 1",null,"Common risks in the country and product. Shows what external data and research see as salient risks in the selected product and country. Data is retrieved from the Fairtrade Risk Map:  https://riskmap.fairtrade.net/"]
[null,null,"STEP 2",null,"Risks of your organisation. Provides a set of questions that help you to assess how serious and common each risk is for your organisation."]
[null,null,"STEP 3",null,"Salient risk selection. Displays an overview of the results of steps 1 and 2 and asks you to select three salient risks for your organisation. "]
[null,null,"STEP 4",null,"Further assessment. Provides another set of questions that help you further analyse your salient risks. You will also be able to add your own personalised sub-risks."]
[]
[{"$nulls":4},"Risk assessment output. Provides an overview of the Risk Assessment's results, which can be downloaded."]
[]
[null,"The tool also has a section called RESOURCES that contains Questions & Answers, and further data useful to operate the tool."]
[]
[null,"How to navigate the tool"]
[]
[]
[null,"Please use the mouse to move through the different steps in the tool. Do not delete fields that contain formulas."]
[]
[null,"In the event of accidental deletion, you can attempt to undo it by pressing Ctrl+C. If the issue persists or if you encounter any difficulties, we recommend downloading the tool again from:"]
[null,"http://www.fairtrade.net/standard/hl"]
{"$rows_empty":14}
[null,"How to recognise and display pre-set list"]
[]
[null,"All folding lists have a green background and black borders."]
{"$rows_empty":13}
[null,"How to deal with possible Excel messages?"]
[]
[null,"When you use this tool, your computer can show you some of the below messages. If you dowloaded this tool from Fairtrade webpage or received it by a trusted Fairtrade contact, please proceed to enable editing and content. We use Macros in this tool with the only purpose to automate processes.\n"]
[]
[null,"For any concerns on data privacy see Fairtrade disclaimers on privacy further below in the Home tab."]
[]
[]
[]
[]
[]
[]
[null,"If a message other than the ones above appears, for example: \"A potentially dangerous macro has been blocked\" please follow the instructions provided by Microsoft to enable content."]
[]
[]
[]
[]
[null,"What to do if the tool does not work properly"]
[]
[null,"If you encounter issues with the Fairtrade Excel tool, please follow these steps:"]
[]
[null,"1. Check your Excel version: First and foremost, ensure that you have a version of Microsoft Excel from 2010 or later installed on your computer. The tool may not function properly with older versions of Excel."]
[]
[null,"2. Download a fresh copy: If you are experiencing persistent problems, we recommend downloading a new copy of the tool from the official website (www.fairtrade.net/standard/hl). This ensures that you have the most up-to-date version compatible with Excel 2010 and later, free from any potential corruption or errors."]
[]
[null,"3. Reach out for support: If the issues persist even after downloading the compatible version, it is advisable to contact the Fairtrade support team for further assistance. You can reach us by emailing bizhumanrights@fairtrade.fi. Our dedicated team will promptly address your concerns and provide guidance on resolving the problem."]
[]
[]
[null,"Highlights: "]
[]
["u","Progress in the risk assessment can be saved at any stage and resumed later by opening the Excel file."]
[]
["u","It is recommended to repeat the risks assessment every three years."]
[]
["u","Please note that we regularly update the risk data. Therefore, it is important to always use the most recent version of the tool. You can download the latest version from the following link: www.fairtrade.net/standard/hl."]
[]
["u","For further guidance see RESOURCES."]
[]
[]
[null,"RISKS SCOPE"]
[]
[null,"This tool covers all internationally recognised human rights, grouping them into 13 issues:"]
[]
[null,"1.","Living income, living wage"]
[null,"2.","Working conditions"]
[null,"3.","Health"]
[null,"4.","Freedom of association and collective bargaining"]
[null,"5.","Forced labour"]
[null,"6.","Child protection and child rights"]
[null,"7.","Gender rights"]
[null,"8.","Non-discrimination"]
[null,"9.","Self-determination"]
[null,"10.","Climate resilience"]
[null,"11.","Water and biodiversity"]
[null,"12.","Freedom of speech, thought and public participation"]
[null,"13.","Privacy"]
[]
[null,"DISCLAIMERS"]
[]
["u","Privacy"]
[null,"Any data inputted by the user in this Risk Assessment Tool and the results obtained are private and belong to the user. Fairtrade will not obtain this information and will not be informed of the use of this tool."]
[]
[]
[null,"TOOL METADATA"]
[]
[null,"The following section contains technical information about the tool."]
[]
["u","Document Name:"]
[null,"Fairtrade Risk Assessment Tool for HLOs"]
[]
["u","Version:"]
[null,"v1"]
[]
["u","Date of first publication:"]
[null,"2023-05-26"]
[]
["u","Documents linked to the tool:"]
[null,"A Guide for plantations and other organisations with hired labour: Implementing Human Rights and Environmental Due Diligence (HREDD). Why and how to align your policies and processes with HREDD?"]
[null,"Fairtrade Risk Map"]
[]
["u","Type of organisation:"]
[null,"Hired Labour Organisation (HLO)"]
[]
[]
["u","Developed by:"]
[null,"Development International e.V. and Fairtrade's HREDD Centre of Excellence"]
[]
[]
["u","For any inquiries or more information about the tool and Fairtrade please visit www.fairtrade.net/standard/hl"]
[null,"or reach to bizhumanrights@fairtrade.fi"]

{"sheet":"STEP1","index":1,"n_rows":61,"n_cols":17,"rows_kept":61,"merged":[[6,10,6,11],[28,2,28,14],[30,2,30,14],[33,3,33,12],[37,3,37,10],[37,11,37,12],[39,3,39,10],[39,11,39,12],[41,3,41,10],[41,11,41,12],[44,3,44,12],[46,9,46,10],[46,11,46,12],[46,13,46,14],[46,16,46,17],[47,1,47,8],[47,9,47,10],[47,11,47,12],[47,13,47,14],[47,16,47,17],[48,2,48,8],[48,9,48,10],[48,11,48,12],[48,13,48,14],[48,16,48,17],[49,2,49,8],[49,9,49,10],[49,11,49,12],[49,13,49,14],[49,16,49,17],[50,2,50,8],[50,9,50,10],[50,11,50,12],[50,13,50,14],[50,16,50,17],[51,2,51,8],[51,9,51,10],[51,11,51,12],[51,13,51,14],[51,16,51,17],[52,2,52,8],[52,9,52,10],[52,11,52,12],[52,13,52,14],[52,16,52,17],[53,2,53,8],[53,9,53,10],[53,11,53,12],[53,13,53,14],[53,16,53,17],[54,2,54,8],[54,9,54,10],[54,11,54,12],[54,13,54,14],[54,16,54,17],[55,2,55,8],[55,9,55,10],[55,11,55,12],[55,13,55,14],[55,16,55,17],[56,2,56,8],[56,9,56,10],[56,11,56,12],[56,13,56,14],[56,16,56,17],[57,2,57,8],[57,9,57,10],[57,11,57,12],[57,13,57,14],[57,16,57,17],[58,2,58,8],[58,9,58,10],[58,11,58,12],[58,13,58,14],[58,16,58,17],[59,2,59,8],[59,9,59,10],[59,11,59,12],[59,13,59,14],[59,16,59,17],[60,2,60,8],[60,9,60,10],[60,11,60,12],[60,13,60,14],[60,16,60,17],[63,1,63,10]]}
{"$rows_empty":10}
[null,null,"STEP 1","Country and product risks"]
[]
[null,null,"Part A asks you to select your biggest and second biggest Fartrade-certified product as well as your country."]
[]
[null,null,"Part B shows what external data and research find to be the salient human rights and environmental risks in your product and country. "]
[null,null,"Colours and numbers indicate the level of risk for each issue:"]
[]
[null,null,1,"Extreme Risk - Very High Priority/Saliency"]
[]
[null,null,2,"High Risk - High Saliency"]
[]
[null,null,3,"Medium Risk - Medium Saliency"]
[]
[null,null,4,"Low Risk - Low Saliency"]
[]
[]
[null,null,"Advice"]
[]
[null,"u","Remember that buyers and other stakeholders are typically most concerned about the areas marked with red (1) or orange (2). It often makes sense to include these in your salient risks (in step 3)."]
[]
[null,"u","For more information about related research and statistics, please see Fairtrade Risk Map: https://riskmap.fairtrade.net/"]
[]
[]
[null,null,"A","Selection"]
[]
[null,null,"Select:"]
[]
[null,null,"1.","Your biggest Fartrade-certified product:"]
[]
[null,null,"2.","Your second biggest Fairtrade-certified product (only if you have one):",{"$nulls":7},"No second product"]
[]
[null,null,"3.","Your country of operation:"]
[]
[]
[null,null,"B","Output"]
[]
[null,null,"The output for the selected country and products is:",{"$nulls":6},"Your biggest Fairtrade certified product",null,"Your second biggest Fairtrade-certified product",null,"Your country",null,"Final score*","Final score"]
[null,"Identified human rights and environmental priority areas for Fairtrade HLOs",{"$nulls":7},{"$f":"+IF(L38=\"\",\"Choose and option in A\",L38)","v":"Choose and option in A"},null,{"$f":"+IF(L40=\"\",\"Choose and option in A\",L40)","v":"No second product"},null,{"$f":"+IF(L42=\"\",\"Choose and option in A\",L42)","v":"Choose and option in A"},null,"All","All"]
[null,null,"1. Living income, living wage",{"$nulls":6},{"$f":"INDEX('Product risks'!$B$3:$S$15,MATCH(STEP1!C49,'Product risks'!$A$3:$A$15,0),MATCH(STEP1!$J$48,'Product risks'!$B$2:$S$2,0))","v":{"$error":"#N/A"}},null,{"$f":"INDEX('Product risks'!$B$3:$S$15,MATCH(STEP1!C49,'Product risks'!$A$3:$A$15,0),MATCH(STEP1!$L$48,'Product risks'!$B$2:$S$2,0))","v":"No data"},null,{"$f":"+VLOOKUP($N$48,CountryRisks2!A:CL,12,0)","v":{"$error":"#N/A"}},null,{"$f":"+ROUND(AVERAGE(AVERAGE(J49:M49),N49),0)","v":{"$error":"#N/A"}},{"$f":"+IF(P49<=1,\"Extreme Risk\",IF(P49=2,\"High Risk\",IF(P49=3,\"Medium Risk\",\"Low Risk\")))","v":{"$error":"#N/A"}}]
[null,null,"2. Working conditions",{"$nulls":6},{"$f":"INDEX('Product risks'!$B$3:$S$15,MATCH(STEP1!C50,'Product risks'!$A$3:$A$15,0),MATCH(STEP1!$J$48,'Product risks'!$B$2:$S$2,0))","v":{"$error":"#N/A"}},null,{"$f":"INDEX('Product risks'!$B$3:$S$15,MATCH(STEP1!C50,'Product risks'!$A$3:$A$15,0),MATCH(STEP1!$L$48,'Product risks'!$B$2:$S$2,0))","v":"No data"},null,{"$f":"VLOOKUP($N$48,CountryRisks2!A:CL,19,0)","v":{"$error":"#N/A"}},null,{"$error":"#N/A"},{"$f":"+IF(P50<=1,\"Extreme Risk\",IF(P50=2,\"High Risk\",IF(P50=3,\"Medium Risk\",\"Low Risk\")))","v":{"$error":"#N/A"}}]
[null,null,"3. Health",{"$nulls":6},{"$f":"INDEX('Product risks'!$B$3:$S$15,MATCH(STEP1!C51,'Product risks'!$A$3:$A$15,0),MATCH(STEP1!$J$48,'Product risks'!$B$2:$S$2,0))","v":{"$error":"#N/A"}},null,{"$f":"INDEX('Product risks'!$B$3:$S$15,MATCH(STEP1!C51,'Product risks'!$A$3:$A$15,0),MATCH(STEP1!$L$48,'Product risks'!$B$2:$S$2,0))","v":"No data"},null,{"$f":"+VLOOKUP($N$48,CountryRisks2!A:CL,12,0)","v":{"$error":"#N/A"}},null,{"$error":"#N/A"},{"$error":"#N/A"}]
[null,null,"4. Freedom of association and collective bargaining",{"$nulls":6},{"$f":"INDEX('Product risks'!$B$3:$S$15,MATCH(STEP1!C52,'Product risks'!$A$3:$A$15,0),MATCH(STEP1!$J$48,'Product risks'!$B$2:$S$2,0))","v":{"$error":"#N/A"}},null,{"$f":"INDEX('Product risks'!$B$3:$S$15,MATCH(STEP1!C52,'Product risks'!$A$3:$A$15,0),MATCH(STEP1!$L$48,'Product risks'!$B$2:$S$2,0))","v":"No data"},null,{"$f":"VLOOKUP($N$48,CountryRisks2!A:CL,19,0)","v":{"$error":"#N/A"}},null,{"$error":"#N/A"},{"$error":"#N/A"}]
[null,null,"5. Forced labour",{"$nulls":6},{"$f":"INDEX('Product risks'!$B$3:$S$15,MATCH(STEP1!C53,'Product risks'!$A$3:$A$15,0),MATCH(STEP1!$J$48,'Product risks'!$B$2:$S$2,0))","v":{"$error":"#N/A"}},null,{"$f":"INDEX('Product risks'!$B$3:$S$15,MATCH(STEP1!C53,'Product risks'!$A$3:$A$15,0),MATCH(STEP1!$L$48,'Product risks'!$B$2:$S$2,0))","v":"No data"},null,{"$f":"VLOOKUP($N$48,CountryRisks2!A:CL,46,0)","v":{"$error":"#N/A"}},null,{"$error":"#N/A"},{"$error":"#N/A"}]
[null,null,"6. Child protection and child rights",{"$nulls":6},{"$f":"INDEX('Product risks'!$B$3:$S$15,MATCH(STEP1!C54,'Product risks'!$A$3:$A$15,0),MATCH(STEP1!$J$48,'Product risks'!$B$2:$S$2,0))","v":{"$error":"#N/A"}},null,{"$f":"INDEX('Product risks'!$B$3:$S$15,MATCH(STEP1!C54,'Product risks'!$A$3:$A$15,0),MATCH(STEP1!$L$48,'Product risks'!$B$2:$S$2,0))","v":"No data"},null,{"$f":"VLOOKUP($N$48,CountryRisks2!A:CL,39,0)","v":{"$error":"#N/A"}},null,{"$error":"#N/A"},{"$error":"#N/A"}]
[null,null,"7. Gender rights",{"$nulls":6},{"$f":"INDEX('Product risks'!$B$3:$S$15,MATCH(STEP1!C55,'Product risks'!$A$3:$A$15,0),MATCH(STEP1!$J$48,'Product risks'!$B$2:$S$2,0))","v":{"$error":"#N/A"}},null,{"$f":"INDEX('Product risks'!$B$3:$S$15,MATCH(STEP1!C55,'Product risks'!$A$3:$A$15,0),MATCH(STEP1!$L$48,'Product risks'!$B$2:$S$2,0))","v":"No data"},null,{"$f":"VLOOKUP($N$48,CountryRisks2!A:CL,26,0)","v":{"$error":"#N/A"}},null,{"$error":"#N/A"},{"$error":"#N/A"}]
[null,null,"8. Non-discrimination",{"$nulls":6},{"$f":"INDEX('Product risks'!$B$3:$S$15,MATCH(STEP1!C56,'Product risks'!$A$3:$A$15,0),MATCH(STEP1!$J$48,'Product risks'!$B$2:$S$2,0))","v":{"$error":"#N/A"}},null,{"$f":"INDEX('Product risks'!$B$3:$S$15,MATCH(STEP1!C56,'Product risks'!$A$3:$A$15,0),MATCH(STEP1!$L$48,'Product risks'!$B$2:$S$2,0))","v":"No data"},null,{"$f":"VLOOKUP($N$48,CountryRisks2!A:CL,56,0)","v":{"$error":"#N/A"}},null,{"$error":"#N/A"},{"$error":"#N/A"}]
[null,null,"9. Self-determination",{"$nulls":6},{"$f":"INDEX('Product risks'!$B$3:$S$15,MATCH(STEP1!C57,'Product risks'!$A$3:$A$15,0),MATCH(STEP1!$J$48,'Product risks'!$B$2:$S$2,0))","v":{"$error":"#N/A"}},null,{"$f":"INDEX('Product risks'!$B$3:$S$15,MATCH(STEP1!C57,'Product risks'!$A$3:$A$15,0),MATCH(STEP1!$L$48,'Product risks'!$B$2:$S$2,0))","v":"No data"},null,{"$f":"VLOOKUP($N$48,CountryRisks2!A:CL,63,0)","v":{"$error":"#N/A"}},null,{"$error":"#N/A"},{"$error":"#N/A"}]
[null,null,"10. Climate emissions and deforestation",{"$nulls":6},{"$f":"INDEX('Product risks'!$B$3:$S$15,MATCH(STEP1!C58,'Product risks'!$A$3:$A$15,0),MATCH(STEP1!$J$48,'Product risks'!$B$2:$S$2,0))","v":{"$error":"#N/A"}},null,{"$f":"INDEX('Product risks'!$B$3:$S$15,MATCH(STEP1!C58,'Product risks'!$A$3:$A$15,0),MATCH(STEP1!$L$48,'Product risks'!$B$2:$S$2,0))","v":"No data"},null,{"$f":"VLOOKUP($N$48,CountryRisks2!A:CL,80,0)","v":{"$error":"#N/A"}},null,{"$error":"#N/A"},{"$f":"+IF(P58<=1,\"Extreme Risk\",IF(P58=2,\"High Risk\",IF(P58=3,\"Medium Risk\",\"Low Risk\")))","v":{"$error":"#N/A"}}]
[null,null,"11. Water and biodiversity",{"$nulls":6},{"$f":"INDEX('Product risks'!$B$3:$S$15,MATCH(STEP1!C59,'Product risks'!$A$3:$A$15,0),MATCH(STEP1!$J$48,'Product risks'!$B$2:$S$2,0))","v":{"$error":"#N/A"}},null,{"$f":"INDEX('Product risks'!$B$3:$S$15,MATCH(STEP1!C59,'Product risks'!$A$3:$A$15,0),MATCH(STEP1!$L$48,'Product risks'!$B$2:$S$2,0))","v":"No data"},null,{"$f":"VLOOKUP($N$48,CountryRisks2!A:CL,90,0)","v":{"$error":"#N/A"}},null,{"$error":"#N/A"},{"$error":"#N/A"}]
[null,null,"12. Freedom of speech, thought and public participation",{"$nulls":6},{"$f":"INDEX('Product risks'!$B$3:$S$15,MATCH(STEP1!C60,'Product risks'!$A$3:$A$15,0),MATCH(STEP1!$J$48,'Product risks'!$B$2:$S$2,0))","v":{"$error":"#N/A"}},null,{"$f":"INDEX('Product risks'!$B$3:$S$15,MATCH(STEP1!C60,'Product risks'!$A$3:$A$15,0),MATCH(STEP1!$L$48,'Product risks'!$B$2:$S$2,0))","v":"No data"},null,{"$f":"VLOOKUP($N$48,CountryRisks2!A:CL,70,0)","v":{"$error":"#N/A"}},null,{"$error":"#N/A"},{"$error":"#N/A"}]
[null,null,"13. Privacy",{"$nulls":6},{"$f":"INDEX('Product risks'!$B$3:$S$15,MATCH(STEP1!C61,'Product risks'!$A$3:$A$15,0),MATCH(STEP1!$J$48,'Product risks'!$B$2:$S$2,0))","v":{"$error":"#N/A"}},null,{"$f":"INDEX('Product risks'!$B$3:$S$15,MATCH(STEP1!C61,'Product risks'!$A$3:$A$15,0),MATCH(STEP1!$L$48,'Product risks'!$B$2:$S$2,0))","v":"No data"},null,{"$f":"VLOOKUP($N$48,CountryRisks2!A:CL,70,0)","v":{"$error":"#N/A"}},null,{"$error":"#N/A"},{"$error":"#N/A"}]

{"sheet":"STEP2","index":2,"n_rows":107,"n_cols":22,"rows_kept":107,"merged":[[12,1,12,5],[16,2,16,5],[30,2,30,5],[32,2,32,5],[33,2,33,5],[34,2,34,5],[47,1,47,5],[49,1,49,5],[50,1,50,3],[57,1,57,5],[65,4,65,5],[65,6,65,7],[65,8,65,9],[66,4,66,5],[66,6,66,7],[66,8,66,9]]}
{"$rows_empty":10}
[null,"STEP 2","Risks of your organisation"]
[]
[null,"The table below suggests some key issues – or \"mapping indicators\" – related to each human rights and environmental issue. To assess the risks you have to answer the following questions for each indicator:"]
[]
[null,"1-","How common or likely is this problem or risk ?"]
[]
[null,null,"To answer this question you can consider whether the problem and its impacts on human rights and the environment have occurred in the past, are occurring in the present, or are likely to occur in the future."]
[]
[null,null,"The following table contains levels and criteria you should use to answer the question:"]
[]
[null,null,"Levels","Criteria"]
[null,null,"Very high","Very likely to occur. The issue or problem has occurred consistently from the past until the present."]
[null,null,"High","Likely to occur. The issue or problem has happened in the past and also occurred very often at the present."]
[null,null,"Medium","Not very likely to occur. The issue or problem has happened in the past and also occurred sometimes at the present."]
[null,null,"Low","Less likely to occur than otherwise. The issue or problem rarely occurs in the farm or within the community."]
[null,null,"Very low","Very low likelihood of occurring. The issue or problem almost never occur in the farm or within the community"]
[]
[]
[null,"2-","How serious is this problem or risk?"]
[]
[null,null,"To answer this question you have to focus on the consequences or impacts of the risks. You can consider the following characteristics of the consequences of the risks:"]
[]
[null,null,"Scale: how grave is the impact? Example: does the risk or problem have consequences on the right to live or the health and safety of individual workers?"]
[null,null,"Scope: how many people are or will be affected? Example: does the risk or problem adversely impact the livelihoods of entire communities or the freedom of association of your entire workforce or only some workers?"]
[null,null,"Remediability: Can the situation of the impacted person(s) be restored to an equivalent situation prior the impact? How difficult would it be to do so? Example: If, as a result of the use of chemicals in your farm/organisation, a community's water source is contaminated, could you reverse the impact and restore the water source to conditions similar to those before the contamination? How long do you estimate this would take?"]
[]
[null,null,"The following table contains levels and criteria you should use to answer the question:"]
[]
[null,null,"Levels","Criteria"]
[null,null,"Very serious","If not attended, the impact is likely to: \n*result in significant impact to health and safety (e.g., physical disability or fatality death); \n*to affect all your stakeholders; or\n*be impossible, or take more than 8 years to restore."]
[null,null,"Serious","If not attended, the impact can probably: \n*result in major effects on health (e.g., injury that needs a significant rehabilitation); \n*affect a large part of your stakeholders; or \n*take between 5 and 8 years to restore."]
[null,null,"Moderate","If not attended, the impact is likely to:\n*result in moderate impact to health and safety, though not significant;\n*affect some of your stakeholders; or \n*take between 3 and 5 years to restore."]
[null,null,"Minor","If not attended to the impact is likely to: \n*result in slight impact to health and safety (e.g., minor injury or illness); \n*affect a few of your stakeholders; or \n*take between 1 and 3 years to restore."]
[null,null,"Minimum","The impact is likely to: \n*result in minimum harm or not harm to health and safety (e.g., first aid case); \n*it does not cause negative impact to any of your stakeholders; \n*or it takes less than a year to restore. "]
[]
[null,"Advice"]
[]
["u","HREDD risk assessment is about risks and harms to people and the environment – not risks to your business"]
[]
["u","Be honest. Your inputs to this tool are the property of your organisation. This tool is not connected to the internet and nobody else will see your answers."]
["u","Information that you can utilise includes: "]
[null,"-","audit results"]
[null,"-","findings of your own internal audits"]
[null,"-","studies by external experts about your organisation, town or industry"]
[null,"-","media reports"]
[null,"-","interviews with workers or other stakeholders and experts"]
[]
["u","It is highly recommended that the below table is completed by at least three people or groups of people, who have different backgrounds and expertise: your staff, worker representatives, men, women, and young and old people."]
[]
[null,null,"Indicators"]
[]
[null,"Are you planning to include responses from more than one stakeholder?"]
[]
[]
[]
[{"$nulls":4},"STAKEHOLDER 1",null,"STAKEHOLDER 2",null,"STAKEHOLDER 3"]
[{"$nulls":3},"Complete with name / type of stakeholder -->"]
[null,"N","Human Rights and Environmental priority areas","Actions or facts that could lead to Human Rights and Environmental violations","How common or likely is this problem or risk?","How serious is this problem or risk?","How common or likely is this problem or risk?*","How serious is this problem or risk?*","How common or likely is this problem or risk?**","How serious is this problem or risk?**","ST1L","ST2L","ST3L","AVERAGE L","ST1I","ST2I","ST3I","AVERAGE I","AVERAGE L RISK","AVERAGE I RISK","Name","Risk level of the human rights and environmental area"]
[null,1,"Living income, living wage","Worker's wages are too low to fulfil their families’ basic needs and housing expenses (food, basic but healthy housing, clothing, basic health care, schooling for children, and small savings for emergencies).","Please select option","Please select option",{"$nulls":4},{"$f":"+IFERROR(VLOOKUP(E69,Common[],2,0),\"\")","v":""},{"$f":"+IFERROR(VLOOKUP(G69,Common[],2,0),\"\")","v":""},{"$f":"+IFERROR(VLOOKUP(I69,Common[],2,0),\"\")","v":""},{"$f":"+IFERROR(ROUNDUP(AVERAGE(STEP2TABLE[[#This Row],[ST1L]],STEP2TABLE[[#This Row],[ST2L]],STEP2TABLE[[#This Row],[ST3L]]),0),\"\")","v":""},{"$f":"+IFERROR(VLOOKUP(F69,Serious[],2,0),\"\")","v":""},{"$f":"+IFERROR(VLOOKUP(H69,Serious[],2,0),\"\")","v":""},{"$f":"+IFERROR(VLOOKUP(J69,Serious[],2,0),\"\")","v":""},{"$f":"+IFERROR(ROUNDUP(AVERAGE(STEP2TABLE[[#This Row],[ST1I]],STEP2TABLE[[#This Row],[ST2I]],STEP2TABLE[[#This Row],[ST3I]]),0),\"\")","v":""},{"$f":"+ROUNDUP(AVERAGEIF(STEP2TABLE[Human Rights and Environmental priority areas],STEP2TABLE[[#This Row],[Human Rights and Environmental priority areas]],STEP2TABLE[AVERAGE L]),0)","v":{"$error":"#DIV/0!"}},{"$f":"+ROUNDUP(AVERAGEIF(STEP2TABLE[Human Rights and Environmental priority areas],STEP2TABLE[[#This Row],[Human Rights and Environmental priority areas]],STEP2TABLE[AVERAGE I]),0)","v":{"$error":"#DIV/0!"}},"1. Living income, living wage",{"$f":"INDEX(Tables!$O$165:$S$169,MATCH(STEP2!S69,Tables!$N$165:$N$169,0),MATCH(STEP2!T69,Tables!$O$164:$S$164,0))","v":{"$error":"#DIV/0!"}}]
[null,{"$f":"+B69+1","v":2},"Living income, living wage","Workers’ wages are below official minimum wages, regional average or levels agreed in Collective Bargaining Agreements for agricultural production, whichever is highest.","Please select option","Please select option",{"$nulls":4},{"$f":"+IFERROR(VLOOKUP(E70,Common[],2,0),\"\")","v":""},{"$f":"+IFERROR(VLOOKUP(G70,Common[],2,0),\"\")","v":""},{"$f":"+IFERROR(VLOOKUP(I70,Common[],2,0),\"\")","v":""},{"$f":"+IFERROR(ROUNDUP(AVERAGE(STEP2TABLE[[#This Row],[ST1L]],STEP2TABLE[[#This Row],[ST2L]],STEP2TABLE[[#This Row],[ST3L]]),0),\"\")","v":""},{"$f":"+IFERROR(VLOOKUP(F70,Serious[],2,0),\"\")","v":""},{"$f":"+IFERROR(VLOOKUP(H70,Serious[],2,0),\"\")","v":""},{"$f":"+IFERROR(VLOOKUP(J70,Serious[],2,0),\"\")","v":""},{"$f":"+IFERROR(ROUNDUP(AVERAGE(STEP2TABLE[[#This Row],[ST1I]],STEP2TABLE[[#This Row],[ST2I]],STEP2TABLE[[#This Row],[ST3I]]),0),\"\")","v":""},{"$f":"+ROUNDUP(AVERAGEIF(STEP2TABLE[Human Rights and Environmental priority areas],STEP2TABLE[[#This Row],[Human Rights and Environmental priority areas]],STEP2TABLE[AVERAGE L]),0)","v":{"$error":"#DIV/0!"}},{"$f":"+ROUNDUP(AVERAGEIF(STEP2TABLE[Human Rights and Environmental priority areas],STEP2TABLE[[#This Row],[Human Rights and Environmental priority areas]],STEP2TABLE[AVERAGE I]),0)","v":{"$error":"#DIV/0!"}},"1. Living income, living wage",{"$f":"INDEX(Tables!$O$165:$S$169,MATCH(STEP2!S70,Tables!$N$165:$N$169,0),MATCH(STEP2!T70,Tables!$O$164:$S$164,0))","v":{"$error":"#DIV/0!"}}]
[null,{"$f":"+B70+1","v":3},"Living income, living wage","The national minimum wage, regional average or levels agreed in Collective Bargaining Agreements for agricultural production, whichever is highest, do not cover workers' and workers' families' food and housing expenses and all other basic needs.","Please select option","Please select option",{"$nulls":4},{"$f":"+IFERROR(VLOOKUP(E71,Common[],2,0),\"\")","v":""},{"$f":"+IFERROR(VLOOKUP(G71,Common[],2,0),\"\")","v":""},{"$f":"+IFERROR(VLOOKUP(I71,Common[],2,0),\"\")","v":""},{"$f":"+IFERROR(ROUNDUP(AVERAGE(STEP2TABLE[[#This Row],[ST1L]],STEP2TABLE[[#This Row],[ST2L]],STEP2TABLE[[#This Row],[ST3L]]),0),\"\")","v":""},{"$f":"+IFERROR(VLOOKUP(F71,Serious[],2,0),\"\")","v":""},{"$f":"+IFERROR(VLOOKUP(H71,Serious[],2,0),\"\")","v":""},{"$f":"+IFERROR(VLOOKUP(J71,Serious[],2,0),\"\")","v":""},{"$f":"+IFERROR(ROUNDUP(AVERAGE(STEP2TABLE[[#This Row],[ST1I]],STEP2TABLE[[#This Row],[ST2I]],STEP2TABLE[[#This Row],[ST3I]]),0),\"\")","v":""},{"$f":"+ROUNDUP(AVERAGEIF(STEP2TABLE[Human Rights and Environmental priority areas],STEP2TABLE[[#This Row],[Human Rights and Environmental priority areas]],STEP2TABLE[AVERAGE L]),0)","v":{"$error":"#DIV/0!"}},{"$f":"+ROUNDUP(AVERAGEIF(STEP2TABLE[Human Rights and Environmental priority areas],STEP2TABLE[[#This Row],[Human Rights and Environmental priority areas]],STEP2TABLE[AVERAGE I]),0)","v":{"$error":"#DIV/0!"}},"1. Living income, living wage",{"$f":"INDEX(Tables!$O$165:$S$169,MATCH(STEP2!S71,Tables!$N$165:$N$169,0),MATCH(STEP2!T71,Tables!$O$164:$S$164,0))","v":{"$error":"#DIV/0!"}}]
[null,4,"Working conditions","Workers don't have access to clean drinking water and toilets during their workdays.","Please select option","Please select option",{"$nulls":4},{"$f":"+IFERROR(VLOOKUP(E72,Common[],2,0),\"\")","v":""},{"$f":"+IFERROR(VLOOKUP(G72,Common[],2,0),\"\")","v":""},{"$f":"+IFERROR(VLOOKUP(I72,Common[],2,0),\"\")","v":""},{"$f":"+IFERROR(ROUNDUP(AVERAGE(STEP2TABLE[[#This Row],[ST1L]],STEP2TABLE[[#This Row],[ST2L]],STEP2TABLE[[#This Row],[ST3L]]),0),\"\")","v":""},{"$f":"+IFERROR(VLOOKUP(F72,Serious[],2,0),\"\")","v":""},{"$f":"+IFERROR(VLOOKUP(H72,Serious[],2,0),\"\")","v":""},{"$f":"+IFERROR(VLOOKUP(J72,Serious[],2,0),\"\")","v":""},{"$f":"+IFERROR(ROUNDUP(AVERAGE(STEP2TABLE[[#This Row],[ST1I]],STEP2TABLE[[#This Row],[ST2I]],STEP2TABLE[[#This Row],[ST3I]]),0),\"\")","v":""},{"$f":"+ROUNDUP(AVERAGEIF(STEP2TABLE[Human Rights and Environmental priority areas],STEP2TABLE[[#This Row],[Human Rights and Environmental priority areas]],STEP2TABLE[AVERAGE L]),0)","v":{"$error":"#DIV/0!"}},{"$f":"+ROUNDUP(AVERAGEIF(STEP2TABLE[Human Rights and Environmental priority areas],STEP2TABLE[[#This Row],[Human Rights and Environmental priority areas]],STEP2TABLE[AVERAGE I]),0)","v":{"$error":"#DIV/0!"}},"2. Working conditions",{"$f":"INDEX(Tables!$O$165:$S$169,MATCH(STEP2!S72,Tables!$N$165:$N$169,0),MATCH(STEP2!T72,Tables!$O$164:$S$164,0))","v":{"$error":"#DIV/0!"}}]
[null,5,"Working conditions","Workers have no written contracts of employment.","Please select option","Please select option",{"$nulls":4},{"$f":"+IFERROR(VLOOKUP(E73,Common[],2,0),\"\")","v":""},{"$f":"+IFERROR(VLOOKUP(G73,Common[],2,0),\"\")","v":""},{"$f":"+IFERROR(VLOOKUP(I73,Common[],2,0),\"\")","v":""},{"$f":"+IFERROR(ROUNDUP(AVERAGE(STEP2TABLE[[#This Row],[ST1L]],STEP2TABLE[[#This Row],[ST2L]],STEP2TABLE[[#This Row],[ST3L]]),0),\"\")","v":""},{"$f":"+IFERROR(VLOOKUP(F73,Serious[],2,0),\"\")","v":""},{"$f":"+IFERROR(VLOOKUP(H73,Serious[],2,0),\"\")","v":""},{"$f":"+IFERROR(VLOOKUP(J73,Serious[],2,0),\"\")","v":""},{"$f":"+IFERROR(ROUNDUP(AVERAGE(STEP2TABLE[[#This Row],[ST1I]],STEP2TABLE[[#This Row],[ST2I]],STEP2TABLE[[#This Row],[ST3I]]),0),\"\")","v":""},{"$f":"+ROUNDUP(AVERAGEIF(STEP2TABLE[Human Rights and Environmental priority areas],STEP2TABLE[[#This Row],[Human Rights and Environmental priority areas]],STEP2TABLE[AVERAGE L]),0)","v":{"$error":"#DIV/0!"}},{"$f":"+ROUNDUP(AVERAGEIF(STEP2TABLE[Human Rights and Environmental priority areas],STEP2TABLE[[#This Row],[Human Rights and Environmental priority areas]],STEP2TABLE[AVERAGE I]),0)","v":{"$error":"#DIV/0!"}},"2. Working conditions",{"$f":"INDEX(Tables!$O$165:$S$169,MATCH(STEP2!S73,Tables!$N$165:$N$169,0),MATCH(STEP2!T73,Tables!$O$164:$S$164,0))","v":{"$error":"#DIV/0!"}}]
[null,6,"Working conditions","Workers have no access or are not provided personal protective equipment (PPE) suitable to operate (e.g., tools, suitable clothes).","Please select option","Please select option",{"$nulls":4},{"$f":"+IFERROR(VLOOKUP(E74,Common[],2,0),\"\")","v":""},{"$f":"+IFERROR(VLOOKUP(G74,Common[],2,0),\"\")","v":""},{"$f":"+IFERROR(VLOOKUP(I74,Common[],2,0),\"\")","v":""},{"$f":"+IFERROR(ROUNDUP(AVERAGE(STEP2TABLE[[#This Row],[ST1L]],STEP2TABLE[[#This Row],[ST2L]],STEP2TABLE[[#This Row],[ST3L]]),0),\"\")","v":""},{"$f":"+IFERROR(VLOOKUP(F74,Serious[],2,0),\"\")","v":""},{"$f":"+IFERROR(VLOOKUP(H74,Serious[],2,0),\"\")","v":""},{"$f":"+IFERROR(VLOOKUP(J74,Serious[],2,0),\"\")","v":""},{"$f":"+IFERROR(ROUNDUP(AVERAGE(STEP2TABLE[[#This Row],[ST1I]],STEP2TABLE[[#This Row],[ST2I]],STEP2TABLE[[#This Row],[ST3I]]),0),\"\")","v":""},{"$f":"+ROUNDUP(AVERAGEIF(STEP2TABLE[Human Rights and Environmental priority areas],STEP2TABLE[[#This Row],[Human Rights and Environmental priority areas]],STEP2TABLE[AVERAGE L]),0)","v":{"$error":"#DIV/0!"}},{"$f":"+ROUNDUP(AVERAGEIF(STEP2TABLE[Human Rights and Environmental priority areas],STEP2TABLE[[#This Row],[Human Rights and Environmental priority areas]],STEP2TABLE[AVERAGE I]),0)","v":{"$error":"#DIV/0!"}},"2. Working conditions",{"$f":"INDEX(Tables!$O$165:$S$169,MATCH(STEP2!S74,Tables!$N$165:$N$169,0),MATCH(STEP2!T74,Tables!$O$164:$S$164,0))","v":{"$error":"#DIV/0!"}}]
[null,7,"Working conditions","Workers are not paid regularly, on time, and at least monthly.","Please select option","Please select option",{"$nulls":4},{"$f":"+IFERROR(VLOOKUP(E75,Common[],2,0),\"\")","v":""},{"$f":"+IFERROR(VLOOKUP(G75,Common[],2,0),\"\")","v":""},{"$f":"+IFERROR(VLOOKUP(I75,Common[],2,0),\"\")","v":""},{"$f":"+IFERROR(ROUNDUP(AVERAGE(STEP2TABLE[[#This Row],[ST1L]],STEP2TABLE[[#This Row],[ST2L]],STEP2TABLE[[#This Row],[ST3L]]),0),\"\")","v":""},{"$f":"+IFERROR(VLOOKUP(F75,Serious[],2,0),\"\")","v":""},{"$f":"+IFERROR(VLOOKUP(H75,Serious[],2,0),\"\")","v":""},{"$f":"+IFERROR(VLOOKUP(J75,Serious[],2,0),\"\")","v":""},{"$f":"+IFERROR(ROUNDUP(AVERAGE(STEP2TABLE[[#This Row],[ST1I]],STEP2TABLE[[#This Row],[ST2I]],STEP2TABLE[[#This Row],[ST3I]]),0),\"\")","v":""},{"$f":"+ROUNDUP(AVERAGEIF(STEP2TABLE[Human Rights and Environmental priority areas],STEP2TABLE[[#This Row],[Human Rights and Environmental priority areas]],STEP2TABLE[AVERAGE L]),0)","v":{"$error":"#DIV/0!"}},{"$f":"+ROUNDUP(AVERAGEIF(STEP2TABLE[Human Rights and Environmental priority areas],STEP2TABLE[[#This Row],[Human Rights and Environmental priority areas]],STEP2TABLE[AVERAGE I]),0)","v":{"$error":"#DIV/0!"}},"2. Working conditions",{"$f":"INDEX(Tables!$O$165:$S$169,MATCH(STEP2!S75,Tables!$N$165:$N$169,0),MATCH(STEP2!T75,Tables!$O$164:$S$164,0))","v":{"$error":"#DIV/0!"}}]
[null,8,"Health","Work processes, facilities, tools, or machinery are causing frequent injuries, illness, or other health problems to workers. ","Please select option","Please select option",{"$nulls":4},{"$f":"+IFERROR(VLOOKUP(E76,Common[],2,0),\"\")","v":""},{"$f":"+IFERROR(VLOOKUP(G76,Common[],2,0),\"\")","v":""},{"$f":"+IFERROR(VLOOKUP(I76,Common[],2,0),\"\")","v":""},{"$f":"+IFERROR(ROUNDUP(AVERAGE(STEP2TABLE[[#This Row],[ST1L]],STEP2TABLE[[#This Row],[ST2L]],STEP2TABLE[[#This Row],[ST3L]]),0),\"\")","v":""},{"$f":"+IFERROR(VLOOKUP(F76,Serious[],2,0),\"\")","v":""},{"$f":"+IFERROR(VLOOKUP(H76,Serious[],2,0),\"\")","v":""},{"$f":"+IFERROR(VLOOKUP(J76,Serious[],2,0),\"\")","v":""},{"$f":"+IFERROR(ROUNDUP(AVERAGE(STEP2TABLE[[#This Row],[ST1I]],STEP2TABLE[[#This Row],[ST2I]],STEP2TABLE[[#This Row],[ST3I]]),0),\"\")","v":""},{"$f":"+ROUNDUP(AVERAGEIF(STEP2TABLE[Human Rights and Environmental priority areas],STEP2TABLE[[#This Row],[Human Rights and Environmental priority areas]],STEP2TABLE[AVERAGE L]),0)","v":{"$error":"#DIV/0!"}},{"$f":"+ROUNDUP(AVERAGEIF(STEP2TABLE[Human Rights and Environmental priority areas],STEP2TABLE[[#This Row],[Human Rights and Environmental priority areas]],STEP2TABLE[AVERAGE I]),0)","v":{"$error":"#DIV/0!"}},"3. Health",{"$f":"INDEX(Tables!$O$165:$S$169,MATCH(STEP2!S76,Tables!$N$165:$N$169,0),MATCH(STEP2!T76,Tables!$O$164:$S$164,0))","v":{"$error":"#DIV/0!"}}]
[null,9,"Health","Workers are not sufficiently trained, in particular, those carrying out hazardous positions. ","Please select option","Please select option",{"$nulls":4},{"$f":"+IFERROR(VLOOKUP(E77,Common[],2,0),\"\")","v":""},{"$f":"+IFERROR(VLOOKUP(G77,Common[],2,0),\"\")","v":""},{"$f":"+IFERROR(VLOOKUP(I77,Common[],2,0),\"\")","v":""},{"$f":"+IFERROR(ROUNDUP(AVERAGE(STEP2TABLE[[#This Row],[ST1L]],STEP2TABLE[[#This Row],[ST2L]],STEP2TABLE[[#This Row],[ST3L]]),0),\"\")","v":""},{"$f":"+IFERROR(VLOOKUP(F77,Serious[],2,0),\"\")","v":""},{"$f":"+IFERROR(VLOOKUP(H77,Serious[],2,0),\"\")","v":""},{"$f":"+IFERROR(VLOOKUP(J77,Serious[],2,0),\"\")","v":""},{"$f":"+IFERROR(ROUNDUP(AVERAGE(STEP2TABLE[[#This Row],[ST1I]],STEP2TABLE[[#This Row],[ST2I]],STEP2TABLE[[#This Row],[ST3I]]),0),\"\")","v":""},{"$f":"+ROUNDUP(AVERAGEIF(STEP2TABLE[Human Rights and Environmental priority areas],STEP2TABLE[[#This Row],[Human Rights and Environmental priority areas]],STEP2TABLE[AVERAGE L]),0)","v":{"$error":"#DIV/0!"}},{"$f":"+ROUNDUP(AVERAGEIF(STEP2TABLE[Human Rights and Environmental priority areas],STEP2TABLE[[#This Row],[Human Rights and Environmental priority areas]],STEP2TABLE[AVERAGE I]),0)","v":{"$error":"#DIV/0!"}},"3. Health",{"$f":"INDEX(Tables!$O$165:$S$169,MATCH(STEP2!S77,Tables!$N$165:$N$169,0),MATCH(STEP2!T77,Tables!$O$164:$S$164,0))","v":{"$error":"#DIV/0!"}}]
[null,10,"Health","Farming has polluted local waterways, air or soil, and caused ill-health to some local people.","Please select option","Please select option",{"$nulls":4},{"$f":"+IFERROR(VLOOKUP(E78,Common[],2,0),\"\")","v":""},{"$f":"+IFERROR(VLOOKUP(G78,Common[],2,0),\"\")","v":""},{"$f":"+IFERROR(VLOOKUP(I78,Common[],2,0),\"\")","v":""},{"$f":"+IFERROR(ROUNDUP(AVERAGE(STEP2TABLE[[#This Row],[ST1L]],STEP2TABLE[[#This Row],[ST2L]],STEP2TABLE[[#This Row],[ST3L]]),0),\"\")","v":""},{"$f":"+IFERROR(VLOOKUP(F78,Serious[],2,0),\"\")","v":""},{"$f":"+IFERROR(VLOOKUP(H78,Serious[],2,0),\"\")","v":""},{"$f":"+IFERROR(VLOOKUP(J78,Serious[],2,0),\"\")","v":""},{"$f":"+IFERROR(ROUNDUP(AVERAGE(STEP2TABLE[[#This Row],[ST1I]],STEP2TABLE[[#This Row],[ST2I]],STEP2TABLE[[#This Row],[ST3I]]),0),\"\")","v":""},{"$f":"+ROUNDUP(AVERAGEIF(STEP2TABLE[Human Rights and Environmental priority areas],STEP2TABLE[[#This Row],[Human Rights and Environmental priority areas]],STEP2TABLE[AVERAGE L]),0)","v":{"$error":"#DIV/0!"}},{"$f":"+ROUNDUP(AVERAGEIF(STEP2TABLE[Human Rights and Environmental priority areas],STEP2TABLE[[#This Row],[Human Rights and Environmental priority areas]],STEP2TABLE[AVERAGE I]),0)","v":{"$error":"#DIV/0!"}},"3. Health",{"$f":"INDEX(Tables!$O$165:$S$169,MATCH(STEP2!S78,Tables!$N$165:$N$169,0),MATCH(STEP2!T78,Tables!$O$164:$S$164,0))","v":{"$error":"#DIV/0!"}}]
[null,11,"Freedom of association and collective bargaining","Workers are not organised, either in trade unions or elected workers’ organisations, and there have been no group negotiations on working conditions.","Please select option","Please select option",{"$nulls":4},{"$f":"+IFERROR(VLOOKUP(E79,Common[],2,0),\"\")","v":""},{"$f":"+IFERROR(VLOOKUP(G79,Common[],2,0),\"\")","v":""},{"$f":"+IFERROR(VLOOKUP(I79,Common[],2,0),\"\")","v":""},{"$f":"+IFERROR(ROUNDUP(AVERAGE(STEP2TABLE[[#This Row],[ST1L]],STEP2TABLE[[#This Row],[ST2L]],STEP2TABLE[[#This Row],[ST3L]]),0),\"\")","v":""},{"$f":"+IFERROR(VLOOKUP(F79,Serious[],2,0),\"\")","v":""},{"$f":"+IFERROR(VLOOKUP(H79,Serious[],2,0),\"\")","v":""},{"$f":"+IFERROR(VLOOKUP(J79,Serious[],2,0),\"\")","v":""},{"$f":"+IFERROR(ROUNDUP(AVERAGE(STEP2TABLE[[#This Row],[ST1I]],STEP2TABLE[[#This Row],[ST2I]],STEP2TABLE[[#This Row],[ST3I]]),0),\"\")","v":""},{"$f":"+ROUNDUP(AVERAGEIF(STEP2TABLE[Human Rights and Environmental priority areas],STEP2TABLE[[#This Row],[Human Rights and Environmental priority areas]],STEP2TABLE[AVERAGE L]),0)","v":{"$error":"#DIV/0!"}},{"$f":"+ROUNDUP(AVERAGEIF(STEP2TABLE[Human Rights and Environmental priority areas],STEP2TABLE[[#This Row],[Human Rights and Environmental priority areas]],STEP2TABLE[AVERAGE I]),0)","v":{"$error":"#DIV/0!"}},"4. Freedom of association and collective bargaining",{"$f":"INDEX(Tables!$O$165:$S$169,MATCH(STEP2!S79,Tables!$N$165:$N$169,0),MATCH(STEP2!T79,Tables!$O$164:$S$164,0))","v":{"$error":"#DIV/0!"}}]
[null,12,"Freedom of association and collective bargaining","Workers are discouraged or prevented from joining trade unions (e.g., by not providing time or office space for workers meetings, or preventing unions from meeting with workers).","Please select option","Please select option",{"$nulls":4},{"$f":"+IFERROR(VLOOKUP(E80,Common[],2,0),\"\")","v":""},{"$f":"+IFERROR(VLOOKUP(G80,Common[],2,0),\"\")","v":""},{"$f":"+IFERROR(VLOOKUP(I80,Common[],2,0),\"\")","v":""},{"$f":"+IFERROR(ROUNDUP(AVERAGE(STEP2TABLE[[#This Row],[ST1L]],STEP2TABLE[[#This Row],[ST2L]],STEP2TABLE[[#This Row],[ST3L]]),0),\"\")","v":""},{"$f":"+IFERROR(VLOOKUP(F80,Serious[],2,0),\"\")","v":""},{"$f":"+IFERROR(VLOOKUP(H80,Serious[],2,0),\"\")","v":""},{"$f":"+IFERROR(VLOOKUP(J80,Serious[],2,0),\"\")","v":""},{"$f":"+IFERROR(ROUNDUP(AVERAGE(STEP2TABLE[[#This Row],[ST1I]],STEP2TABLE[[#This Row],[ST2I]],STEP2TABLE[[#This Row],[ST3I]]),0),\"\")","v":""},{"$f":"+ROUNDUP(AVERAGEIF(STEP2TABLE[Human Rights and Environmental priority areas],STEP2TABLE[[#This Row],[Human Rights and Environmental priority areas]],STEP2TABLE[AVERAGE L]),0)","v":{"$error":"#DIV/0!"}},{"$f":"+ROUNDUP(AVERAGEIF(STEP2TABLE[Human Rights and Environmental priority areas],STEP2TABLE[[#This Row],[Human Rights and Environmental priority areas]],STEP2TABLE[AVERAGE I]),0)","v":{"$error":"#DIV/0!"}},"4. Freedom of association and collective bargaining",{"$f":"INDEX(Tables!$O$165:$S$169,MATCH(STEP2!S80,Tables!$N$165:$N$169,0),MATCH(STEP2!T80,Tables!$O$164:$S$164,0))","v":{"$error":"#DIV/0!"}}]
[null,13,"Freedom of association and collective bargaining","There are no workers organisations or trade unions in the region where the organisation operates.","Please select option","Please select option",{"$nulls":4},{"$f":"+IFERROR(VLOOKUP(E81,Common[],2,0),\"\")","v":""},{"$f":"+IFERROR(VLOOKUP(G81,Common[],2,0),\"\")","v":""},{"$f":"+IFERROR(VLOOKUP(I81,Common[],2,0),\"\")","v":""},{"$f":"+IFERROR(ROUNDUP(AVERAGE(STEP2TABLE[[#This Row],[ST1L]],STEP2TABLE[[#This Row],[ST2L]],STEP2TABLE[[#This Row],[ST3L]]),0),\"\")","v":""},{"$f":"+IFERROR(VLOOKUP(F81,Serious[],2,0),\"\")","v":""},{"$f":"+IFERROR(VLOOKUP(H81,Serious[],2,0),\"\")","v":""},{"$f":"+IFERROR(VLOOKUP(J81,Serious[],2,0),\"\")","v":""},{"$f":"+IFERROR(ROUNDUP(AVERAGE(STEP2TABLE[[#This Row],[ST1I]],STEP2TABLE[[#This Row],[ST2I]],STEP2TABLE[[#This Row],[ST3I]]),0),\"\")","v":""},{"$f":"+ROUNDUP(AVERAGEIF(STEP2TABLE[Human Rights and Environmental priority areas],STEP2TABLE[[#This Row],[Human Rights and Environmental priority areas]],STEP2TABLE[AVERAGE L]),0)","v":{"$error":"#DIV/0!"}},{"$f":"+ROUNDUP(AVERAGEIF(STEP2TABLE[Human Rights and Environmental priority areas],STEP2TABLE[[#This Row],[Human Rights and Environmental priority areas]],STEP2TABLE[AVERAGE I]),0)","v":{"$error":"#DIV/0!"}},"4. Freedom of association and collective bargaining",{"$f":"INDEX(Tables!$O$165:$S$169,MATCH(STEP2!S81,Tables!$N$165:$N$169,0),MATCH(STEP2!T81,Tables!$O$164:$S$164,0))","v":{"$error":"#DIV/0!"}}]
[null,14,"Forced labour","Some workers are or have been forced to work e.g. due to a debt to the farmer or recruit agency, or inability to return home.","Please select option","Please select option",{"$nulls":4},{"$f":"+IFERROR(VLOOKUP(E82,Common[],2,0),\"\")","v":""},{"$f":"+IFERROR(VLOOKUP(G82,Common[],2,0),\"\")","v":""},{"$f":"+IFERROR(VLOOKUP(I82,Common[],2,0),\"\")","v":""},{"$f":"+IFERROR(ROUNDUP(AVERAGE(STEP2TABLE[[#This Row],[ST1L]],STEP2TABLE[[#This Row],[ST2L]],STEP2TABLE[[#This Row],[ST3L]]),0),\"\")","v":""},{"$f":"+IFERROR(VLOOKUP(F82,Serious[],2,0),\"\")","v":""},{"$f":"+IFERROR(VLOOKUP(H82,Serious[],2,0),\"\")","v":""},{"$f":"+IFERROR(VLOOKUP(J82,Serious[],2,0),\"\")","v":""},{"$f":"+IFERROR(ROUNDUP(AVERAGE(STEP2TABLE[[#This Row],[ST1I]],STEP2TABLE[[#This Row],[ST2I]],STEP2TABLE[[#This Row],[ST3I]]),0),\"\")","v":""},{"$f":"+ROUNDUP(AVERAGEIF(STEP2TABLE[Human Rights and Environmental priority areas],STEP2TABLE[[#This Row],[Human Rights and Environmental priority areas]],STEP2TABLE[AVERAGE L]),0)","v":{"$error":"#DIV/0!"}},{"$f":"+ROUNDUP(AVERAGEIF(STEP2TABLE[Human Rights and Environmental priority areas],STEP2TABLE[[#This Row],[Human Rights and Environmental priority areas]],STEP2TABLE[AVERAGE I]),0)","v":{"$error":"#DIV/0!"}},"5. Forced labour",{"$f":"INDEX(Tables!$O$165:$S$169,MATCH(STEP2!S82,Tables!$N$165:$N$169,0),MATCH(STEP2!T82,Tables!$O$164:$S$164,0))","v":{"$error":"#DIV/0!"}}]
[null,15,"Forced labour","Some workers are or have been charged with fees for documentation, visa, health checks, transportation, clothing or other requirements as part of their recruitment process.","Please select option","Please select option",{"$nulls":4},{"$f":"+IFERROR(VLOOKUP(E83,Common[],2,0),\"\")","v":""},{"$f":"+IFERROR(VLOOKUP(G83,Common[],2,0),\"\")","v":""},{"$f":"+IFERROR(VLOOKUP(I83,Common[],2,0),\"\")","v":""},{"$f":"+IFERROR(ROUNDUP(AVERAGE(STEP2TABLE[[#This Row],[ST1L]],STEP2TABLE[[#This Row],[ST2L]],STEP2TABLE[[#This Row],[ST3L]]),0),\"\")","v":""},{"$f":"+IFERROR(VLOOKUP(F83,Serious[],2,0),\"\")","v":""},{"$f":"+IFERROR(VLOOKUP(H83,Serious[],2,0),\"\")","v":""},{"$f":"+IFERROR(VLOOKUP(J83,Serious[],2,0),\"\")","v":""},{"$f":"+IFERROR(ROUNDUP(AVERAGE(STEP2TABLE[[#This Row],[ST1I]],STEP2TABLE[[#This Row],[ST2I]],STEP2TABLE[[#This Row],[ST3I]]),0),\"\")","v":""},{"$f":"+ROUNDUP(AVERAGEIF(STEP2TABLE[Human Rights and Environmental priority areas],STEP2TABLE[[#This Row],[Human Rights and Environmental priority areas]],STEP2TABLE[AVERAGE L]),0)","v":{"$error":"#DIV/0!"}},{"$f":"+ROUNDUP(AVERAGEIF(STEP2TABLE[Human Rights and Environmental priority areas],STEP2TABLE[[#This Row],[Human Rights and Environmental priority areas]],STEP2TABLE[AVERAGE I]),0)","v":{"$error":"#DIV/0!"}},"5. Forced labour",{"$f":"INDEX(Tables!$O$165:$S$169,MATCH(STEP2!S83,Tables!$N$165:$N$169,0),MATCH(STEP2!T83,Tables!$O$164:$S$164,0))","v":{"$error":"#DIV/0!"}}]
[null,16,"Forced labour","Workers’ identity documents have been withheld by your organisation, some of your members or members’ farm operators.","Please select option","Please select option",{"$nulls":4},{"$f":"+IFERROR(VLOOKUP(E84,Common[],2,0),\"\")","v":""},{"$f":"+IFERROR(VLOOKUP(G84,Common[],2,0),\"\")","v":""},{"$f":"+IFERROR(VLOOKUP(I84,Common[],2,0),\"\")","v":""},{"$f":"+IFERROR(ROUNDUP(AVERAGE(STEP2TABLE[[#This Row],[ST1L]],STEP2TABLE[[#This Row],[ST2L]],STEP2TABLE[[#This Row],[ST3L]]),0),\"\")","v":""},{"$f":"+IFERROR(VLOOKUP(F84,Serious[],2,0),\"\")","v":""},{"$f":"+IFERROR(VLOOKUP(H84,Serious[],2,0),\"\")","v":""},{"$f":"+IFERROR(VLOOKUP(J84,Serious[],2,0),\"\")","v":""},{"$f":"+IFERROR(ROUNDUP(AVERAGE(STEP2TABLE[[#This Row],[ST1I]],STEP2TABLE[[#This Row],[ST2I]],STEP2TABLE[[#This Row],[ST3I]]),0),\"\")","v":""},{"$f":"+ROUNDUP(AVERAGEIF(STEP2TABLE[Human Rights and Environmental priority areas],STEP2TABLE[[#This Row],[Human Rights and Environmental priority areas]],STEP2TABLE[AVERAGE L]),0)","v":{"$error":"#DIV/0!"}},{"$f":"+ROUNDUP(AVERAGEIF(STEP2TABLE[Human Rights and Environmental priority areas],STEP2TABLE[[#This Row],[Human Rights and Environmental priority areas]],STEP2TABLE[AVERAGE I]),0)","v":{"$error":"#DIV/0!"}},"5. Forced labour",{"$f":"INDEX(Tables!$O$165:$S$169,MATCH(STEP2!S84,Tables!$N$165:$N$169,0),MATCH(STEP2!T84,Tables!$O$164:$S$164,0))","v":{"$error":"#DIV/0!"}}]
[null,17,"Child protection and child rights","Some workers are under 18 years of age (legally allowed to work) but perform tasks that are appropriate for adults (e.g., applying chemicals, carrying heavy bags), or occupy positions that were not adapted for youth employment (e.g., children do not apply chemicals but work in the same area where chemicals are applied).","Please select option","Please select option",{"$nulls":4},{"$f":"+IFERROR(VLOOKUP(E85,Common[],2,0),\"\")","v":""},{"$f":"+IFERROR(VLOOKUP(G85,Common[],2,0),\"\")","v":""},{"$f":"+IFERROR(VLOOKUP(I85,Common[],2,0),\"\")","v":""},{"$f":"+IFERROR(ROUNDUP(AVERAGE(STEP2TABLE[[#This Row],[ST1L]],STEP2TABLE[[#This Row],[ST2L]],STEP2TABLE[[#This Row],[ST3L]]),0),\"\")","v":""},{"$f":"+IFERROR(VLOOKUP(F85,Serious[],2,0),\"\")","v":""},{"$f":"+IFERROR(VLOOKUP(H85,Serious[],2,0),\"\")","v":""},{"$f":"+IFERROR(VLOOKUP(J85,Serious[],2,0),\"\")","v":""},{"$f":"+IFERROR(ROUNDUP(AVERAGE(STEP2TABLE[[#This Row],[ST1I]],STEP2TABLE[[#This Row],[ST2I]],STEP2TABLE[[#This Row],[ST3I]]),0),\"\")","v":""},{"$f":"+ROUNDUP(AVERAGEIF(STEP2TABLE[Human Rights and Environmental priority areas],STEP2TABLE[[#This Row],[Human Rights and Environmental priority areas]],STEP2TABLE[AVERAGE L]),0)","v":{"$error":"#DIV/0!"}},{"$f":"+ROUNDUP(AVERAGEIF(STEP2TABLE[Human Rights and Environmental priority areas],STEP2TABLE[[#This Row],[Human Rights and Environmental priority areas]],STEP2TABLE[AVERAGE I]),0)","v":{"$error":"#DIV/0!"}},"6. Child protection and child rights",{"$f":"INDEX(Tables!$O$165:$S$169,MATCH(STEP2!S85,Tables!$N$165:$N$169,0),MATCH(STEP2!T85,Tables!$O$164:$S$164,0))","v":{"$error":"#DIV/0!"}}]
[null,18,"Child protection and child rights","Some workers are below 15 years or the minimum legal age in your country (wichever is lower).","Please select option","Please select option",{"$nulls":4},{"$f":"+IFERROR(VLOOKUP(E86,Common[],2,0),\"\")","v":""},{"$f":"+IFERROR(VLOOKUP(G86,Common[],2,0),\"\")","v":""},{"$f":"+IFERROR(VLOOKUP(I86,Common[],2,0),\"\")","v":""},{"$f":"+IFERROR(ROUNDUP(AVERAGE(STEP2TABLE[[#This Row],[ST1L]],STEP2TABLE[[#This Row],[ST2L]],STEP2TABLE[[#This Row],[ST3L]]),0),\"\")","v":""},{"$f":"+IFERROR(VLOOKUP(F86,Serious[],2,0),\"\")","v":""},{"$f":"+IFERROR(VLOOKUP(H86,Serious[],2,0),\"\")","v":""},{"$f":"+IFERROR(VLOOKUP(J86,Serious[],2,0),\"\")","v":""},{"$f":"+IFERROR(ROUNDUP(AVERAGE(STEP2TABLE[[#This Row],[ST1I]],STEP2TABLE[[#This Row],[ST2I]],STEP2TABLE[[#This Row],[ST3I]]),0),\"\")","v":""},{"$f":"+ROUNDUP(AVERAGEIF(STEP2TABLE[Human Rights and Environmental priority areas],STEP2TABLE[[#This Row],[Human Rights and Environmental priority areas]],STEP2TABLE[AVERAGE L]),0)","v":{"$error":"#DIV/0!"}},{"$f":"+ROUNDUP(AVERAGEIF(STEP2TABLE[Human Rights and Environmental priority areas],STEP2TABLE[[#This Row],[Human Rights and Environmental priority areas]],STEP2TABLE[AVERAGE I]),0)","v":{"$error":"#DIV/0!"}},"6. Child protection and child rights",{"$f":"INDEX(Tables!$O$165:$S$169,MATCH(STEP2!S86,Tables!$N$165:$N$169,0),MATCH(STEP2!T86,Tables!$O$164:$S$164,0))","v":{"$error":"#DIV/0!"}}]
[null,19,"Child protection and child rights","Some workers’ children cannot attend school. This can include for instance migrant boys or girls.","Please select option","Please select option",{"$nulls":4},{"$f":"+IFERROR(VLOOKUP(E87,Common[],2,0),\"\")","v":""},{"$f":"+IFERROR(VLOOKUP(G87,Common[],2,0),\"\")","v":""},{"$f":"+IFERROR(VLOOKUP(I87,Common[],2,0),\"\")","v":""},{"$f":"+IFERROR(ROUNDUP(AVERAGE(STEP2TABLE[[#This Row],[ST1L]],STEP2TABLE[[#This Row],[ST2L]],STEP2TABLE[[#This Row],[ST3L]]),0),\"\")","v":""},{"$f":"+IFERROR(VLOOKUP(F87,Serious[],2,0),\"\")","v":""},{"$f":"+IFERROR(VLOOKUP(H87,Serious[],2,0),\"\")","v":""},{"$f":"+IFERROR(VLOOKUP(J87,Serious[],2,0),\"\")","v":""},{"$f":"+IFERROR(ROUNDUP(AVERAGE(STEP2TABLE[[#This Row],[ST1I]],STEP2TABLE[[#This Row],[ST2I]],STEP2TABLE[[#This Row],[ST3I]]),0),\"\")","v":""},{"$f":"+ROUNDUP(AVERAGEIF(STEP2TABLE[Human Rights and Environmental priority areas],STEP2TABLE[[#This Row],[Human Rights and Environmental priority areas]],STEP2TABLE[AVERAGE L]),0)","v":{"$error":"#DIV/0!"}},{"$f":"+ROUNDUP(AVERAGEIF(STEP2TABLE[Human Rights and Environmental priority areas],STEP2TABLE[[#This Row],[Human Rights and Environmental priority areas]],STEP2TABLE[AVERAGE I]),0)","v":{"$error":"#DIV/0!"}},"6. Child protection and child rights",{"$f":"INDEX(Tables!$O$165:$S$169,MATCH(STEP2!S87,Tables!$N$165:$N$169,0),MATCH(STEP2!T87,Tables!$O$164:$S$164,0))","v":{"$error":"#DIV/0!"}}]
[null,20,"Child protection and child rights","There are no schools available for free or at an affordable price in the community close to where workers live, and/or schools facilities are innadequate.","Please select option","Please select option",{"$nulls":4},{"$f":"+IFERROR(VLOOKUP(E88,Common[],2,0),\"\")","v":""},{"$f":"+IFERROR(VLOOKUP(G88,Common[],2,0),\"\")","v":""},{"$f":"+IFERROR(VLOOKUP(I88,Common[],2,0),\"\")","v":""},{"$f":"+IFERROR(ROUNDUP(AVERAGE(STEP2TABLE[[#This Row],[ST1L]],STEP2TABLE[[#This Row],[ST2L]],STEP2TABLE[[#This Row],[ST3L]]),0),\"\")","v":""},{"$f":"+IFERROR(VLOOKUP(F88,Serious[],2,0),\"\")","v":""},{"$f":"+IFERROR(VLOOKUP(H88,Serious[],2,0),\"\")","v":""},{"$f":"+IFERROR(VLOOKUP(J88,Serious[],2,0),\"\")","v":""},{"$f":"+IFERROR(ROUNDUP(AVERAGE(STEP2TABLE[[#This Row],[ST1I]],STEP2TABLE[[#This Row],[ST2I]],STEP2TABLE[[#This Row],[ST3I]]),0),\"\")","v":""},{"$f":"+ROUNDUP(AVERAGEIF(STEP2TABLE[Human Rights and Environmental priority areas],STEP2TABLE[[#This Row],[Human Rights and Environmental priority areas]],STEP2TABLE[AVERAGE L]),0)","v":{"$error":"#DIV/0!"}},{"$f":"+ROUNDUP(AVERAGEIF(STEP2TABLE[Human Rights and Environmental priority areas],STEP2TABLE[[#This Row],[Human Rights and Environmental priority areas]],STEP2TABLE[AVERAGE I]),0)","v":{"$error":"#DIV/0!"}},"6. Child protection and child rights",{"$f":"INDEX(Tables!$O$165:$S$169,MATCH(STEP2!S88,Tables!$N$165:$N$169,0),MATCH(STEP2!T88,Tables!$O$164:$S$164,0))","v":{"$error":"#DIV/0!"}}]
[null,21,"Gender rights","Women or people with underrepresented gender are or have suffered harassment or abusive behaviour in the organisation. This can be physical, sexual, verbal (e.g., intimidating or abusive gestures or language), or psychological.","Please select option","Please select option",{"$nulls":4},{"$f":"+IFERROR(VLOOKUP(E89,Common[],2,0),\"\")","v":""},{"$f":"+IFERROR(VLOOKUP(G89,Common[],2,0),\"\")","v":""},{"$f":"+IFERROR(VLOOKUP(I89,Common[],2,0),\"\")","v":""},{"$f":"+IFERROR(ROUNDUP(AVERAGE(STEP2TABLE[[#This Row],[ST1L]],STEP2TABLE[[#This Row],[ST2L]],STEP2TABLE[[#This Row],[ST3L]]),0),\"\")","v":""},{"$f":"+IFERROR(VLOOKUP(F89,Serious[],2,0),\"\")","v":""},{"$f":"+IFERROR(VLOOKUP(H89,Serious[],2,0),\"\")","v":""},{"$f":"+IFERROR(VLOOKUP(J89,Serious[],2,0),\"\")","v":""},{"$f":"+IFERROR(ROUNDUP(AVERAGE(STEP2TABLE[[#This Row],[ST1I]],STEP2TABLE[[#This Row],[ST2I]],STEP2TABLE[[#This Row],[ST3I]]),0),\"\")","v":""},{"$f":"+ROUNDUP(AVERAGEIF(STEP2TABLE[Human Rights and Environmental priority areas],STEP2TABLE[[#This Row],[Human Rights and Environmental priority areas]],STEP2TABLE[AVERAGE L]),0)","v":{"$error":"#DIV/0!"}},{"$f":"+ROUNDUP(AVERAGEIF(STEP2TABLE[Human Rights and Environmental priority areas],STEP2TABLE[[#This Row],[Human Rights and Environmental priority areas]],STEP2TABLE[AVERAGE I]),0)","v":{"$error":"#DIV/0!"}},"7. Gender rights",{"$f":"INDEX(Tables!$O$165:$S$169,MATCH(STEP2!S89,Tables!$N$165:$N$169,0),MATCH(STEP2!T89,Tables!$O$164:$S$164,0))","v":{"$error":"#DIV/0!"}}]
[null,22,"Gender rights","Among employees, women earn less than men for the same tasks.","Please select option","Please select option",{"$nulls":4},{"$f":"+IFERROR(VLOOKUP(E90,Common[],2,0),\"\")","v":""},{"$f":"+IFERROR(VLOOKUP(G90,Common[],2,0),\"\")","v":""},{"$f":"+IFERROR(VLOOKUP(I90,Common[],2,0),\"\")","v":""},{"$f":"+IFERROR(ROUNDUP(AVERAGE(STEP2TABLE[[#This Row],[ST1L]],STEP2TABLE[[#This Row],[ST2L]],STEP2TABLE[[#This Row],[ST3L]]),0),\"\")","v":""},{"$f":"+IFERROR(VLOOKUP(F90,Serious[],2,0),\"\")","v":""},{"$f":"+IFERROR(VLOOKUP(H90,Serious[],2,0),\"\")","v":""},{"$f":"+IFERROR(VLOOKUP(J90,Serious[],2,0),\"\")","v":""},{"$f":"+IFERROR(ROUNDUP(AVERAGE(STEP2TABLE[[#This Row],[ST1I]],STEP2TABLE[[#This Row],[ST2I]],STEP2TABLE[[#This Row],[ST3I]]),0),\"\")","v":""},{"$f":"+ROUNDUP(AVERAGEIF(STEP2TABLE[Human Rights and Environmental priority areas],STEP2TABLE[[#This Row],[Human Rights and Environmental priority areas]],STEP2TABLE[AVERAGE L]),0)","v":{"$error":"#DIV/0!"}},{"$f":"+ROUNDUP(AVERAGEIF(STEP2TABLE[Human Rights and Environmental priority areas],STEP2TABLE[[#This Row],[Human Rights and Environmental priority areas]],STEP2TABLE[AVERAGE I]),0)","v":{"$error":"#DIV/0!"}},"7. Gender rights",{"$f":"INDEX(Tables!$O$165:$S$169,MATCH(STEP2!S90,Tables!$N$165:$N$169,0),MATCH(STEP2!T90,Tables!$O$164:$S$164,0))","v":{"$error":"#DIV/0!"}}]
[null,23,"Gender rights","Female workers or workers with underrepresented gender have no access to effective grievance mechanisms.","Please select option","Please select option",{"$nulls":4},{"$f":"+IFERROR(VLOOKUP(E91,Common[],2,0),\"\")","v":""},{"$f":"+IFERROR(VLOOKUP(G91,Common[],2,0),\"\")","v":""},{"$f":"+IFERROR(VLOOKUP(I91,Common[],2,0),\"\")","v":""},{"$f":"+IFERROR(ROUNDUP(AVERAGE(STEP2TABLE[[#This Row],[ST1L]],STEP2TABLE[[#This Row],[ST2L]],STEP2TABLE[[#This Row],[ST3L]]),0),\"\")","v":""},{"$f":"+IFERROR(VLOOKUP(F91,Serious[],2,0),\"\")","v":""},{"$f":"+IFERROR(VLOOKUP(H91,Serious[],2,0),\"\")","v":""},{"$f":"+IFERROR(VLOOKUP(J91,Serious[],2,0),\"\")","v":""},{"$f":"+IFERROR(ROUNDUP(AVERAGE(STEP2TABLE[[#This Row],[ST1I]],STEP2TABLE[[#This Row],[ST2I]],STEP2TABLE[[#This Row],[ST3I]]),0),\"\")","v":""},{"$f":"+ROUNDUP(AVERAGEIF(STEP2TABLE[Human Rights and Environmental priority areas],STEP2TABLE[[#This Row],[Human Rights and Environmental priority areas]],STEP2TABLE[AVERAGE L]),0)","v":{"$error":"#DIV/0!"}},{"$f":"+ROUNDUP(AVERAGEIF(STEP2TABLE[Human Rights and Environmental priority areas],STEP2TABLE[[#This Row],[Human Rights and Environmental priority areas]],STEP2TABLE[AVERAGE I]),0)","v":{"$error":"#DIV/0!"}},"7. Gender rights",{"$f":"INDEX(Tables!$O$165:$S$169,MATCH(STEP2!S91,Tables!$N$165:$N$169,0),MATCH(STEP2!T91,Tables!$O$164:$S$164,0))","v":{"$error":"#DIV/0!"}}]
[null,24,"Non-discrimination","Some groups of workers have lower pay, opportunities to be recruited, and promoted, and less participation in decision-making in the organisation. This could be for example migrants, sharecroppers, youth, persons with disabilities or some ethnic or religious group.","Please select option","Please select option",{"$nulls":4},{"$f":"+IFERROR(VLOOKUP(E92,Common[],2,0),\"\")","v":""},{"$f":"+IFERROR(VLOOKUP(G92,Common[],2,0),\"\")","v":""},{"$f":"+IFERROR(VLOOKUP(I92,Common[],2,0),\"\")","v":""},{"$f":"+IFERROR(ROUNDUP(AVERAGE(STEP2TABLE[[#This Row],[ST1L]],STEP2TABLE[[#This Row],[ST2L]],STEP2TABLE[[#This Row],[ST3L]]),0),\"\")","v":""},{"$f":"+IFERROR(VLOOKUP(F92,Serious[],2,0),\"\")","v":""},{"$f":"+IFERROR(VLOOKUP(H92,Serious[],2,0),\"\")","v":""},{"$f":"+IFERROR(VLOOKUP(J92,Serious[],2,0),\"\")","v":""},{"$f":"+IFERROR(ROUNDUP(AVERAGE(STEP2TABLE[[#This Row],[ST1I]],STEP2TABLE[[#This Row],[ST2I]],STEP2TABLE[[#This Row],[ST3I]]),0),\"\")","v":""},{"$f":"+ROUNDUP(AVERAGEIF(STEP2TABLE[Human Rights and Environmental priority areas],STEP2TABLE[[#This Row],[Human Rights and Environmental priority areas]],STEP2TABLE[AVERAGE L]),0)","v":{"$error":"#DIV/0!"}},{"$f":"+ROUNDUP(AVERAGEIF(STEP2TABLE[Human Rights and Environmental priority areas],STEP2TABLE[[#This Row],[Human Rights and Environmental priority areas]],STEP2TABLE[AVERAGE I]),0)","v":{"$error":"#DIV/0!"}},"8. Non-discrimination",{"$f":"INDEX(Tables!$O$165:$S$169,MATCH(STEP2!S92,Tables!$N$165:$N$169,0),MATCH(STEP2!T92,Tables!$O$164:$S$164,0))","v":{"$error":"#DIV/0!"}}]
[null,25,"Non-discrimination","Seasonal, migrant or other groups of workers have lower pay or benefits than permanent, local workers.","Please select option","Please select option",{"$nulls":4},{"$f":"+IFERROR(VLOOKUP(E93,Common[],2,0),\"\")","v":""},{"$f":"+IFERROR(VLOOKUP(G93,Common[],2,0),\"\")","v":""},{"$f":"+IFERROR(VLOOKUP(I93,Common[],2,0),\"\")","v":""},{"$f":"+IFERROR(ROUNDUP(AVERAGE(STEP2TABLE[[#This Row],[ST1L]],STEP2TABLE[[#This Row],[ST2L]],STEP2TABLE[[#This Row],[ST3L]]),0),\"\")","v":""},{"$f":"+IFERROR(VLOOKUP(F93,Serious[],2,0),\"\")","v":""},{"$f":"+IFERROR(VLOOKUP(H93,Serious[],2,0),\"\")","v":""},{"$f":"+IFERROR(VLOOKUP(J93,Serious[],2,0),\"\")","v":""},{"$f":"+IFERROR(ROUNDUP(AVERAGE(STEP2TABLE[[#This Row],[ST1I]],STEP2TABLE[[#This Row],[ST2I]],STEP2TABLE[[#This Row],[ST3I]]),0),\"\")","v":""},{"$f":"+ROUNDUP(AVERAGEIF(STEP2TABLE[Human Rights and Environmental priority areas],STEP2TABLE[[#This Row],[Human Rights and Environmental priority areas]],STEP2TABLE[AVERAGE L]),0)","v":{"$error":"#DIV/0!"}},{"$f":"+ROUNDUP(AVERAGEIF(STEP2TABLE[Human Rights and Environmental priority areas],STEP2TABLE[[#This Row],[Human Rights and Environmental priority areas]],STEP2TABLE[AVERAGE I]),0)","v":{"$error":"#DIV/0!"}},"8. Non-discrimination",{"$f":"INDEX(Tables!$O$165:$S$169,MATCH(STEP2!S93,Tables!$N$165:$N$169,0),MATCH(STEP2!T93,Tables!$O$164:$S$164,0))","v":{"$error":"#DIV/0!"}}]
[null,26,"Non-discrimination","Recruitment agencies hired by the organisation do not have written policies and clear procedures for preventing discrimination.","Please select option","Please select option",{"$nulls":4},{"$f":"+IFERROR(VLOOKUP(E94,Common[],2,0),\"\")","v":""},{"$f":"+IFERROR(VLOOKUP(G94,Common[],2,0),\"\")","v":""},{"$f":"+IFERROR(VLOOKUP(I94,Common[],2,0),\"\")","v":""},{"$f":"+IFERROR(ROUNDUP(AVERAGE(STEP2TABLE[[#This Row],[ST1L]],STEP2TABLE[[#This Row],[ST2L]],STEP2TABLE[[#This Row],[ST3L]]),0),\"\")","v":""},{"$f":"+IFERROR(VLOOKUP(F94,Serious[],2,0),\"\")","v":""},{"$f":"+IFERROR(VLOOKUP(H94,Serious[],2,0),\"\")","v":""},{"$f":"+IFERROR(VLOOKUP(J94,Serious[],2,0),\"\")","v":""},{"$f":"+IFERROR(ROUNDUP(AVERAGE(STEP2TABLE[[#This Row],[ST1I]],STEP2TABLE[[#This Row],[ST2I]],STEP2TABLE[[#This Row],[ST3I]]),0),\"\")","v":""},{"$f":"+ROUNDUP(AVERAGEIF(STEP2TABLE[Human Rights and Environmental priority areas],STEP2TABLE[[#This Row],[Human Rights and Environmental priority areas]],STEP2TABLE[AVERAGE L]),0)","v":{"$error":"#DIV/0!"}},{"$f":"+ROUNDUP(AVERAGEIF(STEP2TABLE[Human Rights and Environmental priority areas],STEP2TABLE[[#This Row],[Human Rights and Environmental priority areas]],STEP2TABLE[AVERAGE I]),0)","v":{"$error":"#DIV/0!"}},"8. Non-discrimination",{"$f":"INDEX(Tables!$O$165:$S$169,MATCH(STEP2!S94,Tables!$N$165:$N$169,0),MATCH(STEP2!T94,Tables!$O$164:$S$164,0))","v":{"$error":"#DIV/0!"}}]
[null,27,"Self-determination","Some workers are required to stay in housing controlled by the employer or a broker.","Please select option","Please select option",{"$nulls":4},{"$f":"+IFERROR(VLOOKUP(E95,Common[],2,0),\"\")","v":""},{"$f":"+IFERROR(VLOOKUP(G95,Common[],2,0),\"\")","v":""},{"$f":"+IFERROR(VLOOKUP(I95,Common[],2,0),\"\")","v":""},{"$f":"+IFERROR(ROUNDUP(AVERAGE(STEP2TABLE[[#This Row],[ST1L]],STEP2TABLE[[#This Row],[ST2L]],STEP2TABLE[[#This Row],[ST3L]]),0),\"\")","v":""},{"$f":"+IFERROR(VLOOKUP(F95,Serious[],2,0),\"\")","v":""},{"$f":"+IFERROR(VLOOKUP(H95,Serious[],2,0),\"\")","v":""},{"$f":"+IFERROR(VLOOKUP(J95,Serious[],2,0),\"\")","v":""},{"$f":"+IFERROR(ROUNDUP(AVERAGE(STEP2TABLE[[#This Row],[ST1I]],STEP2TABLE[[#This Row],[ST2I]],STEP2TABLE[[#This Row],[ST3I]]),0),\"\")","v":""},{"$f":"+ROUNDUP(AVERAGEIF(STEP2TABLE[Human Rights and Environmental priority areas],STEP2TABLE[[#This Row],[Human Rights and Environmental priority areas]],STEP2TABLE[AVERAGE L]),0)","v":{"$error":"#DIV/0!"}},{"$f":"+ROUNDUP(AVERAGEIF(STEP2TABLE[Human Rights and Environmental priority areas],STEP2TABLE[[#This Row],[Human Rights and Environmental priority areas]],STEP2TABLE[AVERAGE I]),0)","v":{"$error":"#DIV/0!"}},"9. Self-determination",{"$f":"INDEX(Tables!$O$165:$S$169,MATCH(STEP2!S95,Tables!$N$165:$N$169,0),MATCH(STEP2!T95,Tables!$O$164:$S$164,0))","v":{"$error":"#DIV/0!"}}]
[null,28,"Self-determination","The organisation has acquired land, especially indigenous people's land, without proper consultation with the local population or without the free, prior and informed consent of those concerned.","Please select option","Please select option",{"$nulls":4},{"$f":"+IFERROR(VLOOKUP(E96,Common[],2,0),\"\")","v":""},{"$f":"+IFERROR(VLOOKUP(G96,Common[],2,0),\"\")","v":""},{"$f":"+IFERROR(VLOOKUP(I96,Common[],2,0),\"\")","v":""},{"$f":"+IFERROR(ROUNDUP(AVERAGE(STEP2TABLE[[#This Row],[ST1L]],STEP2TABLE[[#This Row],[ST2L]],STEP2TABLE[[#This Row],[ST3L]]),0),\"\")","v":""},{"$f":"+IFERROR(VLOOKUP(F96,Serious[],2,0),\"\")","v":""},{"$f":"+IFERROR(VLOOKUP(H96,Serious[],2,0),\"\")","v":""},{"$f":"+IFERROR(VLOOKUP(J96,Serious[],2,0),\"\")","v":""},{"$f":"+IFERROR(ROUNDUP(AVERAGE(STEP2TABLE[[#This Row],[ST1I]],STEP2TABLE[[#This Row],[ST2I]],STEP2TABLE[[#This Row],[ST3I]]),0),\"\")","v":""},{"$f":"+ROUNDUP(AVERAGEIF(STEP2TABLE[Human Rights and Environmental priority areas],STEP2TABLE[[#This Row],[Human Rights and Environmental priority areas]],STEP2TABLE[AVERAGE L]),0)","v":{"$error":"#DIV/0!"}},{"$f":"+ROUNDUP(AVERAGEIF(STEP2TABLE[Human Rights and Environmental priority areas],STEP2TABLE[[#This Row],[Human Rights and Environmental priority areas]],STEP2TABLE[AVERAGE I]),0)","v":{"$error":"#DIV/0!"}},"9. Self-determination",{"$f":"INDEX(Tables!$O$165:$S$169,MATCH(STEP2!S96,Tables!$N$165:$N$169,0),MATCH(STEP2!T96,Tables!$O$164:$S$164,0))","v":{"$error":"#DIV/0!"}}]
[null,29,"Self-determination","The organisation has unresolved land disputes, and no legal resolution process is active.","Please select option","Please select option",{"$nulls":4},{"$f":"+IFERROR(VLOOKUP(E97,Common[],2,0),\"\")","v":""},{"$f":"+IFERROR(VLOOKUP(G97,Common[],2,0),\"\")","v":""},{"$f":"+IFERROR(VLOOKUP(I97,Common[],2,0),\"\")","v":""},{"$f":"+IFERROR(ROUNDUP(AVERAGE(STEP2TABLE[[#This Row],[ST1L]],STEP2TABLE[[#This Row],[ST2L]],STEP2TABLE[[#This Row],[ST3L]]),0),\"\")","v":""},{"$f":"+IFERROR(VLOOKUP(F97,Serious[],2,0),\"\")","v":""},{"$f":"+IFERROR(VLOOKUP(H97,Serious[],2,0),\"\")","v":""},{"$f":"+IFERROR(VLOOKUP(J97,Serious[],2,0),\"\")","v":""},{"$f":"+IFERROR(ROUNDUP(AVERAGE(STEP2TABLE[[#This Row],[ST1I]],STEP2TABLE[[#This Row],[ST2I]],STEP2TABLE[[#This Row],[ST3I]]),0),\"\")","v":""},{"$f":"+ROUNDUP(AVERAGEIF(STEP2TABLE[Human Rights and Environmental priority areas],STEP2TABLE[[#This Row],[Human Rights and Environmental priority areas]],STEP2TABLE[AVERAGE L]),0)","v":{"$error":"#DIV/0!"}},{"$f":"+ROUNDUP(AVERAGEIF(STEP2TABLE[Human Rights and Environmental priority areas],STEP2TABLE[[#This Row],[Human Rights and Environmental priority areas]],STEP2TABLE[AVERAGE I]),0)","v":{"$error":"#DIV/0!"}},"9. Self-determination",{"$f":"INDEX(Tables!$O$165:$S$169,MATCH(STEP2!S97,Tables!$N$165:$N$169,0),MATCH(STEP2!T97,Tables!$O$164:$S$164,0))","v":{"$error":"#DIV/0!"}}]
[null,30,"Climate emissions and deforestation","The organisation is or has been involved in deforestation or practices that result in significant loss of vegetation and biodiversity. ","Please select option","Please select option",{"$nulls":4},{"$f":"+IFERROR(VLOOKUP(E98,Common[],2,0),\"\")","v":""},{"$f":"+IFERROR(VLOOKUP(G98,Common[],2,0),\"\")","v":""},{"$f":"+IFERROR(VLOOKUP(I98,Common[],2,0),\"\")","v":""},{"$f":"+IFERROR(ROUNDUP(AVERAGE(STEP2TABLE[[#This Row],[ST1L]],STEP2TABLE[[#This Row],[ST2L]],STEP2TABLE[[#This Row],[ST3L]]),0),\"\")","v":""},{"$f":"+IFERROR(VLOOKUP(F98,Serious[],2,0),\"\")","v":""},{"$f":"+IFERROR(VLOOKUP(H98,Serious[],2,0),\"\")","v":""},{"$f":"+IFERROR(VLOOKUP(J98,Serious[],2,0),\"\")","v":""},{"$f":"+IFERROR(ROUNDUP(AVERAGE(STEP2TABLE[[#This Row],[ST1I]],STEP2TABLE[[#This Row],[ST2I]],STEP2TABLE[[#This Row],[ST3I]]),0),\"\")","v":""},{"$f":"+ROUNDUP(AVERAGEIF(STEP2TABLE[Human Rights and Environmental priority areas],STEP2TABLE[[#This Row],[Human Rights and Environmental priority areas]],STEP2TABLE[AVERAGE L]),0)","v":{"$error":"#DIV/0!"}},{"$f":"+ROUNDUP(AVERAGEIF(STEP2TABLE[Human Rights and Environmental priority areas],STEP2TABLE[[#This Row],[Human Rights and Environmental priority areas]],STEP2TABLE[AVERAGE I]),0)","v":{"$error":"#DIV/0!"}},"10. Climate emissions and deforestation",{"$f":"INDEX(Tables!$O$165:$S$169,MATCH(STEP2!S98,Tables!$N$165:$N$169,0),MATCH(STEP2!T98,Tables!$O$164:$S$164,0))","v":{"$error":"#DIV/0!"}}]
[null,31,"Climate emissions and deforestation","The organisation is or has caused the degradation of protected areas and in areas with high conservation value, or have not complied with national legislation on agricultural land use. ","Please select option","Please select option",{"$nulls":4},{"$f":"+IFERROR(VLOOKUP(E99,Common[],2,0),\"\")","v":""},{"$f":"+IFERROR(VLOOKUP(G99,Common[],2,0),\"\")","v":""},{"$f":"+IFERROR(VLOOKUP(I99,Common[],2,0),\"\")","v":""},{"$f":"+IFERROR(ROUNDUP(AVERAGE(STEP2TABLE[[#This Row],[ST1L]],STEP2TABLE[[#This Row],[ST2L]],STEP2TABLE[[#This Row],[ST3L]]),0),\"\")","v":""},{"$f":"+IFERROR(VLOOKUP(F99,Serious[],2,0),\"\")","v":""},{"$f":"+IFERROR(VLOOKUP(H99,Serious[],2,0),\"\")","v":""},{"$f":"+IFERROR(VLOOKUP(J99,Serious[],2,0),\"\")","v":""},{"$f":"+IFERROR(ROUNDUP(AVERAGE(STEP2TABLE[[#This Row],[ST1I]],STEP2TABLE[[#This Row],[ST2I]],STEP2TABLE[[#This Row],[ST3I]]),0),\"\")","v":""},{"$f":"+ROUNDUP(AVERAGEIF(STEP2TABLE[Human Rights and Environmental priority areas],STEP2TABLE[[#This Row],[Human Rights and Environmental priority areas]],STEP2TABLE[AVERAGE L]),0)","v":{"$error":"#DIV/0!"}},{"$f":"+ROUNDUP(AVERAGEIF(STEP2TABLE[Human Rights and Environmental priority areas],STEP2TABLE[[#This Row],[Human Rights and Environmental priority areas]],STEP2TABLE[AVERAGE I]),0)","v":{"$error":"#DIV/0!"}},"10. Climate emissions and deforestation",{"$f":"INDEX(Tables!$O$165:$S$169,MATCH(STEP2!S99,Tables!$N$165:$N$169,0),MATCH(STEP2!T99,Tables!$O$164:$S$164,0))","v":{"$error":"#DIV/0!"}}]
[null,32,"Climate emissions and deforestation","Land in the organisation's area is at high risk of soil erosion or you are not aware if this is the case.","Please select option","Please select option",{"$nulls":4},{"$f":"+IFERROR(VLOOKUP(E100,Common[],2,0),\"\")","v":""},{"$f":"+IFERROR(VLOOKUP(G100,Common[],2,0),\"\")","v":""},{"$f":"+IFERROR(VLOOKUP(I100,Common[],2,0),\"\")","v":""},{"$f":"+IFERROR(ROUNDUP(AVERAGE(STEP2TABLE[[#This Row],[ST1L]],STEP2TABLE[[#This Row],[ST2L]],STEP2TABLE[[#This Row],[ST3L]]),0),\"\")","v":""},{"$f":"+IFERROR(VLOOKUP(F100,Serious[],2,0),\"\")","v":""},{"$f":"+IFERROR(VLOOKUP(H100,Serious[],2,0),\"\")","v":""},{"$f":"+IFERROR(VLOOKUP(J100,Serious[],2,0),\"\")","v":""},{"$f":"+IFERROR(ROUNDUP(AVERAGE(STEP2TABLE[[#This Row],[ST1I]],STEP2TABLE[[#This Row],[ST2I]],STEP2TABLE[[#This Row],[ST3I]]),0),\"\")","v":""},{"$f":"+ROUNDUP(AVERAGEIF(STEP2TABLE[Human Rights and Environmental priority areas],STEP2TABLE[[#This Row],[Human Rights and Environmental priority areas]],STEP2TABLE[AVERAGE L]),0)","v":{"$error":"#DIV/0!"}},{"$f":"+ROUNDUP(AVERAGEIF(STEP2TABLE[Human Rights and Environmental priority areas],STEP2TABLE[[#This Row],[Human Rights and Environmental priority areas]],STEP2TABLE[AVERAGE I]),0)","v":{"$error":"#DIV/0!"}},"10. Climate emissions and deforestation",{"$f":"INDEX(Tables!$O$165:$S$169,MATCH(STEP2!S100,Tables!$N$165:$N$169,0),MATCH(STEP2!T100,Tables!$O$164:$S$164,0))","v":{"$error":"#DIV/0!"}}]
[null,33,"Water and biodiversity","Materials prohibited by Fairtrade are used or have been used in the past (e.g., pesticides and herbicides included in the red list).","Please select option","Please select option",{"$nulls":4},{"$f":"+IFERROR(VLOOKUP(E101,Common[],2,0),\"\")","v":""},{"$f":"+IFERROR(VLOOKUP(G101,Common[],2,0),\"\")","v":""},{"$f":"+IFERROR(VLOOKUP(I101,Common[],2,0),\"\")","v":""},{"$f":"+IFERROR(ROUNDUP(AVERAGE(STEP2TABLE[[#This Row],[ST1L]],STEP2TABLE[[#This Row],[ST2L]],STEP2TABLE[[#This Row],[ST3L]]),0),\"\")","v":""},{"$f":"+IFERROR(VLOOKUP(F101,Serious[],2,0),\"\")","v":""},{"$f":"+IFERROR(VLOOKUP(H101,Serious[],2,0),\"\")","v":""},{"$f":"+IFERROR(VLOOKUP(J101,Serious[],2,0),\"\")","v":""},{"$f":"+IFERROR(ROUNDUP(AVERAGE(STEP2TABLE[[#This Row],[ST1I]],STEP2TABLE[[#This Row],[ST2I]],STEP2TABLE[[#This Row],[ST3I]]),0),\"\")","v":""},{"$f":"+ROUNDUP(AVERAGEIF(STEP2TABLE[Human Rights and Environmental priority areas],STEP2TABLE[[#This Row],[Human Rights and Environmental priority areas]],STEP2TABLE[AVERAGE L]),0)","v":{"$error":"#DIV/0!"}},{"$f":"+ROUNDUP(AVERAGEIF(STEP2TABLE[Human Rights and Environmental priority areas],STEP2TABLE[[#This Row],[Human Rights and Environmental priority areas]],STEP2TABLE[AVERAGE I]),0)","v":{"$error":"#DIV/0!"}},"11. Water and biodiversity",{"$f":"INDEX(Tables!$O$165:$S$169,MATCH(STEP2!S101,Tables!$N$165:$N$169,0),MATCH(STEP2!T101,Tables!$O$164:$S$164,0))","v":{"$error":"#DIV/0!"}}]
[null,34,"Water and biodiversity","Cases of spills or accidents with hazardous chemicals cause or have caused in the past leaks to soil or water. ","Please select option","Please select option",{"$nulls":4},{"$f":"+IFERROR(VLOOKUP(E102,Common[],2,0),\"\")","v":""},{"$f":"+IFERROR(VLOOKUP(G102,Common[],2,0),\"\")","v":""},{"$f":"+IFERROR(VLOOKUP(I102,Common[],2,0),\"\")","v":""},{"$f":"+IFERROR(ROUNDUP(AVERAGE(STEP2TABLE[[#This Row],[ST1L]],STEP2TABLE[[#This Row],[ST2L]],STEP2TABLE[[#This Row],[ST3L]]),0),\"\")","v":""},{"$f":"+IFERROR(VLOOKUP(F102,Serious[],2,0),\"\")","v":""},{"$f":"+IFERROR(VLOOKUP(H102,Serious[],2,0),\"\")","v":""},{"$f":"+IFERROR(VLOOKUP(J102,Serious[],2,0),\"\")","v":""},{"$f":"+IFERROR(ROUNDUP(AVERAGE(STEP2TABLE[[#This Row],[ST1I]],STEP2TABLE[[#This Row],[ST2I]],STEP2TABLE[[#This Row],[ST3I]]),0),\"\")","v":""},{"$f":"+ROUNDUP(AVERAGEIF(STEP2TABLE[Human Rights and Environmental priority areas],STEP2TABLE[[#This Row],[Human Rights and Environmental priority areas]],STEP2TABLE[AVERAGE L]),0)","v":{"$error":"#DIV/0!"}},{"$f":"+ROUNDUP(AVERAGEIF(STEP2TABLE[Human Rights and Environmental priority areas],STEP2TABLE[[#This Row],[Human Rights and Environmental priority areas]],STEP2TABLE[AVERAGE I]),0)","v":{"$error":"#DIV/0!"}},"11. Water and biodiversity",{"$f":"INDEX(Tables!$O$165:$S$169,MATCH(STEP2!S102,Tables!$N$165:$N$169,0),MATCH(STEP2!T102,Tables!$O$164:$S$164,0))","v":{"$error":"#DIV/0!"}}]
[null,35,"Water and biodiversity","There is water overuse in production.","Please select option","Please select option",{"$nulls":4},{"$f":"+IFERROR(VLOOKUP(E103,Common[],2,0),\"\")","v":""},{"$f":"+IFERROR(VLOOKUP(G103,Common[],2,0),\"\")","v":""},{"$f":"+IFERROR(VLOOKUP(I103,Common[],2,0),\"\")","v":""},{"$f":"+IFERROR(ROUNDUP(AVERAGE(STEP2TABLE[[#This Row],[ST1L]],STEP2TABLE[[#This Row],[ST2L]],STEP2TABLE[[#This Row],[ST3L]]),0),\"\")","v":""},{"$f":"+IFERROR(VLOOKUP(F103,Serious[],2,0),\"\")","v":""},{"$f":"+IFERROR(VLOOKUP(H103,Serious[],2,0),\"\")","v":""},{"$f":"+IFERROR(VLOOKUP(J103,Serious[],2,0),\"\")","v":""},{"$f":"+IFERROR(ROUNDUP(AVERAGE(STEP2TABLE[[#This Row],[ST1I]],STEP2TABLE[[#This Row],[ST2I]],STEP2TABLE[[#This Row],[ST3I]]),0),\"\")","v":""},{"$f":"+ROUNDUP(AVERAGEIF(STEP2TABLE[Human Rights and Environmental priority areas],STEP2TABLE[[#This Row],[Human Rights and Environmental priority areas]],STEP2TABLE[AVERAGE L]),0)","v":{"$error":"#DIV/0!"}},{"$f":"+ROUNDUP(AVERAGEIF(STEP2TABLE[Human Rights and Environmental priority areas],STEP2TABLE[[#This Row],[Human Rights and Environmental priority areas]],STEP2TABLE[AVERAGE I]),0)","v":{"$error":"#DIV/0!"}},"11. Water and biodiversity",{"$f":"INDEX(Tables!$O$165:$S$169,MATCH(STEP2!S103,Tables!$N$165:$N$169,0),MATCH(STEP2!T103,Tables!$O$164:$S$164,0))","v":{"$error":"#DIV/0!"}}]
[null,36,"Freedom of speech, thought and public participation","Workers' representatives are not or have not been invited to the General Assembly to participate in discussions.","Please select option","Please select option",{"$nulls":4},{"$f":"+IFERROR(VLOOKUP(E104,Common[],2,0),\"\")","v":""},{"$f":"+IFERROR(VLOOKUP(G104,Common[],2,0),\"\")","v":""},{"$f":"+IFERROR(VLOOKUP(I104,Common[],2,0),\"\")","v":""},{"$f":"+IFERROR(ROUNDUP(AVERAGE(STEP2TABLE[[#This Row],[ST1L]],STEP2TABLE[[#This Row],[ST2L]],STEP2TABLE[[#This Row],[ST3L]]),0),\"\")","v":""},{"$f":"+IFERROR(VLOOKUP(F104,Serious[],2,0),\"\")","v":""},{"$f":"+IFERROR(VLOOKUP(H104,Serious[],2,0),\"\")","v":""},{"$f":"+IFERROR(VLOOKUP(J104,Serious[],2,0),\"\")","v":""},{"$f":"+IFERROR(ROUNDUP(AVERAGE(STEP2TABLE[[#This Row],[ST1I]],STEP2TABLE[[#This Row],[ST2I]],STEP2TABLE[[#This Row],[ST3I]]),0),\"\")","v":""},{"$f":"+ROUNDUP(AVERAGEIF(STEP2TABLE[Human Rights and Environmental priority areas],STEP2TABLE[[#This Row],[Human Rights and Environmental priority areas]],STEP2TABLE[AVERAGE L]),0)","v":{"$error":"#DIV/0!"}},{"$f":"+ROUNDUP(AVERAGEIF(STEP2TABLE[Human Rights and Environmental priority areas],STEP2TABLE[[#This Row],[Human Rights and Environmental priority areas]],STEP2TABLE[AVERAGE I]),0)","v":{"$error":"#DIV/0!"}},"12. Freedom of speech, thought and public participation",{"$f":"INDEX(Tables!$O$165:$S$169,MATCH(STEP2!S104,Tables!$N$165:$N$169,0),MATCH(STEP2!T104,Tables!$O$164:$S$164,0))","v":{"$error":"#DIV/0!"}}]
[null,37,"Freedom of speech, thought and public participation","Workers who have brought forward concerns or criticism related to the organisation's operations have faced retaliation from your organisation or members.","Please select option","Please select option",{"$nulls":4},{"$f":"+IFERROR(VLOOKUP(E105,Common[],2,0),\"\")","v":""},{"$f":"+IFERROR(VLOOKUP(G105,Common[],2,0),\"\")","v":""},{"$f":"+IFERROR(VLOOKUP(I105,Common[],2,0),\"\")","v":""},{"$f":"+IFERROR(ROUNDUP(AVERAGE(STEP2TABLE[[#This Row],[ST1L]],STEP2TABLE[[#This Row],[ST2L]],STEP2TABLE[[#This Row],[ST3L]]),0),\"\")","v":""},{"$f":"+IFERROR(VLOOKUP(F105,Serious[],2,0),\"\")","v":""},{"$f":"+IFERROR(VLOOKUP(H105,Serious[],2,0),\"\")","v":""},{"$f":"+IFERROR(VLOOKUP(J105,Serious[],2,0),\"\")","v":""},{"$f":"+IFERROR(ROUNDUP(AVERAGE(STEP2TABLE[[#This Row],[ST1I]],STEP2TABLE[[#This Row],[ST2I]],STEP2TABLE[[#This Row],[ST3I]]),0),\"\")","v":""},{"$f":"+ROUNDUP(AVERAGEIF(STEP2TABLE[Human Rights and Environmental priority areas],STEP2TABLE[[#This Row],[Human Rights and Environmental priority areas]],STEP2TABLE[AVERAGE L]),0)","v":{"$error":"#DIV/0!"}},{"$f":"+ROUNDUP(AVERAGEIF(STEP2TABLE[Human Rights and Environmental priority areas],STEP2TABLE[[#This Row],[Human Rights and Environmental priority areas]],STEP2TABLE[AVERAGE I]),0)","v":{"$error":"#DIV/0!"}},"12. Freedom of speech, thought and public participation",{"$f":"INDEX(Tables!$O$165:$S$169,MATCH(STEP2!S105,Tables!$N$165:$N$169,0),MATCH(STEP2!T105,Tables!$O$164:$S$164,0))","v":{"$error":"#DIV/0!"}}]
[null,38,"Privacy","Workers candidates are tested or have been tested for pregnancy, some diseases or genetic problems during recruitment or employment (by the organisation, or a third party hired by the organisation e.g., recruitment agencies).","Please select option","Please select option",{"$nulls":4},{"$f":"+IFERROR(VLOOKUP(E106,Common[],2,0),\"\")","v":""},{"$f":"+IFERROR(VLOOKUP(G106,Common[],2,0),\"\")","v":""},{"$f":"+IFERROR(VLOOKUP(I106,Common[],2,0),\"\")","v":""},{"$f":"+IFERROR(ROUNDUP(AVERAGE(STEP2TABLE[[#This Row],[ST1L]],STEP2TABLE[[#This Row],[ST2L]],STEP2TABLE[[#This Row],[ST3L]]),0),\"\")","v":""},{"$f":"+IFERROR(VLOOKUP(F106,Serious[],2,0),\"\")","v":""},{"$f":"+IFERROR(VLOOKUP(H106,Serious[],2,0),\"\")","v":""},{"$f":"+IFERROR(VLOOKUP(J106,Serious[],2,0),\"\")","v":""},{"$f":"+IFERROR(ROUNDUP(AVERAGE(STEP2TABLE[[#This Row],[ST1I]],STEP2TABLE[[#This Row],[ST2I]],STEP2TABLE[[#This Row],[ST3I]]),0),\"\")","v":""},{"$f":"+ROUNDUP(AVERAGEIF(STEP2TABLE[Human Rights and Environmental priority areas],STEP2TABLE[[#This Row],[Human Rights and Environmental priority areas]],STEP2TABLE[AVERAGE L]),0)","v":{"$error":"#DIV/0!"}},{"$f":"+ROUNDUP(AVERAGEIF(STEP2TABLE[Human Rights and Environmental priority areas],STEP2TABLE[[#This Row],[Human Rights and Environmental priority areas]],STEP2TABLE[AVERAGE I]),0)","v":{"$error":"#DIV/0!"}},"13. Privacy",{"$f":"INDEX(Tables!$O$165:$S$169,MATCH(STEP2!S106,Tables!$N$165:$N$169,0),MATCH(STEP2!T106,Tables!$O$164:$S$164,0))","v":{"$error":"#DIV/0!"}}]
[null,39,"Privacy","Workers' private/confidential information is being divulged or has in the past without their permission.","Please select option","Please select option",{"$nulls":4},{"$f":"+IFERROR(VLOOKUP(E107,Common[],2,0),\"\")","v":""},{"$f":"+IFERROR(VLOOKUP(G107,Common[],2,0),\"\")","v":""},{"$f":"+IFERROR(VLOOKUP(I107,Common[],2,0),\"\")","v":""},{"$f":"+IFERROR(ROUNDUP(AVERAGE(STEP2TABLE[[#This Row],[ST1L]],STEP2TABLE[[#This Row],[ST2L]],STEP2TABLE[[#This Row],[ST3L]]),0),\"\")","v":""},{"$f":"+IFERROR(VLOOKUP(F107,Serious[],2,0),\"\")","v":""},{"$f":"+IFERROR(VLOOKUP(H107,Serious[],2,0),\"\")","v":""},{"$f":"+IFERROR(VLOOKUP(J107,Serious[],2,0),\"\")","v":""},{"$f":"+IFERROR(ROUNDUP(AVERAGE(STEP2TABLE[[#This Row],[ST1I]],STEP2TABLE[[#This Row],[ST2I]],STEP2TABLE[[#This Row],[ST3I]]),0),\"\")","v":""},{"$f":"+ROUNDUP(AVERAGEIF(STEP2TABLE[Human Rights and Environmental priority areas],STEP2TABLE[[#This Row],[Human Rights and Environmental priority areas]],STEP2TABLE[AVERAGE L]),0)","v":{"$error":"#DIV/0!"}},{"$f":"+ROUNDUP(AVERAGEIF(STEP2TABLE[Human Rights and Environmental priority areas],STEP2TABLE[[#This Row],[Human Rights and Environmental priority areas]],STEP2TABLE[AVERAGE I]),0)","v":{"$error":"#DIV/0!"}},"13. Privacy",{"$f":"INDEX(Tables!$O$165:$S$169,MATCH(STEP2!S107,Tables!$N$165:$N$169,0),MATCH(STEP2!T107,Tables!$O$164:$S$164,0))","v":{"$error":"#DIV/0!"}}]

{"sheet":"STEP3","index":3,"n_rows":49,"n_cols":13,"rows_kept":49,"merged":[[6,12,6,13],[12,2,12,19],[14,2,14,19],[19,9,19,10],[19,11,19,12],[20,2,20,8],[20,9,20,10],[20,11,20,12],[21,2,21,8],[21,9,21,10],[21,11,21,12],[22,2,22,8],[22,9,22,10],[22,11,22,12],[23,2,23,8],[23,9,23,10],[23,11,23,12],[24,2,24,8],[24,9,24,10],[24,11,24,12],[25,2,25,8],[25,9,25,10],[25,11,25,12],[26,2,26,8],[26,9,26,10],[26,11,26,12],[27,2,27,8],[27,9,27,10],[27,11,27,12],[28,2,28,8],[28,9,28,10],[28,11,28,12],[29,2,29,8],[29,9,29,10],[29,11,29,12],[30,2,30,8],[30,9,30,10],[30,11,30,12],[31,2,31,8],[31,9,31,10],[31,11,31,12],[32,2,32,8],[32,9,32,10],[32,11,32,12],[33,2,33,8],[33,9,33,10],[33,11,33,12],[38,2,38,20],[39,12,39,20],[40,3,40,10],[40,12,40,20],[42,3,42,10],[42,12,42,20],[44,3,44,10],[44,12,44,20],[46,3,46,10],[46,12,46,20],[48,3,48,10],[48,12,48,20]]}
{"$rows_empty":10}
[null,null,"STEP 3","Salient risk selection"]
[]
[null,null,"Part A shows an overview of the outputs of STEP 1 and STEP 2."]
[]
[null,null,"Part B asks you to identify at least three salient risk areas."]
[]
[null,null,"A","Table overview"]
[]
[]
[{"$nulls":9},"External data final score",null,"Your organisation results"]
[null,null,"Identified human rights and environmental priority areas for Fairtrade HLOs",{"$nulls":6},"All",null,"All"]
[null,null,"1. Living income, living wage",{"$nulls":6},{"$f":"+VLOOKUP(C22,STEP1!$C$49:$R$61,15,0)","v":{"$error":"#N/A"}},null,{"$f":"+VLOOKUP(C22,STEP2!$U$68:$V$107,2,0)","v":{"$error":"#DIV/0!"}}]
[null,null,"2. Working conditions",{"$nulls":6},{"$f":"+VLOOKUP(C23,STEP1!$C$49:$R$61,15,0)","v":{"$error":"#N/A"}},null,{"$f":"+VLOOKUP(C23,STEP2!$U$68:$V$107,2,0)","v":{"$error":"#DIV/0!"}}]
[null,null,"3. Health",{"$nulls":6},{"$f":"+VLOOKUP(C24,STEP1!$C$49:$R$61,15,0)","v":{"$error":"#N/A"}},null,{"$f":"+VLOOKUP(C24,STEP2!$U$68:$V$107,2,0)","v":{"$error":"#DIV/0!"}}]
[null,null,"4. Freedom of association and collective bargaining",{"$nulls":6},{"$f":"+VLOOKUP(C25,STEP1!$C$49:$R$61,15,0)","v":{"$error":"#N/A"}},null,{"$f":"+VLOOKUP(C25,STEP2!$U$68:$V$107,2,0)","v":{"$error":"#DIV/0!"}}]
[null,null,"5. Forced labour",{"$nulls":6},{"$f":"+VLOOKUP(C26,STEP1!$C$49:$R$61,15,0)","v":{"$error":"#N/A"}},null,{"$f":"+VLOOKUP(C26,STEP2!$U$68:$V$107,2,0)","v":{"$error":"#DIV/0!"}}]
[null,null,"6. Child protection and child rights",{"$nulls":6},{"$f":"+VLOOKUP(C27,STEP1!$C$49:$R$61,15,0)","v":{"$error":"#N/A"}},null,{"$f":"+VLOOKUP(C27,STEP2!$U$68:$V$107,2,0)","v":{"$error":"#DIV/0!"}}]
[null,null,"7. Gender rights",{"$nulls":6},{"$f":"+VLOOKUP(C28,STEP1!$C$49:$R$61,15,0)","v":{"$error":"#N/A"}},null,{"$f":"+VLOOKUP(C28,STEP2!$U$68:$V$107,2,0)","v":{"$error":"#DIV/0!"}}]
[null,null,"8. Non-discrimination",{"$nulls":6},{"$f":"+VLOOKUP(C29,STEP1!$C$49:$R$61,15,0)","v":{"$error":"#N/A"}},null,{"$f":"+VLOOKUP(C29,STEP2!$U$68:$V$107,2,0)","v":{"$error":"#DIV/0!"}}]
[null,null,"9. Self-determination",{"$nulls":6},{"$f":"+VLOOKUP(C30,STEP1!$C$49:$R$61,15,0)","v":{"$error":"#N/A"}},null,{"$f":"+VLOOKUP(C30,STEP2!$U$68:$V$107,2,0)","v":{"$error":"#DIV/0!"}}]
[null,null,"10. Climate emissions and deforestation",{"$nulls":6},{"$f":"+VLOOKUP(C31,STEP1!$C$49:$R$61,15,0)","v":{"$error":"#N/A"}},null,{"$f":"+VLOOKUP(C31,STEP2!$U$68:$V$107,2,0)","v":{"$error":"#DIV/0!"}}]
[null,null,"11. Water and biodiversity",{"$nulls":6},{"$f":"+VLOOKUP(C32,STEP1!$C$49:$R$61,15,0)","v":{"$error":"#N/A"}},null,{"$f":"+VLOOKUP(C32,STEP2!$U$68:$V$107,2,0)","v":{"$error":"#DIV/0!"}}]
[null,null,"12. Freedom of speech, thought and public participation",{"$nulls":6},{"$f":"+VLOOKUP(C33,STEP1!$C$49:$R$61,15,0)","v":{"$error":"#N/A"}},null,{"$f":"+VLOOKUP(C33,STEP2!$U$68:$V$107,2,0)","v":{"$error":"#DIV/0!"}}]
[null,null,"13. Privacy",{"$nulls":6},{"$f":"+VLOOKUP(C34,STEP1!$C$49:$R$61,15,0)","v":{"$error":"#N/A"}},null,{"$f":"+VLOOKUP(C34,STEP2!$U$68:$V$107,2,0)","v":{"$error":"#DIV/0!"}}]
[]
[]
[null,null,"B","Selection"]
[]
[null,null,"Based on the above analysis, identify at least 3 salient risk areas. External stakeholders typically expect you to prioritise the risk areas where, according to external data,  risks are extreme or high for your product or country in general. So if your selection if your selection does not match that, you should identify the key reasons for this difference."]
[{"$nulls":12},"If the selected risk does not match the prioritisation by the external data please note down the key reasons for the difference below."]
[null,null,"1.",{"$nulls":9},"Reason…"]
[]
[null,null,"2.",{"$nulls":9},"Reason…"]
[]
[null,null,"3.",{"$nulls":9},"Reason…"]
[]
[null,null,"4.",{"$nulls":9},"Reason…"]
[]
[null,null,"5.",{"$nulls":9},"Reason…"]

{"sheet":"STEP4","index":4,"n_rows":136,"n_cols":11,"rows_kept":136,"merged":[[12,1,12,5],[14,1,14,5],[17,2,17,5],[18,2,18,5],[19,2,19,5],[21,2,21,4],[22,2,22,4],[23,2,23,4],[24,2,24,4],[25,2,25,4],[26,2,26,4],[27,2,27,4],[28,2,28,4],[30,1,30,5],[36,1,36,5]]}
{"$rows_empty":10}
[null,"STEP 4","Further assessment "]
[]
[null,"Part A asks you to confirm your risk selection. Please don't forget to click on the button, as the tool will accommodate the table in Part B to only feature the pertinent indicators. If you change your selection, check the changes are reflected and press the button."]
[]
[null,"Part B offers “additional indicators”that help you to take a closer look at your the selected salient risk. This will help you at the next step of HREDD: Developing policies and actions to prevent, mitigate and remediate the salient risks. If you wish, you can also add more indicators at the bottom of the table. To further assess the risks you have to answer the following question for each indicator:"]
[null,"1-","Which group of people are most affected by the risk?"]
[]
[null,null,"To complete this information you can ask yourself which group would be most affected by the consequences or impacts of the problem or risk."]
[null,null,"For example, if your organisation uses chemical pesticides, the group of people most vulnerable to health risks posed by pesticides may be:"]
[null,null,"*Farm operators and workers who apply the pesticides. \n*Children who stay around the farm when pesticides are applied\n*Workers who re-enter the fields too soon after pesticide application\n*Agrochemical store keepers"]
[]
[null,null,"Examples of vulnerable groups"]
[null,null,"Migrant workers or farm operators, who do not speak the local language, or do not know local laws, customs or support channels."]
[null,null,"People from minority groups – for example tribes or religions – that have suffered a long-standing pattern of discrimination."]
[null,null,"Unskilled and low educated people may not be aware of their rights."]
[null,null,"Temporary workers and people living in abject poverty may not be in a position to defend all their own rights."]
[null,null,"Women, girls and youth may not be in a socially accepted position to bring up issues. Economically vulnerable women. Pregnant Women. Workers with children."]
[null,null,"Persons with disabilities"]
[null,null,"Trade union representatives and other Human rights defenders, who defend the rights of specific groups of people"]
[]
[]
[]
[]
[]
[null,"Advice"]
[]
["u","If you see that in the table some cells show the warning sign, don't worry. Ignore it. The reason is that the tool automatically populates the answers for the indicators you have already answered. You will be able to select the options normally for the new indicators. "]
{"$rows_empty":8}
[null,"A","Confirm selection"]
[]
[null,"Do you confirm that these are the risks you selected?"]
[]
[null,"1.",{"$f":"IF(STEP3!D41=\"\",\"N/A\",STEP3!D41)","v":"N/A"}]
[null,"2.",{"$f":"IF(STEP3!D43=\"\",\"N/A\",STEP3!D43)","v":"N/A"}]
[null,"3.",{"$f":"IF(STEP3!D45=\"\",\"N/A\",STEP3!D45)","v":"N/A"}]
[null,"4.",{"$f":"IF(STEP3!D47=\"\",\"N/A\",STEP3!D47)","v":"N/A"}]
[null,"5.",{"$f":"IF(STEP3!D49=\"\",\"N/A\",STEP3!D49)","v":"N/A"}]
[null,null,"Add your own…"]
[]
[]
[null,"B","Indicators"]
[]
[null,"N","Human Rights and Environmental priority areas","Issues that could lead to Human Rights and Environmental violations","How common or likely is this problem or risk?","How serious is this problem or risk?","Most affected persons/groups","Comments on the issue and affected groups","AVERAGE L","AVERAGE I","Risk level of the indicator"]
[null,1,"Living income, living wage","Worker's wages are too low to fulfil their families’ basic needs and housing expenses (food, basic but healthy housing, clothing, basic health care, schooling for children, and small savings for emergencies).",{"$f":"IFERROR(VLOOKUP(STEP4TABLE[[#This Row],[Issues that could lead to Human Rights and Environmental violations]],STEP2TABLE[[Actions or facts that could lead to Human Rights and Environmental violations]:[How serious is this problem or risk?]],2,0),\" \")","v":"Please select option"},"Please select",null,null,{"$f":"+IFERROR(VLOOKUP(E61,Common[],2,0),\"\")","v":""},{"$f":"+IFERROR(VLOOKUP(F61,Serious[],2,0),\"\")","v":""},{"$f":"+IFERROR(INDEX(Tables!$O$165:$S$169,MATCH(STEP4!I61,Tables!$N$165:$N$169,0),MATCH(STEP4!J61,Tables!$O$164:$S$164,0)),\"\")","v":""}]
[null,{"$f":"+B61+1","v":2},"Living income, living wage","Workers’ wages are below official minimum wages, regional average or levels agreed in Collective Bargaining Agreements for agricultural production, whichever is highest.",{"$f":"IFERROR(VLOOKUP(STEP4TABLE[[#This Row],[Issues that could lead to Human Rights and Environmental violations]],STEP2TABLE[[Actions or facts that could lead to Human Rights and Environmental violations]:[How serious is this problem or risk?]],2,0),\" \")","v":"Please select option"},{"$f":"IFERROR(VLOOKUP(STEP4TABLE[[#This Row],[Issues that could lead to Human Rights and Environmental violations]],STEP2TABLE[[Actions or facts that could lead to Human Rights and Environmental violations]:[How serious is this problem or risk?]],3,0),\"\")","v":"Please select option"},null,null,{"$f":"+IFERROR(VLOOKUP(E62,Common[],2,0),\"\")","v":""},{"$f":"+IFERROR(VLOOKUP(F62,Serious[],2,0),\"\")","v":""},{"$f":"+IFERROR(INDEX(Tables!$O$165:$S$169,MATCH(STEP4!I62,Tables!$N$165:$N$169,0),MATCH(STEP4!J62,Tables!$O$164:$S$164,0)),\"\")","v":""}]
[null,{"$f":"+B62+1","v":3},"Living income, living wage","The national minimum wage, regional average or levels agreed in Collective Bargaining Agreements for agricultural production, whichever is highest, do not cover workers' and workers' families' food and housing expenses and all other basic needs.",{"$f":"IFERROR(VLOOKUP(STEP4TABLE[[#This Row],[Issues that could lead to Human Rights and Environmental violations]],STEP2TABLE[[Actions or facts that could lead to Human Rights and Environmental violations]:[How serious is this problem or risk?]],2,0),\" \")","v":"Please select option"},{"$f":"IFERROR(VLOOKUP(STEP4TABLE[[#This Row],[Issues that could lead to Human Rights and Environmental violations]],STEP2TABLE[[Actions or facts that could lead to Human Rights and Environmental violations]:[How serious is this problem or risk?]],3,0),\"\")","v":"Please select option"},null,null,{"$f":"+IFERROR(VLOOKUP(E63,Common[],2,0),\"\")","v":""},{"$f":"+IFERROR(VLOOKUP(F63,Serious[],2,0),\"\")","v":""},{"$f":"+IFERROR(INDEX(Tables!$O$165:$S$169,MATCH(STEP4!I63,Tables!$N$165:$N$169,0),MATCH(STEP4!J63,Tables!$O$164:$S$164,0)),\"\")","v":""}]
[null,{"$f":"+B63+1","v":4},"Living income, living wage","Some workers are paid lower wages than other employees for equal positions/activities (e.g. seasonal workers or workers paid piece-meal)",{"$f":"IFERROR(VLOOKUP(STEP4TABLE[[#This Row],[Issues that could lead to Human Rights and Environmental violations]],STEP2TABLE[[Actions or facts that could lead to Human Rights and Environmental violations]:[How serious is this problem or risk?]],2,0),\" \")","v":" "},{"$f":"IFERROR(VLOOKUP(STEP4TABLE[[#This Row],[Issues that could lead to Human Rights and Environmental violations]],STEP2TABLE[[Actions or facts that could lead to Human Rights and Environmental violations]:[How serious is this problem or risk?]],3,0),\"\")","v":""},null,null,{"$f":"+IFERROR(VLOOKUP(E64,Common[],2,0),\"\")","v":""},{"$f":"+IFERROR(VLOOKUP(F64,Serious[],2,0),\"\")","v":""},{"$f":"+IFERROR(INDEX(Tables!$O$165:$S$169,MATCH(STEP4!I64,Tables!$N$165:$N$169,0),MATCH(STEP4!J64,Tables!$O$164:$S$164,0)),\"\")","v":""}]
[null,{"$f":"+B64+1","v":5},"Living income, living wage","Some payments to workers in the form of non-cash remuneration (housing), allowances or in-kind benefits (products, services, or other gifts) are imposed on workers, or not calculated correctly (over-pricing). Also in the case of accommodations whether the facilities offer reasonable levels of hygiene, privacy and security)",{"$f":"IFERROR(VLOOKUP(STEP4TABLE[[#This Row],[Issues that could lead to Human Rights and Environmental violations]],STEP2TABLE[[Actions or facts that could lead to Human Rights and Environmental violations]:[How serious is this problem or risk?]],2,0),\" \")","v":" "},{"$f":"IFERROR(VLOOKUP(STEP4TABLE[[#This Row],[Issues that could lead to Human Rights and Environmental violations]],STEP2TABLE[[Actions or facts that could lead to Human Rights and Environmental violations]:[How serious is this problem or risk?]],3,0),\"\")","v":""},null,null,{"$f":"+IFERROR(VLOOKUP(E65,Common[],2,0),\"\")","v":""},{"$f":"+IFERROR(VLOOKUP(F65,Serious[],2,0),\"\")","v":""},{"$f":"+IFERROR(INDEX(Tables!$O$165:$S$169,MATCH(STEP4!I65,Tables!$N$165:$N$169,0),MATCH(STEP4!J65,Tables!$O$164:$S$164,0)),\"\")","v":""}]
[null,6,"Living income, living wage","The earnings of farmers, farm operators and farm workers have not been rising in recent years",{"$f":"IFERROR(VLOOKUP(STEP4TABLE[[#This Row],[Issues that could lead to Human Rights and Environmental violations]],STEP2TABLE[[Actions or facts that could lead to Human Rights and Environmental violations]:[How serious is this problem or risk?]],2,0),\" \")","v":" "},{"$f":"IFERROR(VLOOKUP(STEP4TABLE[[#This Row],[Issues that could lead to Human Rights and Environmental violations]],STEP2TABLE[[Actions or facts that could lead to Human Rights and Environmental violations]:[How serious is this problem or risk?]],3,0),\"\")","v":""},null,null,{"$f":"+IFERROR(VLOOKUP(E66,Common[],2,0),\"\")","v":""},{"$f":"+IFERROR(VLOOKUP(F66,Serious[],2,0),\"\")","v":""},{"$f":"+IFERROR(INDEX(Tables!$O$165:$S$169,MATCH(STEP4!I66,Tables!$N$165:$N$169,0),MATCH(STEP4!J66,Tables!$O$164:$S$164,0)),\"\")","v":""}]
[null,7,"Living income, living wage","The pay for production, quota or piece-based work is not transparently calculated",{"$f":"IFERROR(VLOOKUP(STEP4TABLE[[#This Row],[Issues that could lead to Human Rights and Environmental violations]],STEP2TABLE[[Actions or facts that could lead to Human Rights and Environmental violations]:[How serious is this problem or risk?]],2,0),\" \")","v":" "},{"$f":"IFERROR(VLOOKUP(STEP4TABLE[[#This Row],[Issues that could lead to Human Rights and Environmental violations]],STEP2TABLE[[Actions or facts that could lead to Human Rights and Environmental violations]:[How serious is this problem or risk?]],3,0),\"\")","v":""},null,null,{"$f":"+IFERROR(VLOOKUP(E67,Common[],2,0),\"\")","v":""},{"$f":"+IFERROR(VLOOKUP(F67,Serious[],2,0),\"\")","v":""},{"$f":"+IFERROR(INDEX(Tables!$O$165:$S$169,MATCH(STEP4!I67,Tables!$N$165:$N$169,0),MATCH(STEP4!J67,Tables!$O$164:$S$164,0)),\"\")","v":""}]
[null,8,"Working conditions","Workers not have access to clean drinking water and toilets during their workdays.",{"$f":"IFERROR(VLOOKUP(STEP4TABLE[[#This Row],[Issues that could lead to Human Rights and Environmental violations]],STEP2TABLE[[Actions or facts that could lead to Human Rights and Environmental violations]:[How serious is this problem or risk?]],2,0),\" \")","v":" "},{"$f":"IFERROR(VLOOKUP(STEP4TABLE[[#This Row],[Issues that could lead to Human Rights and Environmental violations]],STEP2TABLE[[Actions or facts that could lead to Human Rights and Environmental violations]:[How serious is this problem or risk?]],3,0),\"\")","v":""},null,null,{"$f":"+IFERROR(VLOOKUP(E68,Common[],2,0),\"\")","v":""},{"$f":"+IFERROR(VLOOKUP(F68,Serious[],2,0),\"\")","v":""},{"$f":"+IFERROR(INDEX(Tables!$O$165:$S$169,MATCH(STEP4!I68,Tables!$N$165:$N$169,0),MATCH(STEP4!J68,Tables!$O$164:$S$164,0)),\"\")","v":""}]
[null,9,"Working conditions","Workers have no written contracts of employment.",{"$f":"IFERROR(VLOOKUP(STEP4TABLE[[#This Row],[Issues that could lead to Human Rights and Environmental violations]],STEP2TABLE[[Actions or facts that could lead to Human Rights and Environmental violations]:[How serious is this problem or risk?]],2,0),\" \")","v":"Please select option"},{"$f":"IFERROR(VLOOKUP(STEP4TABLE[[#This Row],[Issues that could lead to Human Rights and Environmental violations]],STEP2TABLE[[Actions or facts that could lead to Human Rights and Environmental violations]:[How serious is this problem or risk?]],3,0),\"\")","v":"Please select option"},null,null,{"$f":"+IFERROR(VLOOKUP(E69,Common[],2,0),\"\")","v":""},{"$f":"+IFERROR(VLOOKUP(F69,Serious[],2,0),\"\")","v":""},{"$f":"+IFERROR(INDEX(Tables!$O$165:$S$169,MATCH(STEP4!I69,Tables!$N$165:$N$169,0),MATCH(STEP4!J69,Tables!$O$164:$S$164,0)),\"\")","v":""}]
[null,10,"Working conditions","Workers have no access or are not provided personal protective equipment (PPE) suitable to operate (e.g., tools, suitable clothes).",{"$f":"IFERROR(VLOOKUP(STEP4TABLE[[#This Row],[Issues that could lead to Human Rights and Environmental violations]],STEP2TABLE[[Actions or facts that could lead to Human Rights and Environmental violations]:[How serious is this problem or risk?]],2,0),\" \")","v":"Please select option"},{"$f":"IFERROR(VLOOKUP(STEP4TABLE[[#This Row],[Issues that could lead to Human Rights and Environmental violations]],STEP2TABLE[[Actions or facts that could lead to Human Rights and Environmental violations]:[How serious is this problem or risk?]],3,0),\"\")","v":"Please select option"},null,null,{"$f":"+IFERROR(VLOOKUP(E70,Common[],2,0),\"\")","v":""},{"$f":"+IFERROR(VLOOKUP(F70,Serious[],2,0),\"\")","v":""},{"$f":"+IFERROR(INDEX(Tables!$O$165:$S$169,MATCH(STEP4!I70,Tables!$N$165:$N$169,0),MATCH(STEP4!J70,Tables!$O$164:$S$164,0)),\"\")","v":""}]
[null,11,"Working conditions","Workers are not paid regularly, on time, and at least monthly.",{"$f":"IFERROR(VLOOKUP(STEP4TABLE[[#This Row],[Issues that could lead to Human Rights and Environmental violations]],STEP2TABLE[[Actions or facts that could lead to Human Rights and Environmental violations]:[How serious is this problem or risk?]],2,0),\" \")","v":"Please select option"},{"$f":"IFERROR(VLOOKUP(STEP4TABLE[[#This Row],[Issues that could lead to Human Rights and Environmental violations]],STEP2TABLE[[Actions or facts that could lead to Human Rights and Environmental violations]:[How serious is this problem or risk?]],3,0),\"\")","v":"Please select option"},null,null,{"$f":"+IFERROR(VLOOKUP(E71,Common[],2,0),\"\")","v":""},{"$f":"+IFERROR(VLOOKUP(F71,Serious[],2,0),\"\")","v":""},{"$f":"+IFERROR(INDEX(Tables!$O$165:$S$169,MATCH(STEP4!I71,Tables!$N$165:$N$169,0),MATCH(STEP4!J71,Tables!$O$164:$S$164,0)),\"\")","v":""}]
[null,{"$f":"+B71+1","v":12},"Working conditions","Workers work more than 60 hours a week (more than 10 hours per day, with one day off per week) and/or do not have one day off for every 6 consecutive days worke",{"$f":"IFERROR(VLOOKUP(STEP4TABLE[[#This Row],[Issues that could lead to Human Rights and Environmental violations]],STEP2TABLE[[Actions or facts that could lead to Human Rights and Environmental violations]:[How serious is this problem or risk?]],2,0),\" \")","v":" "},{"$f":"IFERROR(VLOOKUP(STEP4TABLE[[#This Row],[Issues that could lead to Human Rights and Environmental violations]],STEP2TABLE[[Actions or facts that could lead to Human Rights and Environmental violations]:[How serious is this problem or risk?]],3,0),\"\")","v":""},null,null,{"$f":"+IFERROR(VLOOKUP(E72,Common[],2,0),\"\")","v":""},{"$f":"+IFERROR(VLOOKUP(F72,Serious[],2,0),\"\")","v":""},{"$f":"+IFERROR(INDEX(Tables!$O$165:$S$169,MATCH(STEP4!I72,Tables!$N$165:$N$169,0),MATCH(STEP4!J72,Tables!$O$164:$S$164,0)),\"\")","v":""}]
[null,{"$f":"+B72+1","v":13},"Working conditions","Workers are denied benefits convened in national laws, Collective Bargaining Agreements and agreements with workers’ organisations (e.g., the organisation does not pay the paid leave per year, overtime, or gives fewer maternity leave days than agreed or legally required).",{"$f":"IFERROR(VLOOKUP(STEP4TABLE[[#This Row],[Issues that could lead to Human Rights and Environmental violations]],STEP2TABLE[[Actions or facts that could lead to Human Rights and Environmental violations]:[How serious is this problem or risk?]],2,0),\" \")","v":" "},{"$f":"IFERROR(VLOOKUP(STEP4TABLE[[#This Row],[Issues that could lead to Human Rights and Environmental violations]],STEP2TABLE[[Actions or facts that could lead to Human Rights and Environmental violations]:[How serious is this problem or risk?]],3,0),\"\")","v":""},null,null,{"$f":"+IFERROR(VLOOKUP(E73,Common[],2,0),\"\")","v":""},{"$f":"+IFERROR(VLOOKUP(F73,Serious[],2,0),\"\")","v":""},{"$f":"+IFERROR(INDEX(Tables!$O$165:$S$169,MATCH(STEP4!I73,Tables!$N$165:$N$169,0),MATCH(STEP4!J73,Tables!$O$164:$S$164,0)),\"\")","v":""}]
[null,14,"Health","Work processes, facilities, tools, or machinery are causing frequent injuries, illness, or other health problems to workers. ",{"$f":"IFERROR(VLOOKUP(STEP4TABLE[[#This Row],[Issues that could lead to Human Rights and Environmental violations]],STEP2TABLE[[Actions or facts that could lead to Human Rights and Environmental violations]:[How serious is this problem or risk?]],2,0),\" \")","v":"Please select option"},{"$f":"IFERROR(VLOOKUP(STEP4TABLE[[#This Row],[Issues that could lead to Human Rights and Environmental violations]],STEP2TABLE[[Actions or facts that could lead to Human Rights and Environmental violations]:[How serious is this problem or risk?]],3,0),\"\")","v":"Please select option"},null,null,{"$f":"+IFERROR(VLOOKUP(E74,Common[],2,0),\"\")","v":""},{"$f":"+IFERROR(VLOOKUP(F74,Serious[],2,0),\"\")","v":""},{"$f":"+IFERROR(INDEX(Tables!$O$165:$S$169,MATCH(STEP4!I74,Tables!$N$165:$N$169,0),MATCH(STEP4!J74,Tables!$O$164:$S$164,0)),\"\")","v":""}]
[null,15,"Health","Workers are not sufficiently trained, in particular, those carrying out hazardous positions. ",{"$f":"IFERROR(VLOOKUP(STEP4TABLE[[#This Row],[Issues that could lead to Human Rights and Environmental violations]],STEP2TABLE[[Actions or facts that could lead to Human Rights and Environmental violations]:[How serious is this problem or risk?]],2,0),\" \")","v":"Please select option"},{"$f":"IFERROR(VLOOKUP(STEP4TABLE[[#This Row],[Issues that could lead to Human Rights and Environmental violations]],STEP2TABLE[[Actions or facts that could lead to Human Rights and Environmental violations]:[How serious is this problem or risk?]],3,0),\"\")","v":"Please select option"},null,null,{"$f":"+IFERROR(VLOOKUP(E75,Common[],2,0),\"\")","v":""},{"$f":"+IFERROR(VLOOKUP(F75,Serious[],2,0),\"\")","v":""},{"$f":"+IFERROR(INDEX(Tables!$O$165:$S$169,MATCH(STEP4!I75,Tables!$N$165:$N$169,0),MATCH(STEP4!J75,Tables!$O$164:$S$164,0)),\"\")","v":""}]
[null,{"$f":"+B75+1","v":16},"Health","Farming has polluted local waterways, air or soil, and caused ill-health to some local people.",{"$f":"IFERROR(VLOOKUP(STEP4TABLE[[#This Row],[Issues that could lead to Human Rights and Environmental violations]],STEP2TABLE[[Actions or facts that could lead to Human Rights and Environmental violations]:[How serious is this problem or risk?]],2,0),\" \")","v":"Please select option"},{"$f":"IFERROR(VLOOKUP(STEP4TABLE[[#This Row],[Issues that could lead to Human Rights and Environmental violations]],STEP2TABLE[[Actions or facts that could lead to Human Rights and Environmental violations]:[How serious is this problem or risk?]],3,0),\"\")","v":"Please select option"},null,null,{"$f":"+IFERROR(VLOOKUP(E76,Common[],2,0),\"\")","v":""},{"$f":"+IFERROR(VLOOKUP(F76,Serious[],2,0),\"\")","v":""},{"$f":"+IFERROR(INDEX(Tables!$O$165:$S$169,MATCH(STEP4!I76,Tables!$N$165:$N$169,0),MATCH(STEP4!J76,Tables!$O$164:$S$164,0)),\"\")","v":""}]
[null,17,"Health","Facilities or areas of work do not provide proper lighting, heating or ventilation, fire exits and appropiate equipment. ",{"$f":"IFERROR(VLOOKUP(STEP4TABLE[[#This Row],[Issues that could lead to Human Rights and Environmental violations]],STEP2TABLE[[Actions or facts that could lead to Human Rights and Environmental violations]:[How serious is this problem or risk?]],2,0),\" \")","v":" "},{"$f":"IFERROR(VLOOKUP(STEP4TABLE[[#This Row],[Issues that could lead to Human Rights and Environmental violations]],STEP2TABLE[[Actions or facts that could lead to Human Rights and Environmental violations]:[How serious is this problem or risk?]],3,0),\"\")","v":""},null,null,{"$f":"+IFERROR(VLOOKUP(E77,Common[],2,0),\"\")","v":""},{"$f":"+IFERROR(VLOOKUP(F77,Serious[],2,0),\"\")","v":""},{"$f":"+IFERROR(INDEX(Tables!$O$165:$S$169,MATCH(STEP4!I77,Tables!$N$165:$N$169,0),MATCH(STEP4!J77,Tables!$O$164:$S$164,0)),\"\")","v":""}]
[null,18,"Health","Hazardous chemicals are applied less than 10 meters from housing, canteens or other human activity or above or around water sources",{"$f":"IFERROR(VLOOKUP(STEP4TABLE[[#This Row],[Issues that could lead to Human Rights and Environmental violations]],STEP2TABLE[[Actions or facts that could lead to Human Rights and Environmental violations]:[How serious is this problem or risk?]],2,0),\" \")","v":" "},{"$f":"IFERROR(VLOOKUP(STEP4TABLE[[#This Row],[Issues that could lead to Human Rights and Environmental violations]],STEP2TABLE[[Actions or facts that could lead to Human Rights and Environmental violations]:[How serious is this problem or risk?]],3,0),\"\")","v":""},null,null,{"$f":"+IFERROR(VLOOKUP(E78,Common[],2,0),\"\")","v":""},{"$f":"+IFERROR(VLOOKUP(F78,Serious[],2,0),\"\")","v":""},{"$f":"+IFERROR(INDEX(Tables!$O$165:$S$169,MATCH(STEP4!I78,Tables!$N$165:$N$169,0),MATCH(STEP4!J78,Tables!$O$164:$S$164,0)),\"\")","v":""}]
[null,19,"Health","Hazardous chemicals and other dangerous materials are not stored safely and/or are not disposed appropriately, endangering workers' and other persons' health.",{"$f":"IFERROR(VLOOKUP(STEP4TABLE[[#This Row],[Issues that could lead to Human Rights and Environmental violations]],STEP2TABLE[[Actions or facts that could lead to Human Rights and Environmental violations]:[How serious is this problem or risk?]],2,0),\" \")","v":" "},{"$f":"IFERROR(VLOOKUP(STEP4TABLE[[#This Row],[Issues that could lead to Human Rights and Environmental violations]],STEP2TABLE[[Actions or facts that could lead to Human Rights and Environmental violations]:[How serious is this problem or risk?]],3,0),\"\")","v":""},null,null,{"$f":"+IFERROR(VLOOKUP(E79,Common[],2,0),\"\")","v":""},{"$f":"+IFERROR(VLOOKUP(F79,Serious[],2,0),\"\")","v":""},{"$f":"+IFERROR(INDEX(Tables!$O$165:$S$169,MATCH(STEP4!I79,Tables!$N$165:$N$169,0),MATCH(STEP4!J79,Tables!$O$164:$S$164,0)),\"\")","v":""}]
[null,20,"Health","First aid training is insufficient or equipment not accessible",{"$f":"IFERROR(VLOOKUP(STEP4TABLE[[#This Row],[Issues that could lead to Human Rights and Environmental violations]],STEP2TABLE[[Actions or facts that could lead to Human Rights and Environmental violations]:[How serious is this problem or risk?]],2,0),\" \")","v":" "},{"$f":"IFERROR(VLOOKUP(STEP4TABLE[[#This Row],[Issues that could lead to Human Rights and Environmental violations]],STEP2TABLE[[Actions or facts that could lead to Human Rights and Environmental violations]:[How serious is this problem or risk?]],3,0),\"\")","v":""},null,null,{"$f":"+IFERROR(VLOOKUP(E80,Common[],2,0),\"\")","v":""},{"$f":"+IFERROR(VLOOKUP(F80,Serious[],2,0),\"\")","v":""},{"$f":"+IFERROR(INDEX(Tables!$O$165:$S$169,MATCH(STEP4!I80,Tables!$N$165:$N$169,0),MATCH(STEP4!J80,Tables!$O$164:$S$164,0)),\"\")","v":""}]
[null,21,"Freedom of association and collective bargaining","Workers are not organised, either in trade unions or elected workers’ organisations, and there have been no group negotiations on working conditions.",{"$f":"IFERROR(VLOOKUP(STEP4TABLE[[#This Row],[Issues that could lead to Human Rights and Environmental violations]],STEP2TABLE[[Actions or facts that could lead to Human Rights and Environmental violations]:[How serious is this problem or risk?]],2,0),\" \")","v":"Please select option"},{"$f":"IFERROR(VLOOKUP(STEP4TABLE[[#This Row],[Issues that could lead to Human Rights and Environmental violations]],STEP2TABLE[[Actions or facts that could lead to Human Rights and Environmental violations]:[How serious is this problem or risk?]],3,0),\"\")","v":"Please select option"},null,null,{"$f":"+IFERROR(VLOOKUP(E81,Common[],2,0),\"\")","v":""},{"$f":"+IFERROR(VLOOKUP(F81,Serious[],2,0),\"\")","v":""},{"$f":"+IFERROR(INDEX(Tables!$O$165:$S$169,MATCH(STEP4!I81,Tables!$N$165:$N$169,0),MATCH(STEP4!J81,Tables!$O$164:$S$164,0)),\"\")","v":""}]
[null,22,"Freedom of association and collective bargaining","Workers are discouraged or prevented from joining trade unions (e.g., by not providing time or office space for workers meetings, or preventing unions from meeting with workers).",{"$f":"IFERROR(VLOOKUP(STEP4TABLE[[#This Row],[Issues that could lead to Human Rights and Environmental violations]],STEP2TABLE[[Actions or facts that could lead to Human Rights and Environmental violations]:[How serious is this problem or risk?]],2,0),\" \")","v":"Please select option"},{"$f":"IFERROR(VLOOKUP(STEP4TABLE[[#This Row],[Issues that could lead to Human Rights and Environmental violations]],STEP2TABLE[[Actions or facts that could lead to Human Rights and Environmental violations]:[How serious is this problem or risk?]],3,0),\"\")","v":"Please select option"},null,null,{"$f":"+IFERROR(VLOOKUP(E82,Common[],2,0),\"\")","v":""},{"$f":"+IFERROR(VLOOKUP(F82,Serious[],2,0),\"\")","v":""},{"$f":"+IFERROR(INDEX(Tables!$O$165:$S$169,MATCH(STEP4!I82,Tables!$N$165:$N$169,0),MATCH(STEP4!J82,Tables!$O$164:$S$164,0)),\"\")","v":""}]
[null,23,"Freedom of association and collective bargaining","There are no workers organisations or trade unions in the region where the organisation operates.",{"$f":"IFERROR(VLOOKUP(STEP4TABLE[[#This Row],[Issues that could lead to Human Rights and Environmental violations]],STEP2TABLE[[Actions or facts that could lead to Human Rights and Environmental violations]:[How serious is this problem or risk?]],2,0),\" \")","v":"Please select option"},{"$f":"IFERROR(VLOOKUP(STEP4TABLE[[#This Row],[Issues that could lead to Human Rights and Environmental violations]],STEP2TABLE[[Actions or facts that could lead to Human Rights and Environmental violations]:[How serious is this problem or risk?]],3,0),\"\")","v":"Please select option"},null,null,{"$f":"+IFERROR(VLOOKUP(E83,Common[],2,0),\"\")","v":""},{"$f":"+IFERROR(VLOOKUP(F83,Serious[],2,0),\"\")","v":""},{"$f":"+IFERROR(INDEX(Tables!$O$165:$S$169,MATCH(STEP4!I83,Tables!$N$165:$N$169,0),MATCH(STEP4!J83,Tables!$O$164:$S$164,0)),\"\")","v":""}]
[null,24,"Freedom of association and collective bargaining","Workers have faced retaliation for participating in workers’ organisations or group negotiations on their working conditions",{"$f":"IFERROR(VLOOKUP(STEP4TABLE[[#This Row],[Issues that could lead to Human Rights and Environmental violations]],STEP2TABLE[[Actions or facts that could lead to Human Rights and Environmental violations]:[How serious is this problem or risk?]],2,0),\" \")","v":" "},{"$f":"IFERROR(VLOOKUP(STEP4TABLE[[#This Row],[Issues that could lead to Human Rights and Environmental violations]],STEP2TABLE[[Actions or facts that could lead to Human Rights and Environmental violations]:[How serious is this problem or risk?]],3,0),\"\")","v":""},null,null,{"$f":"+IFERROR(VLOOKUP(E84,Common[],2,0),\"\")","v":""},{"$f":"+IFERROR(VLOOKUP(F84,Serious[],2,0),\"\")","v":""},{"$f":"+IFERROR(INDEX(Tables!$O$165:$S$169,MATCH(STEP4!I84,Tables!$N$165:$N$169,0),MATCH(STEP4!J84,Tables!$O$164:$S$164,0)),\"\")","v":""}]
[null,25,"Freedom of association and collective bargaining","People or groups who have acted peacefully to raise complaints or concerns related to your operations or business partners have been hindered or threatened.",{"$f":"IFERROR(VLOOKUP(STEP4TABLE[[#This Row],[Issues that could lead to Human Rights and Environmental violations]],STEP2TABLE[[Actions or facts that could lead to Human Rights and Environmental violations]:[How serious is this problem or risk?]],2,0),\" \")","v":" "},{"$f":"IFERROR(VLOOKUP(STEP4TABLE[[#This Row],[Issues that could lead to Human Rights and Environmental violations]],STEP2TABLE[[Actions or facts that could lead to Human Rights and Environmental violations]:[How serious is this problem or risk?]],3,0),\"\")","v":""},null,null,{"$f":"+IFERROR(VLOOKUP(E85,Common[],2,0),\"\")","v":""},{"$f":"+IFERROR(VLOOKUP(F85,Serious[],2,0),\"\")","v":""},{"$f":"+IFERROR(INDEX(Tables!$O$165:$S$169,MATCH(STEP4!I85,Tables!$N$165:$N$169,0),MATCH(STEP4!J85,Tables!$O$164:$S$164,0)),\"\")","v":""}]
[null,26,"Forced labour","Some workers are or have been forced to work e.g. due to a debt to the farmer or recruit agency, or inability to return home.",{"$f":"IFERROR(VLOOKUP(STEP4TABLE[[#This Row],[Issues that could lead to Human Rights and Environmental violations]],STEP2TABLE[[Actions or facts that could lead to Human Rights and Environmental violations]:[How serious is this problem or risk?]],2,0),\" \")","v":"Please select option"},{"$f":"IFERROR(VLOOKUP(STEP4TABLE[[#This Row],[Issues that could lead to Human Rights and Environmental violations]],STEP2TABLE[[Actions or facts that could lead to Human Rights and Environmental violations]:[How serious is this problem or risk?]],3,0),\"\")","v":"Please select option"},null,null,{"$f":"+IFERROR(VLOOKUP(E86,Common[],2,0),\"\")","v":""},{"$f":"+IFERROR(VLOOKUP(F86,Serious[],2,0),\"\")","v":""},{"$f":"+IFERROR(INDEX(Tables!$O$165:$S$169,MATCH(STEP4!I86,Tables!$N$165:$N$169,0),MATCH(STEP4!J86,Tables!$O$164:$S$164,0)),\"\")","v":""}]
[null,27,"Forced labour","Some workers are or have been charged with fees for documentation, visa, health checks, transportation, clothing or other requirements as part of their recruitment process",{"$f":"IFERROR(VLOOKUP(STEP4TABLE[[#This Row],[Issues that could lead to Human Rights and Environmental violations]],STEP2TABLE[[Actions or facts that could lead to Human Rights and Environmental violations]:[How serious is this problem or risk?]],2,0),\" \")","v":" "},{"$f":"IFERROR(VLOOKUP(STEP4TABLE[[#This Row],[Issues that could lead to Human Rights and Environmental violations]],STEP2TABLE[[Actions or facts that could lead to Human Rights and Environmental violations]:[How serious is this problem or risk?]],3,0),\"\")","v":""},null,null,{"$f":"+IFERROR(VLOOKUP(E87,Common[],2,0),\"\")","v":""},{"$f":"+IFERROR(VLOOKUP(F87,Serious[],2,0),\"\")","v":""},{"$f":"+IFERROR(INDEX(Tables!$O$165:$S$169,MATCH(STEP4!I87,Tables!$N$165:$N$169,0),MATCH(STEP4!J87,Tables!$O$164:$S$164,0)),\"\")","v":""}]
[null,28,"Forced labour","Workers’ identity documents have been withheld by your organisation, some of your members or members’ farm operators",{"$f":"IFERROR(VLOOKUP(STEP4TABLE[[#This Row],[Issues that could lead to Human Rights and Environmental violations]],STEP2TABLE[[Actions or facts that could lead to Human Rights and Environmental violations]:[How serious is this problem or risk?]],2,0),\" \")","v":" "},{"$f":"IFERROR(VLOOKUP(STEP4TABLE[[#This Row],[Issues that could lead to Human Rights and Environmental violations]],STEP2TABLE[[Actions or facts that could lead to Human Rights and Environmental violations]:[How serious is this problem or risk?]],3,0),\"\")","v":""},null,null,{"$f":"+IFERROR(VLOOKUP(E88,Common[],2,0),\"\")","v":""},{"$f":"+IFERROR(VLOOKUP(F88,Serious[],2,0),\"\")","v":""},{"$f":"+IFERROR(INDEX(Tables!$O$165:$S$169,MATCH(STEP4!I88,Tables!$N$165:$N$169,0),MATCH(STEP4!J88,Tables!$O$164:$S$164,0)),\"\")","v":""}]
[null,29,"Forced labour","Some deductions from wages are inconsistent with the actual cost of business-related services or are used for disciplinary purposes.",{"$f":"IFERROR(VLOOKUP(STEP4TABLE[[#This Row],[Issues that could lead to Human Rights and Environmental violations]],STEP2TABLE[[Actions or facts that could lead to Human Rights and Environmental violations]:[How serious is this problem or risk?]],2,0),\" \")","v":" "},{"$f":"IFERROR(VLOOKUP(STEP4TABLE[[#This Row],[Issues that could lead to Human Rights and Environmental violations]],STEP2TABLE[[Actions or facts that could lead to Human Rights and Environmental violations]:[How serious is this problem or risk?]],3,0),\"\")","v":""},null,null,{"$f":"+IFERROR(VLOOKUP(E89,Common[],2,0),\"\")","v":""},{"$f":"+IFERROR(VLOOKUP(F89,Serious[],2,0),\"\")","v":""},{"$f":"+IFERROR(INDEX(Tables!$O$165:$S$169,MATCH(STEP4!I89,Tables!$N$165:$N$169,0),MATCH(STEP4!J89,Tables!$O$164:$S$164,0)),\"\")","v":""}]
[null,30,"Forced labour","Lack of procedures in place for identifying and addressing trafficking, debt bondage and forced labour.",{"$f":"IFERROR(VLOOKUP(STEP4TABLE[[#This Row],[Issues that could lead to Human Rights and Environmental violations]],STEP2TABLE[[Actions or facts that could lead to Human Rights and Environmental violations]:[How serious is this problem or risk?]],2,0),\" \")","v":" "},{"$f":"IFERROR(VLOOKUP(STEP4TABLE[[#This Row],[Issues that could lead to Human Rights and Environmental violations]],STEP2TABLE[[Actions or facts that could lead to Human Rights and Environmental violations]:[How serious is this problem or risk?]],3,0),\"\")","v":""},null,null,{"$f":"+IFERROR(VLOOKUP(E90,Common[],2,0),\"\")","v":""},{"$f":"+IFERROR(VLOOKUP(F90,Serious[],2,0),\"\")","v":""},{"$f":"+IFERROR(INDEX(Tables!$O$165:$S$169,MATCH(STEP4!I90,Tables!$N$165:$N$169,0),MATCH(STEP4!J90,Tables!$O$164:$S$164,0)),\"\")","v":""}]
[null,31,"Child protection and child rights","Some workers are under 18 years of age (legally allowed to work)  but perform tasks that are appropriate for adults (e.g., applying chemicals, carrying heavy bags), or occupy positions that were not adapted for youth employment (e.g., children do not apply chemicals but work in the same area where chemicals are applied).",{"$f":"IFERROR(VLOOKUP(STEP4TABLE[[#This Row],[Issues that could lead to Human Rights and Environmental violations]],STEP2TABLE[[Actions or facts that could lead to Human Rights and Environmental violations]:[How serious is this problem or risk?]],2,0),\" \")","v":" "},{"$f":"IFERROR(VLOOKUP(STEP4TABLE[[#This Row],[Issues that could lead to Human Rights and Environmental violations]],STEP2TABLE[[Actions or facts that could lead to Human Rights and Environmental violations]:[How serious is this problem or risk?]],3,0),\"\")","v":""},null,null,{"$f":"+IFERROR(VLOOKUP(E91,Common[],2,0),\"\")","v":""},{"$f":"+IFERROR(VLOOKUP(F91,Serious[],2,0),\"\")","v":""},{"$f":"+IFERROR(INDEX(Tables!$O$165:$S$169,MATCH(STEP4!I91,Tables!$N$165:$N$169,0),MATCH(STEP4!J91,Tables!$O$164:$S$164,0)),\"\")","v":""}]
[null,32,"Child protection and child rights","Some workers are below 15 years or the minimum legal age in your country (wichever is lower).",{"$f":"IFERROR(VLOOKUP(STEP4TABLE[[#This Row],[Issues that could lead to Human Rights and Environmental violations]],STEP2TABLE[[Actions or facts that could lead to Human Rights and Environmental violations]:[How serious is this problem or risk?]],2,0),\" \")","v":"Please select option"},{"$f":"IFERROR(VLOOKUP(STEP4TABLE[[#This Row],[Issues that could lead to Human Rights and Environmental violations]],STEP2TABLE[[Actions or facts that could lead to Human Rights and Environmental violations]:[How serious is this problem or risk?]],3,0),\"\")","v":"Please select option"},null,null,{"$f":"+IFERROR(VLOOKUP(E92,Common[],2,0),\"\")","v":""},{"$f":"+IFERROR(VLOOKUP(F92,Serious[],2,0),\"\")","v":""},{"$f":"+IFERROR(INDEX(Tables!$O$165:$S$169,MATCH(STEP4!I92,Tables!$N$165:$N$169,0),MATCH(STEP4!J92,Tables!$O$164:$S$164,0)),\"\")","v":""}]
[null,33,"Child protection and child rights","Some workers’ children cannot attend school. This can include for instance migrant boys or girls.",{"$f":"IFERROR(VLOOKUP(STEP4TABLE[[#This Row],[Issues that could lead to Human Rights and Environmental violations]],STEP2TABLE[[Actions or facts that could lead to Human Rights and Environmental violations]:[How serious is this problem or risk?]],2,0),\" \")","v":"Please select option"},{"$f":"IFERROR(VLOOKUP(STEP4TABLE[[#This Row],[Issues that could lead to Human Rights and Environmental violations]],STEP2TABLE[[Actions or facts that could lead to Human Rights and Environmental violations]:[How serious is this problem or risk?]],3,0),\"\")","v":"Please select option"},null,null,{"$f":"+IFERROR(VLOOKUP(E93,Common[],2,0),\"\")","v":""},{"$f":"+IFERROR(VLOOKUP(F93,Serious[],2,0),\"\")","v":""},{"$f":"+IFERROR(INDEX(Tables!$O$165:$S$169,MATCH(STEP4!I93,Tables!$N$165:$N$169,0),MATCH(STEP4!J93,Tables!$O$164:$S$164,0)),\"\")","v":""}]
[null,34,"Child protection and child rights","There are no schools available for free or at an affordable price in the community close to where workers live, and/or schools facilities are innadequate.",{"$f":"IFERROR(VLOOKUP(STEP4TABLE[[#This Row],[Issues that could lead to Human Rights and Environmental violations]],STEP2TABLE[[Actions or facts that could lead to Human Rights and Environmental violations]:[How serious is this problem or risk?]],2,0),\" \")","v":"Please select option"},{"$f":"IFERROR(VLOOKUP(STEP4TABLE[[#This Row],[Issues that could lead to Human Rights and Environmental violations]],STEP2TABLE[[Actions or facts that could lead to Human Rights and Environmental violations]:[How serious is this problem or risk?]],3,0),\"\")","v":"Please select option"},null,null,{"$f":"+IFERROR(VLOOKUP(E94,Common[],2,0),\"\")","v":""},{"$f":"+IFERROR(VLOOKUP(F94,Serious[],2,0),\"\")","v":""},{"$f":"+IFERROR(INDEX(Tables!$O$165:$S$169,MATCH(STEP4!I94,Tables!$N$165:$N$169,0),MATCH(STEP4!J94,Tables!$O$164:$S$164,0)),\"\")","v":""}]
[null,35,"Child protection and child rights","Lack of child labour monitoring and remediation system.",{"$f":"IFERROR(VLOOKUP(STEP4TABLE[[#This Row],[Issues that could lead to Human Rights and Environmental violations]],STEP2TABLE[[Actions or facts that could lead to Human Rights and Environmental violations]:[How serious is this problem or risk?]],2,0),\" \")","v":" "},{"$f":"IFERROR(VLOOKUP(STEP4TABLE[[#This Row],[Issues that could lead to Human Rights and Environmental violations]],STEP2TABLE[[Actions or facts that could lead to Human Rights and Environmental violations]:[How serious is this problem or risk?]],3,0),\"\")","v":""},null,null,{"$f":"+IFERROR(VLOOKUP(E95,Common[],2,0),\"\")","v":""},{"$f":"+IFERROR(VLOOKUP(F95,Serious[],2,0),\"\")","v":""},{"$f":"+IFERROR(INDEX(Tables!$O$165:$S$169,MATCH(STEP4!I95,Tables!$N$165:$N$169,0),MATCH(STEP4!J95,Tables!$O$164:$S$164,0)),\"\")","v":""}]
[null,36,"Child protection and child rights","Lack of grievance mechanisms accessible for children.",{"$f":"IFERROR(VLOOKUP(STEP4TABLE[[#This Row],[Issues that could lead to Human Rights and Environmental violations]],STEP2TABLE[[Actions or facts that could lead to Human Rights and Environmental violations]:[How serious is this problem or risk?]],2,0),\" \")","v":" "},{"$f":"IFERROR(VLOOKUP(STEP4TABLE[[#This Row],[Issues that could lead to Human Rights and Environmental violations]],STEP2TABLE[[Actions or facts that could lead to Human Rights and Environmental violations]:[How serious is this problem or risk?]],3,0),\"\")","v":""},null,null,{"$f":"+IFERROR(VLOOKUP(E96,Common[],2,0),\"\")","v":""},{"$f":"+IFERROR(VLOOKUP(F96,Serious[],2,0),\"\")","v":""},{"$f":"+IFERROR(INDEX(Tables!$O$165:$S$169,MATCH(STEP4!I96,Tables!$N$165:$N$169,0),MATCH(STEP4!J96,Tables!$O$164:$S$164,0)),\"\")","v":""}]
[null,37,"Child protection and child rights","Some children who have been withdrawn from harmful work at farms have entered even worse forms of labour like illicit activities or sex work",{"$f":"IFERROR(VLOOKUP(STEP4TABLE[[#This Row],[Issues that could lead to Human Rights and Environmental violations]],STEP2TABLE[[Actions or facts that could lead to Human Rights and Environmental violations]:[How serious is this problem or risk?]],2,0),\" \")","v":" "},{"$f":"IFERROR(VLOOKUP(STEP4TABLE[[#This Row],[Issues that could lead to Human Rights and Environmental violations]],STEP2TABLE[[Actions or facts that could lead to Human Rights and Environmental violations]:[How serious is this problem or risk?]],3,0),\"\")","v":""},null,null,{"$f":"+IFERROR(VLOOKUP(E97,Common[],2,0),\"\")","v":""},{"$f":"+IFERROR(VLOOKUP(F97,Serious[],2,0),\"\")","v":""},{"$f":"+IFERROR(INDEX(Tables!$O$165:$S$169,MATCH(STEP4!I97,Tables!$N$165:$N$169,0),MATCH(STEP4!J97,Tables!$O$164:$S$164,0)),\"\")","v":""}]
[null,38,"Gender rights","Women or people with underrepresented gender are or have suffered harassment or abusive behaviour in the organisation. This can be physical, sexual, verbal (e.g., intimidating or abusive gestures or language), or psychological",{"$f":"IFERROR(VLOOKUP(STEP4TABLE[[#This Row],[Issues that could lead to Human Rights and Environmental violations]],STEP2TABLE[[Actions or facts that could lead to Human Rights and Environmental violations]:[How serious is this problem or risk?]],2,0),\" \")","v":" "},{"$f":"IFERROR(VLOOKUP(STEP4TABLE[[#This Row],[Issues that could lead to Human Rights and Environmental violations]],STEP2TABLE[[Actions or facts that could lead to Human Rights and Environmental violations]:[How serious is this problem or risk?]],3,0),\"\")","v":""},null,null,{"$f":"+IFERROR(VLOOKUP(E98,Common[],2,0),\"\")","v":""},{"$f":"+IFERROR(VLOOKUP(F98,Serious[],2,0),\"\")","v":""},{"$f":"+IFERROR(INDEX(Tables!$O$165:$S$169,MATCH(STEP4!I98,Tables!$N$165:$N$169,0),MATCH(STEP4!J98,Tables!$O$164:$S$164,0)),\"\")","v":""}]
[null,39,"Gender rights","Among employees, women earn less than men for the same tasks.",{"$f":"IFERROR(VLOOKUP(STEP4TABLE[[#This Row],[Issues that could lead to Human Rights and Environmental violations]],STEP2TABLE[[Actions or facts that could lead to Human Rights and Environmental violations]:[How serious is this problem or risk?]],2,0),\" \")","v":"Please select option"},{"$f":"IFERROR(VLOOKUP(STEP4TABLE[[#This Row],[Issues that could lead to Human Rights and Environmental violations]],STEP2TABLE[[Actions or facts that could lead to Human Rights and Environmental violations]:[How serious is this problem or risk?]],3,0),\"\")","v":"Please select option"},null,null,{"$f":"+IFERROR(VLOOKUP(E99,Common[],2,0),\"\")","v":""},{"$f":"+IFERROR(VLOOKUP(F99,Serious[],2,0),\"\")","v":""},{"$f":"+IFERROR(INDEX(Tables!$O$165:$S$169,MATCH(STEP4!I99,Tables!$N$165:$N$169,0),MATCH(STEP4!J99,Tables!$O$164:$S$164,0)),\"\")","v":""}]
[null,40,"Gender rights","Female workers or workers with underrepresented gender have no access to effective grievance mechanisms.",{"$f":"IFERROR(VLOOKUP(STEP4TABLE[[#This Row],[Issues that could lead to Human Rights and Environmental violations]],STEP2TABLE[[Actions or facts that could lead to Human Rights and Environmental violations]:[How serious is this problem or risk?]],2,0),\" \")","v":"Please select option"},{"$f":"IFERROR(VLOOKUP(STEP4TABLE[[#This Row],[Issues that could lead to Human Rights and Environmental violations]],STEP2TABLE[[Actions or facts that could lead to Human Rights and Environmental violations]:[How serious is this problem or risk?]],3,0),\"\")","v":"Please select option"},null,null,{"$f":"+IFERROR(VLOOKUP(E100,Common[],2,0),\"\")","v":""},{"$f":"+IFERROR(VLOOKUP(F100,Serious[],2,0),\"\")","v":""},{"$f":"+IFERROR(INDEX(Tables!$O$165:$S$169,MATCH(STEP4!I100,Tables!$N$165:$N$169,0),MATCH(STEP4!J100,Tables!$O$164:$S$164,0)),\"\")","v":""}]
[null,41,"Gender rights","Employees and farm workers gain less than 8 weeks of maternity leave or get less than 2/3 regular pay during the leave",{"$f":"IFERROR(VLOOKUP(STEP4TABLE[[#This Row],[Issues that could lead to Human Rights and Environmental violations]],STEP2TABLE[[Actions or facts that could lead to Human Rights and Environmental violations]:[How serious is this problem or risk?]],2,0),\" \")","v":" "},{"$f":"IFERROR(VLOOKUP(STEP4TABLE[[#This Row],[Issues that could lead to Human Rights and Environmental violations]],STEP2TABLE[[Actions or facts that could lead to Human Rights and Environmental violations]:[How serious is this problem or risk?]],3,0),\"\")","v":""},null,null,{"$f":"+IFERROR(VLOOKUP(E101,Common[],2,0),\"\")","v":""},{"$f":"+IFERROR(VLOOKUP(F101,Serious[],2,0),\"\")","v":""},{"$f":"+IFERROR(INDEX(Tables!$O$165:$S$169,MATCH(STEP4!I101,Tables!$N$165:$N$169,0),MATCH(STEP4!J101,Tables!$O$164:$S$164,0)),\"\")","v":""}]
[null,42,"Gender rights","Mothers are not granted a paid break for nursing or other benefits provided by law or agreements (e.g., the option to work shorter days until their child is 9 months old)",{"$f":"IFERROR(VLOOKUP(STEP4TABLE[[#This Row],[Issues that could lead to Human Rights and Environmental violations]],STEP2TABLE[[Actions or facts that could lead to Human Rights and Environmental violations]:[How serious is this problem or risk?]],2,0),\" \")","v":" "},{"$f":"IFERROR(VLOOKUP(STEP4TABLE[[#This Row],[Issues that could lead to Human Rights and Environmental violations]],STEP2TABLE[[Actions or facts that could lead to Human Rights and Environmental violations]:[How serious is this problem or risk?]],3,0),\"\")","v":""},null,null,{"$f":"+IFERROR(VLOOKUP(E102,Common[],2,0),\"\")","v":""},{"$f":"+IFERROR(VLOOKUP(F102,Serious[],2,0),\"\")","v":""},{"$f":"+IFERROR(INDEX(Tables!$O$165:$S$169,MATCH(STEP4!I102,Tables!$N$165:$N$169,0),MATCH(STEP4!J102,Tables!$O$164:$S$164,0)),\"\")","v":""}]
[null,43,"Gender rights","Grievances on sexual harassment are being dismissed and not resolved.",{"$f":"IFERROR(VLOOKUP(STEP4TABLE[[#This Row],[Issues that could lead to Human Rights and Environmental violations]],STEP2TABLE[[Actions or facts that could lead to Human Rights and Environmental violations]:[How serious is this problem or risk?]],2,0),\" \")","v":" "},{"$f":"IFERROR(VLOOKUP(STEP4TABLE[[#This Row],[Issues that could lead to Human Rights and Environmental violations]],STEP2TABLE[[Actions or facts that could lead to Human Rights and Environmental violations]:[How serious is this problem or risk?]],3,0),\"\")","v":""},null,null,{"$f":"+IFERROR(VLOOKUP(E103,Common[],2,0),\"\")","v":""},{"$f":"+IFERROR(VLOOKUP(F103,Serious[],2,0),\"\")","v":""},{"$f":"+IFERROR(INDEX(Tables!$O$165:$S$169,MATCH(STEP4!I103,Tables!$N$165:$N$169,0),MATCH(STEP4!J103,Tables!$O$164:$S$164,0)),\"\")","v":""}]
[null,44,"Gender rights","Women or people with underrepresented gender have less opportunity than others to become your employee, participate in desition making, be part of committees or Board.",{"$f":"IFERROR(VLOOKUP(STEP4TABLE[[#This Row],[Issues that could lead to Human Rights and Environmental violations]],STEP2TABLE[[Actions or facts that could lead to Human Rights and Environmental violations]:[How serious is this problem or risk?]],2,0),\" \")","v":" "},{"$f":"IFERROR(VLOOKUP(STEP4TABLE[[#This Row],[Issues that could lead to Human Rights and Environmental violations]],STEP2TABLE[[Actions or facts that could lead to Human Rights and Environmental violations]:[How serious is this problem or risk?]],3,0),\"\")","v":""},null,null,{"$f":"+IFERROR(VLOOKUP(E104,Common[],2,0),\"\")","v":""},{"$f":"+IFERROR(VLOOKUP(F104,Serious[],2,0),\"\")","v":""},{"$f":"+IFERROR(INDEX(Tables!$O$165:$S$169,MATCH(STEP4!I104,Tables!$N$165:$N$169,0),MATCH(STEP4!J104,Tables!$O$164:$S$164,0)),\"\")","v":""}]
[null,45,"Gender rights","Grievances on sexual harassment are being dismissed and not resolved.",{"$f":"IFERROR(VLOOKUP(STEP4TABLE[[#This Row],[Issues that could lead to Human Rights and Environmental violations]],STEP2TABLE[[Actions or facts that could lead to Human Rights and Environmental violations]:[How serious is this problem or risk?]],2,0),\" \")","v":" "},{"$f":"IFERROR(VLOOKUP(STEP4TABLE[[#This Row],[Issues that could lead to Human Rights and Environmental violations]],STEP2TABLE[[Actions or facts that could lead to Human Rights and Environmental violations]:[How serious is this problem or risk?]],3,0),\"\")","v":""},null,null,{"$f":"+IFERROR(VLOOKUP(E105,Common[],2,0),\"\")","v":""},{"$f":"+IFERROR(VLOOKUP(F105,Serious[],2,0),\"\")","v":""},{"$f":"+IFERROR(INDEX(Tables!$O$165:$S$169,MATCH(STEP4!I105,Tables!$N$165:$N$169,0),MATCH(STEP4!J105,Tables!$O$164:$S$164,0)),\"\")","v":""}]
[null,46,"Non-discrimination","Some groups of workers have lower pay, opportunities to be recruited, and promoted, and less participation in decision-making in the organisation. This could be for example migrants, sharecroppers, youth, or some ethnic or religious group",{"$f":"IFERROR(VLOOKUP(STEP4TABLE[[#This Row],[Issues that could lead to Human Rights and Environmental violations]],STEP2TABLE[[Actions or facts that could lead to Human Rights and Environmental violations]:[How serious is this problem or risk?]],2,0),\" \")","v":" "},{"$f":"IFERROR(VLOOKUP(STEP4TABLE[[#This Row],[Issues that could lead to Human Rights and Environmental violations]],STEP2TABLE[[Actions or facts that could lead to Human Rights and Environmental violations]:[How serious is this problem or risk?]],3,0),\"\")","v":""},null,null,{"$f":"+IFERROR(VLOOKUP(E106,Common[],2,0),\"\")","v":""},{"$f":"+IFERROR(VLOOKUP(F106,Serious[],2,0),\"\")","v":""},{"$f":"+IFERROR(INDEX(Tables!$O$165:$S$169,MATCH(STEP4!I106,Tables!$N$165:$N$169,0),MATCH(STEP4!J106,Tables!$O$164:$S$164,0)),\"\")","v":""}]
[null,47,"Non-discrimination","Seasonal, migrant or other groups of workers have lower pay or benefits than permanent, local workers",{"$f":"IFERROR(VLOOKUP(STEP4TABLE[[#This Row],[Issues that could lead to Human Rights and Environmental violations]],STEP2TABLE[[Actions or facts that could lead to Human Rights and Environmental violations]:[How serious is this problem or risk?]],2,0),\" \")","v":" "},{"$f":"IFERROR(VLOOKUP(STEP4TABLE[[#This Row],[Issues that could lead to Human Rights and Environmental violations]],STEP2TABLE[[Actions or facts that could lead to Human Rights and Environmental violations]:[How serious is this problem or risk?]],3,0),\"\")","v":""},null,null,{"$f":"+IFERROR(VLOOKUP(E107,Common[],2,0),\"\")","v":""},{"$f":"+IFERROR(VLOOKUP(F107,Serious[],2,0),\"\")","v":""},{"$f":"+IFERROR(INDEX(Tables!$O$165:$S$169,MATCH(STEP4!I107,Tables!$N$165:$N$169,0),MATCH(STEP4!J107,Tables!$O$164:$S$164,0)),\"\")","v":""}]
[null,48,"Non-discrimination","Recruitment agencies hired by the organisation do not have written policies and clear procedures for preventing discrimination.",{"$f":"IFERROR(VLOOKUP(STEP4TABLE[[#This Row],[Issues that could lead to Human Rights and Environmental violations]],STEP2TABLE[[Actions or facts that could lead to Human Rights and Environmental violations]:[How serious is this problem or risk?]],2,0),\" \")","v":"Please select option"},{"$f":"IFERROR(VLOOKUP(STEP4TABLE[[#This Row],[Issues that could lead to Human Rights and Environmental violations]],STEP2TABLE[[Actions or facts that could lead to Human Rights and Environmental violations]:[How serious is this problem or risk?]],3,0),\"\")","v":"Please select option"},null,null,{"$f":"+IFERROR(VLOOKUP(E108,Common[],2,0),\"\")","v":""},{"$f":"+IFERROR(VLOOKUP(F108,Serious[],2,0),\"\")","v":""},{"$f":"+IFERROR(INDEX(Tables!$O$165:$S$169,MATCH(STEP4!I108,Tables!$N$165:$N$169,0),MATCH(STEP4!J108,Tables!$O$164:$S$164,0)),\"\")","v":""}]
[null,49,"Non-discrimination","Lack of policies, programmes, and procedures to ensure equal treatment to all staff and workers",{"$f":"IFERROR(VLOOKUP(STEP4TABLE[[#This Row],[Issues that could lead to Human Rights and Environmental violations]],STEP2TABLE[[Actions or facts that could lead to Human Rights and Environmental violations]:[How serious is this problem or risk?]],2,0),\" \")","v":" "},{"$f":"IFERROR(VLOOKUP(STEP4TABLE[[#This Row],[Issues that could lead to Human Rights and Environmental violations]],STEP2TABLE[[Actions or facts that could lead to Human Rights and Environmental violations]:[How serious is this problem or risk?]],3,0),\"\")","v":""},null,null,{"$f":"+IFERROR(VLOOKUP(E109,Common[],2,0),\"\")","v":""},{"$f":"+IFERROR(VLOOKUP(F109,Serious[],2,0),\"\")","v":""},{"$f":"+IFERROR(INDEX(Tables!$O$165:$S$169,MATCH(STEP4!I109,Tables!$N$165:$N$169,0),MATCH(STEP4!J109,Tables!$O$164:$S$164,0)),\"\")","v":""}]
[null,50,"Non-discrimination","Vulnerable groups are carrying out hazardous work ",{"$f":"IFERROR(VLOOKUP(STEP4TABLE[[#This Row],[Issues that could lead to Human Rights and Environmental violations]],STEP2TABLE[[Actions or facts that could lead to Human Rights and Environmental violations]:[How serious is this problem or risk?]],2,0),\" \")","v":" "},{"$f":"IFERROR(VLOOKUP(STEP4TABLE[[#This Row],[Issues that could lead to Human Rights and Environmental violations]],STEP2TABLE[[Actions or facts that could lead to Human Rights and Environmental violations]:[How serious is this problem or risk?]],3,0),\"\")","v":""},null,null,{"$f":"+IFERROR(VLOOKUP(E110,Common[],2,0),\"\")","v":""},{"$f":"+IFERROR(VLOOKUP(F110,Serious[],2,0),\"\")","v":""},{"$f":"+IFERROR(INDEX(Tables!$O$165:$S$169,MATCH(STEP4!I110,Tables!$N$165:$N$169,0),MATCH(STEP4!J110,Tables!$O$164:$S$164,0)),\"\")","v":""}]
[null,51,"Non-discrimination","The Fairtrade premium are not utilised fairly",{"$f":"IFERROR(VLOOKUP(STEP4TABLE[[#This Row],[Issues that could lead to Human Rights and Environmental violations]],STEP2TABLE[[Actions or facts that could lead to Human Rights and Environmental violations]:[How serious is this problem or risk?]],2,0),\" \")","v":" "},{"$f":"IFERROR(VLOOKUP(STEP4TABLE[[#This Row],[Issues that could lead to Human Rights and Environmental violations]],STEP2TABLE[[Actions or facts that could lead to Human Rights and Environmental violations]:[How serious is this problem or risk?]],3,0),\"\")","v":""},null,null,{"$f":"+IFERROR(VLOOKUP(E111,Common[],2,0),\"\")","v":""},{"$f":"+IFERROR(VLOOKUP(F111,Serious[],2,0),\"\")","v":""},{"$f":"+IFERROR(INDEX(Tables!$O$165:$S$169,MATCH(STEP4!I111,Tables!$N$165:$N$169,0),MATCH(STEP4!J111,Tables!$O$164:$S$164,0)),\"\")","v":""}]
[null,52,"Self-determination","Some workers are required to stay in housing controlled by the employer or a broker.",{"$f":"IFERROR(VLOOKUP(STEP4TABLE[[#This Row],[Issues that could lead to Human Rights and Environmental violations]],STEP2TABLE[[Actions or facts that could lead to Human Rights and Environmental violations]:[How serious is this problem or risk?]],2,0),\" \")","v":"Please select option"},{"$f":"IFERROR(VLOOKUP(STEP4TABLE[[#This Row],[Issues that could lead to Human Rights and Environmental violations]],STEP2TABLE[[Actions or facts that could lead to Human Rights and Environmental violations]:[How serious is this problem or risk?]],3,0),\"\")","v":"Please select option"},null,null,{"$f":"+IFERROR(VLOOKUP(E112,Common[],2,0),\"\")","v":""},{"$f":"+IFERROR(VLOOKUP(F112,Serious[],2,0),\"\")","v":""},{"$f":"+IFERROR(INDEX(Tables!$O$165:$S$169,MATCH(STEP4!I112,Tables!$N$165:$N$169,0),MATCH(STEP4!J112,Tables!$O$164:$S$164,0)),\"\")","v":""}]
[null,53,"Self-determination","The organisation has acquired land, especially indigenous people's land, without proper consultation with the local population or without the free, prior and informed consent of those concerned.",{"$f":"IFERROR(VLOOKUP(STEP4TABLE[[#This Row],[Issues that could lead to Human Rights and Environmental violations]],STEP2TABLE[[Actions or facts that could lead to Human Rights and Environmental violations]:[How serious is this problem or risk?]],2,0),\" \")","v":"Please select option"},{"$f":"IFERROR(VLOOKUP(STEP4TABLE[[#This Row],[Issues that could lead to Human Rights and Environmental violations]],STEP2TABLE[[Actions or facts that could lead to Human Rights and Environmental violations]:[How serious is this problem or risk?]],3,0),\"\")","v":"Please select option"},null,null,{"$f":"+IFERROR(VLOOKUP(E113,Common[],2,0),\"\")","v":""},{"$f":"+IFERROR(VLOOKUP(F113,Serious[],2,0),\"\")","v":""},{"$f":"+IFERROR(INDEX(Tables!$O$165:$S$169,MATCH(STEP4!I113,Tables!$N$165:$N$169,0),MATCH(STEP4!J113,Tables!$O$164:$S$164,0)),\"\")","v":""}]
[null,54,"Self-determination","The organisation has unresolved land disputes, and no legal resolution process is active",{"$f":"IFERROR(VLOOKUP(STEP4TABLE[[#This Row],[Issues that could lead to Human Rights and Environmental violations]],STEP2TABLE[[Actions or facts that could lead to Human Rights and Environmental violations]:[How serious is this problem or risk?]],2,0),\" \")","v":" "},{"$f":"IFERROR(VLOOKUP(STEP4TABLE[[#This Row],[Issues that could lead to Human Rights and Environmental violations]],STEP2TABLE[[Actions or facts that could lead to Human Rights and Environmental violations]:[How serious is this problem or risk?]],3,0),\"\")","v":""},null,null,{"$f":"+IFERROR(VLOOKUP(E114,Common[],2,0),\"\")","v":""},{"$f":"+IFERROR(VLOOKUP(F114,Serious[],2,0),\"\")","v":""},{"$f":"+IFERROR(INDEX(Tables!$O$165:$S$169,MATCH(STEP4!I114,Tables!$N$165:$N$169,0),MATCH(STEP4!J114,Tables!$O$164:$S$164,0)),\"\")","v":""}]
[null,55,"Self-determination","Some groups’ cultural heritage has been damaged by the operations or your organisation or members.",{"$f":"IFERROR(VLOOKUP(STEP4TABLE[[#This Row],[Issues that could lead to Human Rights and Environmental violations]],STEP2TABLE[[Actions or facts that could lead to Human Rights and Environmental violations]:[How serious is this problem or risk?]],2,0),\" \")","v":" "},{"$f":"IFERROR(VLOOKUP(STEP4TABLE[[#This Row],[Issues that could lead to Human Rights and Environmental violations]],STEP2TABLE[[Actions or facts that could lead to Human Rights and Environmental violations]:[How serious is this problem or risk?]],3,0),\"\")","v":""},null,null,{"$f":"+IFERROR(VLOOKUP(E115,Common[],2,0),\"\")","v":""},{"$f":"+IFERROR(VLOOKUP(F115,Serious[],2,0),\"\")","v":""},{"$f":"+IFERROR(INDEX(Tables!$O$165:$S$169,MATCH(STEP4!I115,Tables!$N$165:$N$169,0),MATCH(STEP4!J115,Tables!$O$164:$S$164,0)),\"\")","v":""}]
[null,56,"Climate resilience","The organisation is or has been involved in deforestation or practices that result in significant loss of vegetation and biodiversity. ",{"$f":"IFERROR(VLOOKUP(STEP4TABLE[[#This Row],[Issues that could lead to Human Rights and Environmental violations]],STEP2TABLE[[Actions or facts that could lead to Human Rights and Environmental violations]:[How serious is this problem or risk?]],2,0),\" \")","v":"Please select option"},{"$f":"IFERROR(VLOOKUP(STEP4TABLE[[#This Row],[Issues that could lead to Human Rights and Environmental violations]],STEP2TABLE[[Actions or facts that could lead to Human Rights and Environmental violations]:[How serious is this problem or risk?]],3,0),\"\")","v":"Please select option"},null,null,{"$f":"+IFERROR(VLOOKUP(E116,Common[],2,0),\"\")","v":""},{"$f":"+IFERROR(VLOOKUP(F116,Serious[],2,0),\"\")","v":""},{"$f":"+IFERROR(INDEX(Tables!$O$165:$S$169,MATCH(STEP4!I116,Tables!$N$165:$N$169,0),MATCH(STEP4!J116,Tables!$O$164:$S$164,0)),\"\")","v":""}]
[null,57,"Climate resilience","The organisation is or has caused the degradation of protected areas and in areas with high conservation value, or have not complied with national legislation on agricultural land use. ",{"$f":"IFERROR(VLOOKUP(STEP4TABLE[[#This Row],[Issues that could lead to Human Rights and Environmental violations]],STEP2TABLE[[Actions or facts that could lead to Human Rights and Environmental violations]:[How serious is this problem or risk?]],2,0),\" \")","v":"Please select option"},{"$f":"IFERROR(VLOOKUP(STEP4TABLE[[#This Row],[Issues that could lead to Human Rights and Environmental violations]],STEP2TABLE[[Actions or facts that could lead to Human Rights and Environmental violations]:[How serious is this problem or risk?]],3,0),\"\")","v":"Please select option"},null,null,{"$f":"+IFERROR(VLOOKUP(E117,Common[],2,0),\"\")","v":""},{"$f":"+IFERROR(VLOOKUP(F117,Serious[],2,0),\"\")","v":""},{"$f":"+IFERROR(INDEX(Tables!$O$165:$S$169,MATCH(STEP4!I117,Tables!$N$165:$N$169,0),MATCH(STEP4!J117,Tables!$O$164:$S$164,0)),\"\")","v":""}]
[null,58,"Climate resilience","Land in the organisation's area is at high risk of soil erosion or you are not aware if this is the case",{"$f":"IFERROR(VLOOKUP(STEP4TABLE[[#This Row],[Issues that could lead to Human Rights and Environmental violations]],STEP2TABLE[[Actions or facts that could lead to Human Rights and Environmental violations]:[How serious is this problem or risk?]],2,0),\" \")","v":" "},{"$f":"IFERROR(VLOOKUP(STEP4TABLE[[#This Row],[Issues that could lead to Human Rights and Environmental violations]],STEP2TABLE[[Actions or facts that could lead to Human Rights and Environmental violations]:[How serious is this problem or risk?]],3,0),\"\")","v":""},null,null,{"$f":"+IFERROR(VLOOKUP(E118,Common[],2,0),\"\")","v":""},{"$f":"+IFERROR(VLOOKUP(F118,Serious[],2,0),\"\")","v":""},{"$f":"+IFERROR(INDEX(Tables!$O$165:$S$169,MATCH(STEP4!I118,Tables!$N$165:$N$169,0),MATCH(STEP4!J118,Tables!$O$164:$S$164,0)),\"\")","v":""}]
[null,59,"Climate resilience","Activities, processes, and facilities use non-renewable energy.",{"$f":"IFERROR(VLOOKUP(STEP4TABLE[[#This Row],[Issues that could lead to Human Rights and Environmental violations]],STEP2TABLE[[Actions or facts that could lead to Human Rights and Environmental violations]:[How serious is this problem or risk?]],2,0),\" \")","v":" "},{"$f":"IFERROR(VLOOKUP(STEP4TABLE[[#This Row],[Issues that could lead to Human Rights and Environmental violations]],STEP2TABLE[[Actions or facts that could lead to Human Rights and Environmental violations]:[How serious is this problem or risk?]],3,0),\"\")","v":""},null,null,{"$f":"+IFERROR(VLOOKUP(E119,Common[],2,0),\"\")","v":""},{"$f":"+IFERROR(VLOOKUP(F119,Serious[],2,0),\"\")","v":""},{"$f":"+IFERROR(INDEX(Tables!$O$165:$S$169,MATCH(STEP4!I119,Tables!$N$165:$N$169,0),MATCH(STEP4!J119,Tables!$O$164:$S$164,0)),\"\")","v":""}]
[null,60,"Climate resilience","There is no adaptation and mitigation to climate change plan or strategy",{"$f":"IFERROR(VLOOKUP(STEP4TABLE[[#This Row],[Issues that could lead to Human Rights and Environmental violations]],STEP2TABLE[[Actions or facts that could lead to Human Rights and Environmental violations]:[How serious is this problem or risk?]],2,0),\" \")","v":" "},{"$f":"IFERROR(VLOOKUP(STEP4TABLE[[#This Row],[Issues that could lead to Human Rights and Environmental violations]],STEP2TABLE[[Actions or facts that could lead to Human Rights and Environmental violations]:[How serious is this problem or risk?]],3,0),\"\")","v":""},null,null,{"$f":"+IFERROR(VLOOKUP(E120,Common[],2,0),\"\")","v":""},{"$f":"+IFERROR(VLOOKUP(F120,Serious[],2,0),\"\")","v":""},{"$f":"+IFERROR(INDEX(Tables!$O$165:$S$169,MATCH(STEP4!I120,Tables!$N$165:$N$169,0),MATCH(STEP4!J120,Tables!$O$164:$S$164,0)),\"\")","v":""}]
[null,61,"Water and biodiversity","The organisation uses or has used in the past materials prohibited by Fairtrade (e.g., pesticides and herbicides included in the red list).",{"$f":"IFERROR(VLOOKUP(STEP4TABLE[[#This Row],[Issues that could lead to Human Rights and Environmental violations]],STEP2TABLE[[Actions or facts that could lead to Human Rights and Environmental violations]:[How serious is this problem or risk?]],2,0),\" \")","v":" "},{"$f":"IFERROR(VLOOKUP(STEP4TABLE[[#This Row],[Issues that could lead to Human Rights and Environmental violations]],STEP2TABLE[[Actions or facts that could lead to Human Rights and Environmental violations]:[How serious is this problem or risk?]],3,0),\"\")","v":""},null,null,{"$f":"+IFERROR(VLOOKUP(E121,Common[],2,0),\"\")","v":""},{"$f":"+IFERROR(VLOOKUP(F121,Serious[],2,0),\"\")","v":""},{"$f":"+IFERROR(INDEX(Tables!$O$165:$S$169,MATCH(STEP4!I121,Tables!$N$165:$N$169,0),MATCH(STEP4!J121,Tables!$O$164:$S$164,0)),\"\")","v":""}]
[null,62,"Water and biodiversity","The organisation causes or has caused in the past leaks to soil or water in case of spills or accidents with hazardous chemicals. ",{"$f":"IFERROR(VLOOKUP(STEP4TABLE[[#This Row],[Issues that could lead to Human Rights and Environmental violations]],STEP2TABLE[[Actions or facts that could lead to Human Rights and Environmental violations]:[How serious is this problem or risk?]],2,0),\" \")","v":" "},{"$f":"IFERROR(VLOOKUP(STEP4TABLE[[#This Row],[Issues that could lead to Human Rights and Environmental violations]],STEP2TABLE[[Actions or facts that could lead to Human Rights and Environmental violations]:[How serious is this problem or risk?]],3,0),\"\")","v":""},null,null,{"$f":"+IFERROR(VLOOKUP(E122,Common[],2,0),\"\")","v":""},{"$f":"+IFERROR(VLOOKUP(F122,Serious[],2,0),\"\")","v":""},{"$f":"+IFERROR(INDEX(Tables!$O$165:$S$169,MATCH(STEP4!I122,Tables!$N$165:$N$169,0),MATCH(STEP4!J122,Tables!$O$164:$S$164,0)),\"\")","v":""}]
[null,63,"Water and biodiversity","The organisation overuses water through production.",{"$f":"IFERROR(VLOOKUP(STEP4TABLE[[#This Row],[Issues that could lead to Human Rights and Environmental violations]],STEP2TABLE[[Actions or facts that could lead to Human Rights and Environmental violations]:[How serious is this problem or risk?]],2,0),\" \")","v":" "},{"$f":"IFERROR(VLOOKUP(STEP4TABLE[[#This Row],[Issues that could lead to Human Rights and Environmental violations]],STEP2TABLE[[Actions or facts that could lead to Human Rights and Environmental violations]:[How serious is this problem or risk?]],3,0),\"\")","v":""},null,null,{"$f":"+IFERROR(VLOOKUP(E123,Common[],2,0),\"\")","v":""},{"$f":"+IFERROR(VLOOKUP(F123,Serious[],2,0),\"\")","v":""},{"$f":"+IFERROR(INDEX(Tables!$O$165:$S$169,MATCH(STEP4!I123,Tables!$N$165:$N$169,0),MATCH(STEP4!J123,Tables!$O$164:$S$164,0)),\"\")","v":""}]
[null,64,"Water and biodiversity","The organisation overuses chemical pesticides or fertilisers.",{"$f":"IFERROR(VLOOKUP(STEP4TABLE[[#This Row],[Issues that could lead to Human Rights and Environmental violations]],STEP2TABLE[[Actions or facts that could lead to Human Rights and Environmental violations]:[How serious is this problem or risk?]],2,0),\" \")","v":" "},{"$f":"IFERROR(VLOOKUP(STEP4TABLE[[#This Row],[Issues that could lead to Human Rights and Environmental violations]],STEP2TABLE[[Actions or facts that could lead to Human Rights and Environmental violations]:[How serious is this problem or risk?]],3,0),\"\")","v":""},null,null,{"$f":"+IFERROR(VLOOKUP(E124,Common[],2,0),\"\")","v":""},{"$f":"+IFERROR(VLOOKUP(F124,Serious[],2,0),\"\")","v":""},{"$f":"+IFERROR(INDEX(Tables!$O$165:$S$169,MATCH(STEP4!I124,Tables!$N$165:$N$169,0),MATCH(STEP4!J124,Tables!$O$164:$S$164,0)),\"\")","v":""}]
[null,65,"Water and biodiversity","Water resources in the are are being contaminated or depleted.",{"$f":"IFERROR(VLOOKUP(STEP4TABLE[[#This Row],[Issues that could lead to Human Rights and Environmental violations]],STEP2TABLE[[Actions or facts that could lead to Human Rights and Environmental violations]:[How serious is this problem or risk?]],2,0),\" \")","v":" "},{"$f":"IFERROR(VLOOKUP(STEP4TABLE[[#This Row],[Issues that could lead to Human Rights and Environmental violations]],STEP2TABLE[[Actions or facts that could lead to Human Rights and Environmental violations]:[How serious is this problem or risk?]],3,0),\"\")","v":""},null,null,{"$f":"+IFERROR(VLOOKUP(E125,Common[],2,0),\"\")","v":""},{"$f":"+IFERROR(VLOOKUP(F125,Serious[],2,0),\"\")","v":""},{"$f":"+IFERROR(INDEX(Tables!$O$165:$S$169,MATCH(STEP4!I125,Tables!$N$165:$N$169,0),MATCH(STEP4!J125,Tables!$O$164:$S$164,0)),\"\")","v":""}]
[null,66,"Water and biodiversity","The organisation uses or has used in the past GMOs (genetically modified organisms)",{"$f":"IFERROR(VLOOKUP(STEP4TABLE[[#This Row],[Issues that could lead to Human Rights and Environmental violations]],STEP2TABLE[[Actions or facts that could lead to Human Rights and Environmental violations]:[How serious is this problem or risk?]],2,0),\" \")","v":" "},{"$f":"IFERROR(VLOOKUP(STEP4TABLE[[#This Row],[Issues that could lead to Human Rights and Environmental violations]],STEP2TABLE[[Actions or facts that could lead to Human Rights and Environmental violations]:[How serious is this problem or risk?]],3,0),\"\")","v":""},null,null,{"$f":"+IFERROR(VLOOKUP(E126,Common[],2,0),\"\")","v":""},{"$f":"+IFERROR(VLOOKUP(F126,Serious[],2,0),\"\")","v":""},{"$f":"+IFERROR(INDEX(Tables!$O$165:$S$169,MATCH(STEP4!I126,Tables!$N$165:$N$169,0),MATCH(STEP4!J126,Tables!$O$164:$S$164,0)),\"\")","v":""}]
[null,67,"Water and biodiversity","The organisation has been engaged in collecting and hunting rare or endengerade species.",{"$f":"IFERROR(VLOOKUP(STEP4TABLE[[#This Row],[Issues that could lead to Human Rights and Environmental violations]],STEP2TABLE[[Actions or facts that could lead to Human Rights and Environmental violations]:[How serious is this problem or risk?]],2,0),\" \")","v":" "},{"$f":"IFERROR(VLOOKUP(STEP4TABLE[[#This Row],[Issues that could lead to Human Rights and Environmental violations]],STEP2TABLE[[Actions or facts that could lead to Human Rights and Environmental violations]:[How serious is this problem or risk?]],3,0),\"\")","v":""},null,null,{"$f":"+IFERROR(VLOOKUP(E127,Common[],2,0),\"\")","v":""},{"$f":"+IFERROR(VLOOKUP(F127,Serious[],2,0),\"\")","v":""},{"$f":"+IFERROR(INDEX(Tables!$O$165:$S$169,MATCH(STEP4!I127,Tables!$N$165:$N$169,0),MATCH(STEP4!J127,Tables!$O$164:$S$164,0)),\"\")","v":""}]
[null,68,"Water and biodiversity","The organisation has introduced alien invasive species in the area of operation.",{"$f":"IFERROR(VLOOKUP(STEP4TABLE[[#This Row],[Issues that could lead to Human Rights and Environmental violations]],STEP2TABLE[[Actions or facts that could lead to Human Rights and Environmental violations]:[How serious is this problem or risk?]],2,0),\" \")","v":" "},{"$f":"IFERROR(VLOOKUP(STEP4TABLE[[#This Row],[Issues that could lead to Human Rights and Environmental violations]],STEP2TABLE[[Actions or facts that could lead to Human Rights and Environmental violations]:[How serious is this problem or risk?]],3,0),\"\")","v":""},null,null,{"$f":"+IFERROR(VLOOKUP(E128,Common[],2,0),\"\")","v":""},{"$f":"+IFERROR(VLOOKUP(F128,Serious[],2,0),\"\")","v":""},{"$f":"+IFERROR(INDEX(Tables!$O$165:$S$169,MATCH(STEP4!I128,Tables!$N$165:$N$169,0),MATCH(STEP4!J128,Tables!$O$164:$S$164,0)),\"\")","v":""}]
[null,69,"Freedom of speech, thought and public participation","Workers' representatives are not or have not been invited to the General Assembly to participate in discussions.",{"$f":"IFERROR(VLOOKUP(STEP4TABLE[[#This Row],[Issues that could lead to Human Rights and Environmental violations]],STEP2TABLE[[Actions or facts that could lead to Human Rights and Environmental violations]:[How serious is this problem or risk?]],2,0),\" \")","v":"Please select option"},{"$f":"IFERROR(VLOOKUP(STEP4TABLE[[#This Row],[Issues that could lead to Human Rights and Environmental violations]],STEP2TABLE[[Actions or facts that could lead to Human Rights and Environmental violations]:[How serious is this problem or risk?]],3,0),\"\")","v":"Please select option"},null,null,{"$f":"+IFERROR(VLOOKUP(E129,Common[],2,0),\"\")","v":""},{"$f":"+IFERROR(VLOOKUP(F129,Serious[],2,0),\"\")","v":""},{"$f":"+IFERROR(INDEX(Tables!$O$165:$S$169,MATCH(STEP4!I129,Tables!$N$165:$N$169,0),MATCH(STEP4!J129,Tables!$O$164:$S$164,0)),\"\")","v":""}]
[null,70,"Freedom of speech, thought and public participation","Workers who have brought forward concerns or criticism related to the organisation's operations have faced retaliation from your organisation or other members.",{"$f":"IFERROR(VLOOKUP(STEP4TABLE[[#This Row],[Issues that could lead to Human Rights and Environmental violations]],STEP2TABLE[[Actions or facts that could lead to Human Rights and Environmental violations]:[How serious is this problem or risk?]],2,0),\" \")","v":" "},{"$f":"IFERROR(VLOOKUP(STEP4TABLE[[#This Row],[Issues that could lead to Human Rights and Environmental violations]],STEP2TABLE[[Actions or facts that could lead to Human Rights and Environmental violations]:[How serious is this problem or risk?]],3,0),\"\")","v":""},null,null,{"$f":"+IFERROR(VLOOKUP(E130,Common[],2,0),\"\")","v":""},{"$f":"+IFERROR(VLOOKUP(F130,Serious[],2,0),\"\")","v":""},{"$f":"+IFERROR(INDEX(Tables!$O$165:$S$169,MATCH(STEP4!I130,Tables!$N$165:$N$169,0),MATCH(STEP4!J130,Tables!$O$164:$S$164,0)),\"\")","v":""}]
[null,71,"Freedom of speech, thought and public participation","Expressions of hatred or action against some groups of people have been tolerated or made by the management, staff or committees of your organisation",{"$f":"IFERROR(VLOOKUP(STEP4TABLE[[#This Row],[Issues that could lead to Human Rights and Environmental violations]],STEP2TABLE[[Actions or facts that could lead to Human Rights and Environmental violations]:[How serious is this problem or risk?]],2,0),\" \")","v":" "},{"$f":"IFERROR(VLOOKUP(STEP4TABLE[[#This Row],[Issues that could lead to Human Rights and Environmental violations]],STEP2TABLE[[Actions or facts that could lead to Human Rights and Environmental violations]:[How serious is this problem or risk?]],3,0),\"\")","v":""},null,null,{"$f":"+IFERROR(VLOOKUP(E131,Common[],2,0),\"\")","v":""},{"$f":"+IFERROR(VLOOKUP(F131,Serious[],2,0),\"\")","v":""},{"$f":"+IFERROR(INDEX(Tables!$O$165:$S$169,MATCH(STEP4!I131,Tables!$N$165:$N$169,0),MATCH(STEP4!J131,Tables!$O$164:$S$164,0)),\"\")","v":""}]
[null,72,"Freedom of speech, thought and public participation","Workers get no time off for their religious holidays or for voting in elections",{"$f":"IFERROR(VLOOKUP(STEP4TABLE[[#This Row],[Issues that could lead to Human Rights and Environmental violations]],STEP2TABLE[[Actions or facts that could lead to Human Rights and Environmental violations]:[How serious is this problem or risk?]],2,0),\" \")","v":" "},{"$f":"IFERROR(VLOOKUP(STEP4TABLE[[#This Row],[Issues that could lead to Human Rights and Environmental violations]],STEP2TABLE[[Actions or facts that could lead to Human Rights and Environmental violations]:[How serious is this problem or risk?]],3,0),\"\")","v":""},null,null,{"$f":"+IFERROR(VLOOKUP(E132,Common[],2,0),\"\")","v":""},{"$f":"+IFERROR(VLOOKUP(F132,Serious[],2,0),\"\")","v":""},{"$f":"+IFERROR(INDEX(Tables!$O$165:$S$169,MATCH(STEP4!I132,Tables!$N$165:$N$169,0),MATCH(STEP4!J132,Tables!$O$164:$S$164,0)),\"\")","v":""}]
[null,73,"Freedom of speech, thought and public participation","The organisation has used improper influence or bribery over public officials, political decision makers, business partners, judges or witnesses",{"$f":"IFERROR(VLOOKUP(STEP4TABLE[[#This Row],[Issues that could lead to Human Rights and Environmental violations]],STEP2TABLE[[Actions or facts that could lead to Human Rights and Environmental violations]:[How serious is this problem or risk?]],2,0),\" \")","v":" "},{"$f":"IFERROR(VLOOKUP(STEP4TABLE[[#This Row],[Issues that could lead to Human Rights and Environmental violations]],STEP2TABLE[[Actions or facts that could lead to Human Rights and Environmental violations]:[How serious is this problem or risk?]],3,0),\"\")","v":""},null,null,{"$f":"+IFERROR(VLOOKUP(E133,Common[],2,0),\"\")","v":""},{"$f":"+IFERROR(VLOOKUP(F133,Serious[],2,0),\"\")","v":""},{"$f":"+IFERROR(INDEX(Tables!$O$165:$S$169,MATCH(STEP4!I133,Tables!$N$165:$N$169,0),MATCH(STEP4!J133,Tables!$O$164:$S$164,0)),\"\")","v":""}]
[null,74,"Privacy","The organisation, or third parties hired by the organisation (e.g., recruitment agencies), test workers candidates for pregnancy, some diseases or genetic problems during recruitment or employment.",{"$f":"IFERROR(VLOOKUP(STEP4TABLE[[#This Row],[Issues that could lead to Human Rights and Environmental violations]],STEP2TABLE[[Actions or facts that could lead to Human Rights and Environmental violations]:[How serious is this problem or risk?]],2,0),\" \")","v":" "},{"$f":"IFERROR(VLOOKUP(STEP4TABLE[[#This Row],[Issues that could lead to Human Rights and Environmental violations]],STEP2TABLE[[Actions or facts that could lead to Human Rights and Environmental violations]:[How serious is this problem or risk?]],3,0),\"\")","v":""},null,null,{"$f":"+IFERROR(VLOOKUP(E134,Common[],2,0),\"\")","v":""},{"$f":"+IFERROR(VLOOKUP(F134,Serious[],2,0),\"\")","v":""},{"$f":"+IFERROR(INDEX(Tables!$O$165:$S$169,MATCH(STEP4!I134,Tables!$N$165:$N$169,0),MATCH(STEP4!J134,Tables!$O$164:$S$164,0)),\"\")","v":""}]
[null,75,"Privacy","The organisation divulges or has in the past disclosed private/confidential information from workers without their permission.",null,{"$f":"IFERROR(VLOOKUP(STEP4TABLE[[#This Row],[Issues that could lead to Human Rights and Environmental violations]],STEP2TABLE[[Actions or facts that could lead to Human Rights and Environmental violations]:[How serious is this problem or risk?]],3,0),\"\")","v":""},null,null,{"$f":"+IFERROR(VLOOKUP(E135,Common[],2,0),\"\")","v":""},{"$f":"+IFERROR(VLOOKUP(F135,Serious[],2,0),\"\")","v":""},{"$f":"+IFERROR(INDEX(Tables!$O$165:$S$169,MATCH(STEP4!I135,Tables!$N$165:$N$169,0),MATCH(STEP4!J135,Tables!$O$164:$S$164,0)),\"\")","v":""}]
[null,{"$f":"+B135+1","v":76},"Add your own…","Insert your indicators in the following row",{"$nulls":4},{"$f":"+IFERROR(VLOOKUP(E136,Common[],2,0),\"\")","v":""},{"$f":"+IFERROR(VLOOKUP(F136,Serious[],2,0),\"\")","v":""},{"$f":"+IFERROR(INDEX(Tables!$O$165:$S$169,MATCH(STEP4!I136,Tables!$N$165:$N$169,0),MATCH(STEP4!J136,Tables!$O$164:$S$164,0)),\"\")","v":""}]

{"sheet":"Tables","index":5,"n_rows":177,"n_cols":19,"rows_kept":177,"hidden":true}
{"$rows_empty":161}
[{"$nulls":15},"Impact"]
[null,"Vulnerable groups","How common","Column1","How serious","Column1","HRE Areas",null,"Leverage",{"$nulls":5},"Serious","Major","Moderate","Minor","Minimum"]
[null,"Migrant workers or farm operators who do not speak the local language.","Please select option",{"$f":"+\"\"","v":""},"Please select option",{"$f":"+\"\"","v":""},{"$nulls":6},"Matrix",null,5,4,3,2,1]
[null,"Migrant workers or farm operators who are unfamiliar with local laws, customs, or support channels.","Very high",5,"Serious",5,"Living income, living wage",null,"Yes",{"$nulls":3},"Very high",5,"Extreme Risk","Extreme Risk","High Risk","Medium Risk","Medium Risk"]
[null,"People from minority groups – for example tribes or religions – that have suffered a long-standing pattern of discrimination.","High",4,"Major",4,"Working conditions",null,"No",{"$nulls":3},"High",4,"Extreme Risk","Extreme Risk","High Risk","Medium Risk","Low Risk"]
[null,"Unskilled and low-educated individuals who may not be aware of their rights.","Medium",3,"Moderate",3,"Health",{"$nulls":5},"Medium",3,"Extreme Risk","High Risk","High Risk","Medium Risk","Low Risk"]
[null,"Temporary workers who may face challenges in defending their rights due to their temporary status.","Low",2,"Minor",2,"Freedom of association and collective bargaining",{"$nulls":5},"Low",2,"Extreme Risk","High Risk","Medium Risk","Low Risk","Low Risk"]
[null,"Women, girls who may not be in a socially accepted position to bring up issues.","Very low",1,"Minimum",1,"Forced labour",{"$nulls":5},"Very low",1,"High Risk","Medium Risk","Medium Risk","Low Risk","Low Risk"]
[null,"Economically vulnerable women, including pregnant women, who may experience additional challenges.",{"$nulls":4},"Child protection and child rights"]
[null,"Youth who may not be in a socially accepted position to bring up issues.",{"$nulls":4},"Gender rights"]
[null,"Workers with children.",{"$nulls":4},"Non-discrimination"]
[null,"Individuals with disabilities.",{"$nulls":4},"Self-determination"]
[null,"Trade union representatives and other Human rights defenders, who defend the rights of specific groups of people.",{"$nulls":4},"Climate emissions and deforestation"]
[null,"Other…",{"$nulls":4},"Water and biodiversity"]
[{"$nulls":6},"Freedom of speech, thought and public participation"]
[{"$nulls":6},"Privacy"]

{"sheet":"Results","index":6,"n_rows":76,"n_cols":17,"rows_kept":76,"merged":[[6,11,6,12],[10,1,10,3],[17,5,17,7],[18,1,18,4],[19,1,19,4],[20,1,20,4],[21,1,21,4],[22,1,22,4],[23,1,23,4],[24,1,24,4],[25,1,25,4],[26,1,26,4],[27,1,27,4],[28,1,28,4],[29,1,29,4],[30,1,30,4],[31,1,31,4],[36,5,36,7],[36,11,36,12],[37,1,37,4],[38,2,38,4],[39,2,39,4],[40,2,40,4],[41,2,41,4],[42,2,42,4],[43,2,43,4],[44,2,44,4],[45,2,45,4],[46,2,46,4],[47,2,47,4],[48,2,48,4],[49,2,49,4],[50,2,50,4],[55,3,55,7],[57,1,61,1],[75,1,75,8]]}
{"$rows_empty":10}
[null,"RESULTS"]
[]
[]
[null,"The results of the risk assessment you have carried out are as follows:"]
[]
[null,"1-","Country and products risks"]
[]
[{"$nulls":5},"External data final score"]
[null,"Human rights and environmental areas ",{"$nulls":3},"Product 1","Product 2","Country","Final"]
[null,"1. Living income, living wage",{"$nulls":3},{"$f":"+STEP1!J49","v":{"$error":"#N/A"}},{"$f":"+STEP1!L49","v":"No data"},{"$f":"+STEP1!N49","v":{"$error":"#N/A"}},{"$f":"+STEP1!Q49","v":{"$error":"#N/A"}}]
[null,"2. Working conditions",{"$nulls":3},{"$f":"+STEP1!J50","v":{"$error":"#N/A"}},{"$f":"+STEP1!L50","v":"No data"},{"$f":"+STEP1!N50","v":{"$error":"#N/A"}},{"$f":"+STEP1!Q50","v":{"$error":"#N/A"}}]
[null,"3. Health",{"$nulls":3},{"$f":"+STEP1!J51","v":{"$error":"#N/A"}},{"$f":"+STEP1!L51","v":"No data"},{"$f":"+STEP1!N51","v":{"$error":"#N/A"}},{"$f":"+STEP1!Q51","v":{"$error":"#N/A"}}]
[null,"4. Freedom of association and collective bargaining",{"$nulls":3},{"$f":"+STEP1!J52","v":{"$error":"#N/A"}},{"$f":"+STEP1!L52","v":"No data"},{"$f":"+STEP1!N52","v":{"$error":"#N/A"}},{"$f":"+STEP1!Q52","v":{"$error":"#N/A"}}]
[null,"5. Forced labour",{"$nulls":3},{"$f":"+STEP1!J53","v":{"$error":"#N/A"}},{"$f":"+STEP1!L53","v":"No data"},{"$f":"+STEP1!N53","v":{"$error":"#N/A"}},{"$f":"+STEP1!Q53","v":{"$error":"#N/A"}}]
[null,"6. Child protection and child rights",{"$nulls":3},{"$f":"+STEP1!J54","v":{"$error":"#N/A"}},{"$f":"+STEP1!L54","v":"No data"},{"$f":"+STEP1!N54","v":{"$error":"#N/A"}},{"$f":"+STEP1!Q54","v":{"$error":"#N/A"}}]
[null,"7. Gender rights",{"$nulls":3},{"$f":"+STEP1!J55","v":{"$error":"#N/A"}},{"$f":"+STEP1!L55","v":"No data"},{"$f":"+STEP1!N55","v":{"$error":"#N/A"}},{"$f":"+STEP1!Q55","v":{"$error":"#N/A"}}]
[null,"8. Non-discrimination",{"$nulls":3},{"$f":"+STEP1!J56","v":{"$error":"#N/A"}},{"$f":"+STEP1!L56","v":"No data"},{"$f":"+STEP1!N56","v":{"$error":"#N/A"}},{"$f":"+STEP1!Q56","v":{"$error":"#N/A"}}]
[null,"9. Self-determination",{"$nulls":3},{"$f":"+STEP1!J57","v":{"$error":"#N/A"}},{"$f":"+STEP1!L57","v":"No data"},{"$f":"+STEP1!N57","v":{"$error":"#N/A"}},{"$f":"+STEP1!Q57","v":{"$error":"#N/A"}}]
[null,"10. Climate emissions and deforestation",{"$nulls":3},{"$f":"+STEP1!J58","v":{"$error":"#N/A"}},{"$f":"+STEP1!L58","v":"No data"},{"$f":"+STEP1!N58","v":{"$error":"#N/A"}},{"$f":"+STEP1!Q58","v":{"$error":"#N/A"}}]
[null,"11. Water and biodiversity",{"$nulls":3},{"$f":"+STEP1!J59","v":{"$error":"#N/A"}},{"$f":"+STEP1!L59","v":"No data"},{"$f":"+STEP1!N59","v":{"$error":"#N/A"}},{"$f":"+STEP1!Q59","v":{"$error":"#N/A"}}]
[null,"12. Freedom of speech, thought and public participation",{"$nulls":3},{"$f":"+STEP1!J60","v":{"$error":"#N/A"}},{"$f":"+STEP1!L60","v":"No data"},{"$f":"+STEP1!N60","v":{"$error":"#N/A"}},{"$f":"+STEP1!Q60","v":{"$error":"#N/A"}}]
[null,"13. Privacy",{"$nulls":3},{"$f":"+STEP1!J61","v":{"$error":"#N/A"}},{"$f":"+STEP1!L61","v":"No data"},{"$f":"+STEP1!N61","v":{"$error":"#N/A"}},{"$f":"+STEP1!Q61","v":{"$error":"#N/A"}}]
[]
[]
[null,"2-","Your organisation assesment of the human rights and environmental areas"]
[]
[{"$nulls":5},"Your organisation results",{"$nulls":5},"Control"]
[null,"Human rights and environmental areas ",{"$nulls":3},"Likelihood","Seriousness","Risk level",{"$nulls":3},"Likelihood","Seriousness"]
[null,"1.","Living income, living wage",null,null,{"$f":"+VLOOKUP(L39,$O$40:$Q$44,2,0)","v":{"$error":"#DIV/0!"}},{"$f":"+VLOOKUP(M39,$O$40:$Q$44,3,0)","v":{"$error":"#DIV/0!"}},{"$f":"+VLOOKUP(C39,STEP2TABLE[[#All],[Human Rights and Environmental priority areas]:[Risk level of the human rights and environmental area]],20,0)","v":{"$error":"#DIV/0!"}},{"$nulls":3},{"$f":"+VLOOKUP(C39,STEP2TABLE[[Human Rights and Environmental priority areas]:[AVERAGE I RISK]],17,0)","v":{"$error":"#DIV/0!"}},{"$f":"+VLOOKUP(C39,STEP2TABLE[[Human Rights and Environmental priority areas]:[AVERAGE I RISK]],18,0)","v":{"$error":"#DIV/0!"}},null,"Number","How common","How serious"]
[null,"2.","Working conditions",null,null,{"$error":"#DIV/0!"},{"$error":"#DIV/0!"},{"$f":"+VLOOKUP(C40,STEP2TABLE[[#All],[Human Rights and Environmental priority areas]:[Risk level of the human rights and environmental area]],20,0)","v":{"$error":"#DIV/0!"}},{"$nulls":3},{"$f":"+VLOOKUP(C40,STEP2TABLE[[Human Rights and Environmental priority areas]:[AVERAGE I RISK]],17,0)","v":{"$error":"#DIV/0!"}},{"$f":"+VLOOKUP(C40,STEP2TABLE[[Human Rights and Environmental priority areas]:[AVERAGE I RISK]],18,0)","v":{"$error":"#DIV/0!"}},null,5,"Very high","Serious"]
[null,"3.","Health",null,null,{"$error":"#DIV/0!"},{"$error":"#DIV/0!"},{"$f":"+VLOOKUP(C41,STEP2TABLE[[#All],[Human Rights and Environmental priority areas]:[Risk level of the human rights and environmental area]],20,0)","v":{"$error":"#DIV/0!"}},{"$nulls":3},{"$f":"+VLOOKUP(C41,STEP2TABLE[[Human Rights and Environmental priority areas]:[AVERAGE I RISK]],17,0)","v":{"$error":"#DIV/0!"}},{"$f":"+VLOOKUP(C41,STEP2TABLE[[Human Rights and Environmental priority areas]:[AVERAGE I RISK]],18,0)","v":{"$error":"#DIV/0!"}},null,4,"High","Major"]
[null,"4.","Freedom of association and collective bargaining",null,null,{"$error":"#DIV/0!"},{"$error":"#DIV/0!"},{"$f":"+VLOOKUP(C42,STEP2TABLE[[#All],[Human Rights and Environmental priority areas]:[Risk level of the human rights and environmental area]],20,0)","v":{"$error":"#DIV/0!"}},{"$nulls":3},{"$f":"+VLOOKUP(C42,STEP2TABLE[[Human Rights and Environmental priority areas]:[AVERAGE I RISK]],17,0)","v":{"$error":"#DIV/0!"}},{"$f":"+VLOOKUP(C42,STEP2TABLE[[Human Rights and Environmental priority areas]:[AVERAGE I RISK]],18,0)","v":{"$error":"#DIV/0!"}},null,3,"Medium","Moderate"]
[null,"5.","Forced labour",null,null,{"$error":"#DIV/0!"},{"$error":"#DIV/0!"},{"$f":"+VLOOKUP(C43,STEP2TABLE[[#All],[Human Rights and Environmental priority areas]:[Risk level of the human rights and environmental area]],20,0)","v":{"$error":"#DIV/0!"}},{"$nulls":3},{"$f":"+VLOOKUP(C43,STEP2TABLE[[Human Rights and Environmental priority areas]:[AVERAGE I RISK]],17,0)","v":{"$error":"#DIV/0!"}},{"$f":"+VLOOKUP(C43,STEP2TABLE[[Human Rights and Environmental priority areas]:[AVERAGE I RISK]],18,0)","v":{"$error":"#DIV/0!"}},null,2,"Low","Minor"]
[null,"6.","Child protection and child rights",null,null,{"$error":"#DIV/0!"},{"$error":"#DIV/0!"},{"$f":"+VLOOKUP(C44,STEP2TABLE[[#All],[Human Rights and Environmental priority areas]:[Risk level of the human rights and environmental area]],20,0)","v":{"$error":"#DIV/0!"}},{"$nulls":3},{"$f":"+VLOOKUP(C44,STEP2TABLE[[Human Rights and Environmental priority areas]:[AVERAGE I RISK]],17,0)","v":{"$error":"#DIV/0!"}},{"$f":"+VLOOKUP(C44,STEP2TABLE[[Human Rights and Environmental priority areas]:[AVERAGE I RISK]],18,0)","v":{"$error":"#DIV/0!"}},null,1,"Very low","Minimum"]
[null,"7.","Gender rights",null,null,{"$error":"#DIV/0!"},{"$error":"#DIV/0!"},{"$f":"+VLOOKUP(C45,STEP2TABLE[[#All],[Human Rights and Environmental priority areas]:[Risk level of the human rights and environmental area]],20,0)","v":{"$error":"#DIV/0!"}},{"$nulls":3},{"$f":"+VLOOKUP(C45,STEP2TABLE[[Human Rights and Environmental priority areas]:[AVERAGE I RISK]],17,0)","v":{"$error":"#DIV/0!"}},{"$f":"+VLOOKUP(C45,STEP2TABLE[[Human Rights and Environmental priority areas]:[AVERAGE I RISK]],18,0)","v":{"$error":"#DIV/0!"}}]
[null,"8.","Non-discrimination",null,null,{"$error":"#DIV/0!"},{"$error":"#DIV/0!"},{"$f":"+VLOOKUP(C46,STEP2TABLE[[#All],[Human Rights and Environmental priority areas]:[Risk level of the human rights and environmental area]],20,0)","v":{"$error":"#DIV/0!"}},{"$nulls":3},{"$f":"+VLOOKUP(C46,STEP2TABLE[[Human Rights and Environmental priority areas]:[AVERAGE I RISK]],17,0)","v":{"$error":"#DIV/0!"}},{"$f":"+VLOOKUP(C46,STEP2TABLE[[Human Rights and Environmental priority areas]:[AVERAGE I RISK]],18,0)","v":{"$error":"#DIV/0!"}}]
[null,"9.","Self-determination",null,null,{"$error":"#DIV/0!"},{"$error":"#DIV/0!"},{"$f":"+VLOOKUP(C47,STEP2TABLE[[#All],[Human Rights and Environmental priority areas]:[Risk level of the human rights and environmental area]],20,0)","v":{"$error":"#DIV/0!"}},{"$nulls":3},{"$f":"+VLOOKUP(C47,STEP2TABLE[[Human Rights and Environmental priority areas]:[AVERAGE I RISK]],17,0)","v":{"$error":"#DIV/0!"}},{"$f":"+VLOOKUP(C47,STEP2TABLE[[Human Rights and Environmental priority areas]:[AVERAGE I RISK]],18,0)","v":{"$error":"#DIV/0!"}}]
[null,"10.","Climate emissions and deforestation",null,null,{"$error":"#DIV/0!"},{"$error":"#DIV/0!"},{"$f":"+VLOOKUP(C48,STEP2TABLE[[#All],[Human Rights and Environmental priority areas]:[Risk level of the human rights and environmental area]],20,0)","v":{"$error":"#DIV/0!"}},{"$nulls":3},{"$f":"+VLOOKUP(C48,STEP2TABLE[[Human Rights and Environmental priority areas]:[AVERAGE I RISK]],17,0)","v":{"$error":"#DIV/0!"}},{"$f":"+VLOOKUP(C48,STEP2TABLE[[Human Rights and Environmental priority areas]:[AVERAGE I RISK]],18,0)","v":{"$error":"#DIV/0!"}}]
[null,"11.","Water and biodiversity",null,null,{"$error":"#DIV/0!"},{"$error":"#DIV/0!"},{"$f":"+VLOOKUP(C49,STEP2TABLE[[#All],[Human Rights and Environmental priority areas]:[Risk level of the human rights and environmental area]],20,0)","v":{"$error":"#DIV/0!"}},{"$nulls":3},{"$f":"+VLOOKUP(C49,STEP2TABLE[[Human Rights and Environmental priority areas]:[AVERAGE I RISK]],17,0)","v":{"$error":"#DIV/0!"}},{"$f":"+VLOOKUP(C49,STEP2TABLE[[Human Rights and Environmental priority areas]:[AVERAGE I RISK]],18,0)","v":{"$error":"#DIV/0!"}}]
[null,"12.","Freedom of speech, thought and public participation",null,null,{"$error":"#DIV/0!"},{"$error":"#DIV/0!"},{"$f":"+VLOOKUP(C50,STEP2TABLE[[#All],[Human Rights and Environmental priority areas]:[Risk level of the human rights and environmental area]],20,0)","v":{"$error":"#DIV/0!"}},{"$nulls":3},{"$f":"+VLOOKUP(C50,STEP2TABLE[[Human Rights and Environmental priority areas]:[AVERAGE I RISK]],17,0)","v":{"$error":"#DIV/0!"}},{"$f":"+VLOOKUP(C50,STEP2TABLE[[Human Rights and Environmental priority areas]:[AVERAGE I RISK]],18,0)","v":{"$error":"#DIV/0!"}}]
[null,"13.","Privacy",null,null,{"$error":"#DIV/0!"},{"$error":"#DIV/0!"},{"$f":"+VLOOKUP(C51,STEP2TABLE[[#All],[Human Rights and Environmental priority areas]:[Risk level of the human rights and environmental area]],20,0)","v":{"$error":"#DIV/0!"}},{"$nulls":3},{"$f":"+VLOOKUP(C51,STEP2TABLE[[Human Rights and Environmental priority areas]:[AVERAGE I RISK]],17,0)","v":{"$error":"#DIV/0!"}},{"$f":"+VLOOKUP(C51,STEP2TABLE[[Human Rights and Environmental priority areas]:[AVERAGE I RISK]],18,0)","v":{"$error":"#DIV/0!"}}]
[]
[]
[null,"3-","Risk Matrix"]
[]
[{"$nulls":3},"Seriousness"]
[{"$nulls":3},"Serious","Major","Moderate","Minor","Minimum"]
[null,"Likelihood","Very high",{"$f":"+IF(COUNTIFS($F$39:$F$51,C58,$G$39:$G$51,$D$57)=0,\"\",COUNTIFS($F$39:$F$51,C58,$G$39:$G$51,$D$57))","v":""},{"$f":"+IF(COUNTIFS($F$39:$F$51,C58,$G$39:$G$51,$E$57)=0,\"\",COUNTIFS($F$39:$F$51,C58,$G$39:$G$51,$E$57))","v":""},{"$f":"+IF(COUNTIFS($F$39:$F$51,C58,$G$39:$G$51,$F$57)=0,\"\",COUNTIFS($F$39:$F$51,C58,$G$39:$G$51,$F$57))","v":""},{"$f":"+IF(COUNTIFS($F$39:$F$51,C58,$G$39:$G$51,$G$57)=0,\"\",COUNTIFS($F$39:$F$51,C58,$G$39:$G$51,$G$57))","v":""},{"$f":"+IF(COUNTIFS($F$39:$F$51,C58,$G$39:$G$51,$H$57)=0,\"\",COUNTIFS($F$39:$F$51,C58,$G$39:$G$51,$H$57))","v":""}]
[null,null,"High",{"$f":"+IF(COUNTIFS($F$39:$F$51,C59,$G$39:$G$51,$D$57)=0,\"\",COUNTIFS($F$39:$F$51,C59,$G$39:$G$51,$D$57))","v":""},{"$f":"+IF(COUNTIFS($F$39:$F$51,C59,$G$39:$G$51,$E$57)=0,\"\",COUNTIFS($F$39:$F$51,C59,$G$39:$G$51,$E$57))","v":""},{"$f":"+IF(COUNTIFS($F$39:$F$51,C59,$G$39:$G$51,$F$57)=0,\"\",COUNTIFS($F$39:$F$51,C59,$G$39:$G$51,$F$57))","v":""},{"$f":"+IF(COUNTIFS($F$39:$F$51,C59,$G$39:$G$51,$G$57)=0,\"\",COUNTIFS($F$39:$F$51,C59,$G$39:$G$51,$G$57))","v":""},{"$f":"+IF(COUNTIFS($F$39:$F$51,C59,$G$39:$G$51,$H$57)=0,\"\",COUNTIFS($F$39:$F$51,C59,$G$39:$G$51,$H$57))","v":""}]
[null,null,"Medium",{"$f":"+IF(COUNTIFS($F$39:$F$51,C60,$G$39:$G$51,$D$57)=0,\"\",COUNTIFS($F$39:$F$51,C60,$G$39:$G$51,$D$57))","v":""},{"$f":"+IF(COUNTIFS($F$39:$F$51,C60,$G$39:$G$51,$E$57)=0,\"\",COUNTIFS($F$39:$F$51,C60,$G$39:$G$51,$E$57))","v":""},{"$f":"+IF(COUNTIFS($F$39:$F$51,C60,$G$39:$G$51,$F$57)=0,\"\",COUNTIFS($F$39:$F$51,C60,$G$39:$G$51,$F$57))","v":""},{"$f":"+IF(COUNTIFS($F$39:$F$51,C60,$G$39:$G$51,$G$57)=0,\"\",COUNTIFS($F$39:$F$51,C60,$G$39:$G$51,$G$57))","v":""},{"$f":"+IF(COUNTIFS($F$39:$F$51,C60,$G$39:$G$51,$H$57)=0,\"\",COUNTIFS($F$39:$F$51,C60,$G$39:$G$51,$H$57))","v":""}]
[null,null,"Low",{"$f":"+IF(COUNTIFS($F$39:$F$51,C61,$G$39:$G$51,$D$57)=0,\"\",COUNTIFS($F$39:$F$51,C61,$G$39:$G$51,$D$57))","v":""},{"$f":"+IF(COUNTIFS($F$39:$F$51,C61,$G$39:$G$51,$E$57)=0,\"\",COUNTIFS($F$39:$F$51,C61,$G$39:$G$51,$E$57))","v":""},{"$f":"+IF(COUNTIFS($F$39:$F$51,C61,$G$39:$G$51,$F$57)=0,\"\",COUNTIFS($F$39:$F$51,C61,$G$39:$G$51,$F$57))","v":""},{"$f":"+IF(COUNTIFS($F$39:$F$51,C61,$G$39:$G$51,$G$57)=0,\"\",COUNTIFS($F$39:$F$51,C61,$G$39:$G$51,$G$57))","v":""},{"$f":"+IF(COUNTIFS($F$39:$F$51,C61,$G$39:$G$51,$H$57)=0,\"\",COUNTIFS($F$39:$F$51,C61,$G$39:$G$51,$H$57))","v":""}]
[null,null,"Very low",{"$f":"+IF(COUNTIFS($F$39:$F$51,C62,$G$39:$G$51,$D$57)=0,\"\",COUNTIFS($F$39:$F$51,C62,$G$39:$G$51,$D$57))","v":""},{"$f":"+IF(COUNTIFS($F$39:$F$51,C62,$G$39:$G$51,$E$57)=0,\"\",COUNTIFS($F$39:$F$51,C62,$G$39:$G$51,$E$57))","v":""},{"$f":"+IF(COUNTIFS($F$39:$F$51,C62,$G$39:$G$51,$F$57)=0,\"\",COUNTIFS($F$39:$F$51,C62,$G$39:$G$51,$F$57))","v":""},{"$f":"+IF(COUNTIFS($F$39:$F$51,C62,$G$39:$G$51,$G$57)=0,\"\",COUNTIFS($F$39:$F$51,C62,$G$39:$G$51,$G$57))","v":""},{"$f":"+IF(COUNTIFS($F$39:$F$51,C62,$G$39:$G$51,$H$57)=0,\"\",COUNTIFS($F$39:$F$51,C62,$G$39:$G$51,$H$57))","v":""}]
[]
[]
[]
[null,"4-","Selected salient risks"]
[]
[null,null,"1-",{"$f":"STEP3!D41","v":0}]
[null,null,"2-",{"$f":"+STEP3!D43","v":0}]
[null,null,"3-",{"$f":"+STEP3!D45","v":0}]
[null,null,"4-",{"$f":"+STEP3!D47","v":0}]
[null,null,"5-",{"$f":"+STEP3!D49","v":0}]
[]
[]
[]
[null,"Please also take your own assessments in Step 4 into account when developing your related policies and action plan."]

{"sheet":"Product risks","index":7,"n_rows":105,"n_cols":19,"rows_kept":105,"hidden":true}
[null,"When changing the column headers here, you need to also change the Dropdown menu headings in the yellow table"]
["Selected Risk by Fairtrade","Coffee","Cocoa","Bananas","Sugar (not available yet)","Tea (not for SPOs)","Tea (not available yet)","Cotton (not available yet)","Wine grapes (not available yet)","Gold (not available yet)","Honey","Fruit (not available yet)","Herbs & spices (not available yet)","Cereals & rice (not available yet)","Nuts & oils (not available yet)","Vegetables (not available yet)","Sports balls (not available yet)","Carbon credits (not available yet)","No second product"]
["1. Living income, living wage",1,1,1,"Not available yet","Not available yet","Not available yet","Not available yet","Not available yet","Not available yet",1,"Not available yet","Not available yet","Not available yet","Not available yet","Not available yet","Not available yet","Not available yet","No data"]
["2. Working conditions",3,3,2,"Not available yet","Not available yet","Not available yet","Not available yet","Not available yet","Not available yet",3,"Not available yet","Not available yet","Not available yet","Not available yet","Not available yet","Not available yet","Not available yet","No data"]
["3. Health",3,2,2,"Not available yet","Not available yet","Not available yet","Not available yet","Not available yet","Not available yet",2,"Not available yet","Not available yet","Not available yet","Not available yet","Not available yet","Not available yet","Not available yet","No data"]
["4. Freedom of association and collective bargaining",4,4,2,"Not available yet","Not available yet","Not available yet","Not available yet","Not available yet","Not available yet",3,"Not available yet","Not available yet","Not available yet","Not available yet","Not available yet","Not available yet","Not available yet","No data"]
["5. Forced labour",4,3,4,"Not available yet","Not available yet","Not available yet","Not available yet","Not available yet","Not available yet",4,"Not available yet","Not available yet","Not available yet","Not available yet","Not available yet","Not available yet","Not available yet","No data"]
["6. Child protection and child rights",2,1,4,"Not available yet","Not available yet","Not available yet","Not available yet","Not available yet","Not available yet",4,"Not available yet","Not available yet","Not available yet","Not available yet","Not available yet","Not available yet","Not available yet","No data"]
["7. Gender rights",2,2,3,"Not available yet","Not available yet","Not available yet","Not available yet","Not available yet","Not available yet",1,"Not available yet","Not available yet","Not available yet","Not available yet","Not available yet","Not available yet","Not available yet","No data"]
["8. Non-discrimination",4,3,3,"Not available yet","Not available yet","Not available yet","Not available yet","Not available yet","Not available yet",3,"Not available yet","Not available yet","Not available yet","Not available yet","Not available yet","Not available yet","Not available yet","No data"]
["9. Self-determination",4,3,3,"Not available yet","Not available yet","Not available yet","Not available yet","Not available yet","Not available yet",3,"Not available yet","Not available yet","Not available yet","Not available yet","Not available yet","Not available yet","Not available yet","No data"]
["10. Climate emissions and deforestation",1,1,1,"Not available yet","Not available yet","Not available yet","Not available yet","Not available yet","Not available yet",3,"Not available yet","Not available yet","Not available yet","Not available yet","Not available yet","Not available yet","Not available yet","No data"]
["11. Water and biodiversity",1,3,1,"Not available yet","Not available yet","Not available yet","Not available yet","Not available yet","Not available yet",1,"Not available yet","Not available yet","Not available yet","Not available yet","Not available yet","Not available yet","Not available yet","No data"]
["12. Freedom of speech, thought and public participation",4,3,3,"Not available yet","Not available yet","Not available yet","Not available yet","Not available yet","Not available yet",4,"Not available yet","Not available yet","Not available yet","Not available yet","Not available yet","Not available yet","Not available yet","No data"]
["13. Privacy",4,4,4,"Not available yet","Not available yet","Not available yet","Not available yet","Not available yet","Not available yet",3,"Not available yet","Not available yet","Not available yet","Not available yet","Not available yet","Not available yet","Not available yet","No data"]
[]
["Dropdown menu for products",null,"Green","#B5EE00","cell values between 3.5-4",null,"How to match HR areas to country data?"]
[null,null,"Yellow","#FFFF66","2.5-3.49",null,"13 human rights areas - country data"]
["Bananas",null,"Orange","#FF8000","1.5-2.49",null,"Living income, living wage - St of living"]
["Coffee",null,"Pink","#FF4571","1-1.49",null,"Working conditions - workers rights"]
["Cocoa",{"$nulls":5},"Health - St of living"]
["Honey",{"$nulls":5},"Freedom of association and collective bargaining - workers rights"]
["No second product",{"$nulls":5},"Forced labour - forced labour"]
["Carbon credits (not available yet)",{"$nulls":5},"Child protection and child rights - child rights"]
["Cereals & rice (not available yet)",{"$nulls":5},"Gender rights - gender rights"]
["Cotton (not available yet)",{"$nulls":5},"Non-discrimination - discr"]
["Fruit (not available yet)",{"$nulls":5},"Self-determination - self-det"]
["Gold (not available yet)",{"$nulls":5},"Climate resilience - climate & forest"]
["Herbs & spices (not available yet)",{"$nulls":5},"Water and biodiversity - water & biodiv"]
["Nuts & oils (not available yet)",{"$nulls":5},"Freedom of speech, thought and public participation - civil liberties"]
["Sports balls (not available yet)",{"$nulls":5},"Privacy - civil liberties"]
["Sugar (not available yet)"]
["Tea (not available yet)"]
["Vegetables (not available yet)"]
["Wine grapes (not available yet)"]
[]
["Dropdown menu for country selection"]
[]
["Argentina"]
["Bangladesh"]
["Belize"]
["Benin"]
["Bolivia"]
["Brazil"]
["Burkina Faso"]
["Burundi"]
["Cameroon"]
["Chile"]
["China"]
["Colombia"]
["Congo (Democratic Republic)"]
["Costa Rica"]
["Cote d'Ivoire"]
["Cuba"]
["Dominican Republic"]
["East Timor"]
["Ecuador"]
["Egypt"]
["El Salvador"]
["Eswatini"]
["Ethiopia"]
["Fiji"]
["Ghana"]
["Grenada"]
["Guatemala"]
["Honduras"]
["India"]
["Indonesia"]
["Iran"]
["Kenya"]
["Kyrgyzstan"]
["Laos"]
["Madagascar"]
["Malawi"]
["Mali"]
["Mauritius"]
["Mexico"]
["Morocco"]
["Mozambique"]
["Myanmar"]
["Nicaragua"]
["Pakistan"]
["Palestine"]
["Panama"]
["Papua New Guinea"]
["Paraguay"]
["Peru"]
["Philippines"]
["Rwanda"]
["Saint Lucia"]
["Sao Tome & Principe"]
["Senegal"]
["Sierra Leone"]
["South Africa"]
["Sri Lanka"]
["Tajikistan"]
["Tanzania"]
["Thailand"]
["Togo"]
["Tunisia"]
["Uganda"]
["Uruguay"]
["Vietnam"]
["Zambia"]
["Zimbabwe"]

{"sheet":"Resources","index":8,"n_rows":64,"n_cols":7,"rows_kept":64,"merged":[[1,19,3,20],[6,4,6,5],[6,7,6,8],[6,10,6,11],[6,13,6,14],[6,16,6,17],[6,19,6,20],[10,1,10,5],[14,1,14,13],[18,1,18,13],[22,1,22,13],[26,1,26,13],[29,1,29,5],[31,1,31,3],[31,4,31,12],[32,1,32,3],[32,4,32,12],[33,1,33,3],[33,4,33,12],[34,1,34,3],[34,4,34,12],[35,1,35,3],[35,4,35,12],[36,1,36,3],[36,4,36,12],[37,1,37,3],[37,4,37,12],[38,1,38,3],[38,4,38,12],[39,1,39,3],[39,4,39,12],[40,1,40,3],[40,4,40,12],[41,1,41,3],[41,4,41,12],[42,1,42,3],[42,4,42,12],[46,1,46,9],[50,1,50,5],[50,6,50,12],[51,1,51,5],[51,6,51,12],[52,1,52,5],[52,6,52,12],[53,1,53,5],[53,6,53,12],[54,1,54,5],[54,6,54,12],[55,1,55,5],[55,6,55,12],[56,1,56,5],[56,6,56,12],[57,1,57,5],[57,6,57,12],[58,1,58,5],[58,6,58,12],[59,1,59,5],[59,6,59,12],[60,1,60,5],[60,6,60,12],[61,1,61,5],[61,6,61,12],[62,1,62,5],[62,6,62,12],[63,1,63,5],[63,6,63,12]]}
{"$rows_empty":10}
[null,"QUESTIONS AND ANSWERS"]
[]
[null,"What is the information in STEP 1 telling me?"]
[]
[null,"The information in STEP 1 gives you an overview of how external data assesses your country and products with respect to a specific risk. This information will help you assess what is happening in your organisation in STEP 2. This, however, does not mean you have to rank a risk the same as your country and crop.  "]
[]
[null,"Can I consider other countries and crop statistics?"]
[]
[null,"Yes, while assessing the indicators and during the whole risk assessment process, you can consider other information from validated and trusted sources. However, you won't be able to include the new external data about your country and products in STEP 1."]
[]
[null,"Where does the information in Step 1 come from? "]
[]
[null,"The country and product mapping was carried out by Fairtrade. For more information about the sources you can visit the following link."]
[]
[null,"What can I do if I want to add another stakeholder in Step 2?"]
[]
[null,"If you plan to include more than three stakeholders in your risk assessment process we recommend only recording the responses of three stakeholders in this tool and the others in another excel workbook, do an average of the responses and then paste the final result in this tool. "]
[]
[]
[null,"USEFUL DEFINITIONS"]
[]
[null,"Human Rights",null,null,"The basic rights and freedoms to which every person in the world is entitled."]
[null,"Due Diligence",null,null,"The exercise of reasonable care in the course of business. When companies perform due diligence on potential business partners, they make a careful investigation of that partner’s economic, legal, fiscal and financial circumstances."]
[null,"HREDD",null,null,"Human Rights and Environmental Due Diligence. A series of interrelated processes to identify adverse impacts; prevent, mitigate and remediate them; track implementation and results and communicate on how adverse impacts are addressed with respect to the enterprises’ own operations, their supply chains and other business relationships."]
[null,"Prevention",null,null,"Taking action to ensure human rights and environmental impact does not occur."]
[null,"Ceasing",null,null,"Taking action to stop your contribution to a problem."]
[null,"Mitigation",null,null,"Taking action to reduce the risk or frequency of a problem, the number of people suffering from it, or the impact on those people."]
[null,"Mitigation",null,null,"The process of reducing risk exposure and minimizing the impact of a risk or a violation."]
[null,"Remediation",null,null,"The processes of counteracting, or making good, the adverse impact, including: apologies, restitution or rehabilitation, financial or non-financial compensation (including establishing compensation funds for victims, or for future outreach and educational programs), punitive sanctions (whether criminal or administrative, such as fines), as well as prevention of harm through, for example, injunctions or guarantees of non-repetition."]
[null,"Monitoring and Remediation System",null,null,"A system for identifying the individuals at high risk of human rights violations, checking the safety of the identified individuals on a regular basis, remediating cases of human rights violations found and documenting actions taken to prevent further violations."]
[null,"Policy",null,null,"Agreement of organisational aims, principles and procedures on a specific topic. Human rights related policies typically focus on one high-risk area like child labour or gender rights."]
[null,"Action Plan",null,null,"A very concrete list of planned activities with timelines, responsible\npersons, budgetary allocations and indicators for tracking the\nimplementation and outcomes. Typically, action plans are updated\nannually."]
[null,"Grievance Mechanism",null,null,"A formal process for receiving and responding to concerns and complaints from workers, local community members and other individuals and groups."]
[]
[]
[]
[null,"HUMAN RIGHTS AND ENVIRONMENTAL PRIORITY AREAS"]
[]
[null,"The following table clarifies how the 13 identified areas cover all internationally recognized human rights "]
[]
[null,"HUMAN RIGHTS AREA & description",{"$nulls":4},"The covered human rights "]
[null,"1. Living income, living wage\nEvery person has a right to a decent standard of living, including adequate food, safe drinking water, sanitation and decent housing. The income/wage that allows for decent living is called a living income/wage. ",{"$nulls":4},"Right to enjoy just and favourable conditions of work (ICESCR 7) includes rights to income/wage that provides a decent living for the person and her/his family, and equal remuneration for work of equal value. Right to an adequate standard of living, including adequate food, safe drinking water, sanitation, housing and prohibition of forced evictions (ICESCR 11)."]
[null,"2. Working conditions\nEvery person has a right to just conditions of work and social security.",{"$nulls":4},"Right to work, just conditions of work, social security, including social insurance and a family life (ICESCR 6, 7, 9 and 10). Right to marry (ICCPR 23)."]
[null,"3. Health\nEvery person has a right to health, security of the person and life.",{"$nulls":4},"Right to health and life (ICESCR 12, ICCPR 6) include right to have control over one's health and body. Rights to security of the person, liberty, and not being subjected to torture or to cruel, inhuman or degrading treatment or punishment, even when detained (ICCPR 9, 7, 10)"]
[null,"4. Freedom of association and collective bargaining\nEvery person has a right to freedom of association and assembly, to form and join trade unions and to bargain collectively.",{"$nulls":4},"Freedom of association and assembly, right to form and join trade unions, bargain collectively, hold peaceful demonstrations and strike (ICESCR 8; ICCPR 21 and 22; ILO 87 and 98). Includes rights to bargain collectively, hold peaceful demonstrations and strike."]
[null,"5. Forced labour\nEvery person has a right not to be subjected to slavery, forced labour or trafficking.",{"$nulls":4},"Right not to be subjected to slavery, servitude or forced labour. Includes freedom from trafficking and debt bondage (ICCPR 8, ILO 29 and 105). Includes freedom from trafficking and debt bondage."]
[null,"6. Child protection and child rights\nEvery child has a right to education, protection and freedom from child labour.",{"$nulls":4},"Freedom from child labour, Right to education and protection (ILO 138 and 182; ICESCR 13, 14; ICCPR 24; UN Convention on the Rights of the Child; Children’s Rights and Business Principles)."]
[null,"7. Gender rights\nEvery person has a right of equality between men and women.",{"$nulls":4},"Right of equality between men and women (ICESCR 3; ICCPR 3; ILO 100; Convention on the Elimination of All Forms of Discrimination Against Women, CEDAW)."]
[null,"8. Non-discrimination\nEvery person has a right to equal dignity, respect and protection, including non-discrimination of minorities, migrants, indigenous people and persons with disabilities.",{"$nulls":4},"Right to equal protection, including non-discrimination in employment, and freedom from racial discrimination (ICESCR 2; ICCPR 2, 26; ILO 111; Convention on the Elimination of All Forms of Racial Discrimination, ICERD). Non-discrimination of Migrants (ICRMW), Indigenous people (UNDRIP), Minorities (Declaration on Minorities) and Persons with Disabilities (CRPD). Rights to a fair trial, equality before the law, and due process when facing expulsion (ICCPR 11, 16, 13)."]
[null,"9. Self-determination\nAll peoples have a right to self-determination – a freedom to choose one’s own acts without external compulsion – and freedom to pursue development. Indigenous people have a right to preserve and develop their culture, lands etc.",{"$nulls":4},"Rights of self-determination, freedom to pursue development, movement, not being imprisoned for inability to fulfil a contract, and freedom from retroactive criminal law. Indigenous people’s rights to preserve, protect and develop their culture, lands, distinct institutions etc (ICESCR 1; ICCPR 1, 12, 14 and 15; UNDRIP)."]
[null,"10. Climate emissions and deforestation\nEvery person has a right to a safe and predictable environment that is not destroyed by climate change or deforestation.",{"$nulls":4},"Right to a safe and predictable environment that is not destroyed by climate change or deforestation (UN Human Rights Council resolution 48/13)."]
[null,"11. Water and biodiversity\nEvery person has a right to sufficient biodiversity, soil and safe water for personal and domestic use.",{"$nulls":4},"Right to sufficient, safe and affordable water for personal and domestic use; Right to sufficient biodiversity and soil (ICESCR 11; UN Human Rights Council resolution 48/13)."]
[null,"12. Freedom of speech, thought and public participation\nEvery person has a right to freedom of speech, thought and religion, and to take part in public affairs and cultural life.",{"$nulls":4},"Rights to freedom of thought, conscience and religion; Rights to freedom of opinion and expression; Rights of minorities (ICCPR 27); Freedom from war propaganda, and incitement to racial, religious or national hatred; (ICCPR 18, 19, 20), Right to take part in public affairs, cultural life and benefit from scientific progress and of the material and moral rights of authors and inventors (ICPR 25; ICESCR 15)."]
[null,"13. Privacy\nEvery person has a right to privacy, which means a right to keep one’s personal matters and relationships secret.",{"$nulls":4},"Right to privacy (ICCPR 17)"]

{"sheet":"CountryRisks2","index":9,"n_rows":130,"n_cols":90,"rows_kept":130,"hidden":true,"merged":[[0,12,0,14],[0,15,0,17],[0,19,0,21],[0,22,0,24],[0,29,0,31],[0,32,0,34],[0,35,0,37],[0,39,0,41],[0,42,0,44],[0,46,0,48],[0,49,0,51],[0,52,0,54],[0,56,0,58],[0,59,0,61],[0,63,0,65],[0,70,0,72],[0,73,0,75],[0,76,0,78],[0,80,0,82],[0,83,0,85],[0,86,0,88]]}
[null,null,"inequality_adjusted_human_development_index",null,null,"multi_dimensional_poverty_index",null,null,"number_of_poor_at_320day",null,null,"St of living","global_rights_index",null,null,"working_poverty_at_190day__total",null,null,"Workers' rights","gender_inequality_index",null,null,"working_poverty_at_190day__women",null,null,"Gender","child_labor",null,null,"children_in_child_labor",null,null,"rural_primary_school_completion",null,null,"rural_4er_secondary_school_completion",null,null,"Child rights","forced_labor",null,null,"prevalance_of_modern_slavery",null,null,"Forced labour","equal_treatment_and_abscence_of_discrimination ",null,null,"sdg_indicator_on_migration_policies",null,null,"un_population_of_concern",null,null,"Discrimination","peoples_under_threat",null,null,"legal_security_of _indegenous_lands",null,null,"Self-determination","civil_liberties_rating",null,null,"fragile_states_index",null,null,"Civil liberties","global_climate_risk_index",null,null,"forest_area_change_in_2010_2020_as_percentage",null,null,"forest_area_change_in_2010_2020_by_hectares",null,null,"Climate","land_degradation_as_percentage_in_2010_2015",null,null,"baseline_water_stress",null,null,"people_in_water_scarce_areas",null,null,"Water"]
["Country name","Country code","value","risk (in words)","risk (1-4)","value","risk (in words)","risk (1-4)","value","risk (in words)","risk (1-4)","Average","value","risk (in words)","risk (1-4)","value","risk (in words)","risk (1-4)","Average","value","risk (in words)","risk (1-4)","value","risk (in words)","risk (1-4)","Average","value","risk (in words)","risk (1-4)","value","risk (in words)","risk (1-4)","value","risk (in words)","risk (1-4)","value","risk (in words)","risk (1-4)","Average","value","risk (in words)","risk (1-4)","value","risk (in words)","risk (1-4)","Average","value","risk (in words)","risk (1-4)","value","risk (in words)","risk (1-4)","value","risk (in words)","risk (1-4)","Average","value","risk (in words)","risk (1-4)","value","risk (in words)","risk (1-4)","Average","value","risk (in words)","risk (1-4)","value","risk (in words)","risk (1-4)","Average","value","risk (in words)","risk (1-4)","value","risk (in words)","risk (1-4)","value","risk (in words)","risk (1-4)","Average","value","risk (in words)","risk (1-4)","value","risk (in words)","risk (1-4)","value","risk (in words)","risk (1-4)","Average"]
["Algeria","DZ",0.478,"veryHigh",1,{"v":0.0002,"d":"0.0%"},"low",4,"4,0%","low",4,{"$f":"IFERROR(AVERAGE(E3,H3,K3),N/A)","v":{"v":3,"d":"3.0"}},5,"veryHigh",1,"N/A","N/A","N/A",{"$f":"IFERROR(AVERAGE(O3,R3),\"N/A\")","v":1},126,"high",2,{"v":1E-3,"d":"0.1%"},"low",4,{"$f":"IFERROR(AVERAGE(V3,Y3),\"N/A\")","v":3},{"v":0.036,"d":"4%"},"low",4,{"v":0.03,"d":"3%"},"low",4,{"v":0.92,"d":"92%"},"low",4,{"v":0.6,"d":"60%"},"high",2,{"$f":"IFERROR(AVERAGE(AC3,AF3,AI3,AL3),\"N/A\")","v":3.5},"N/A","N/A","N/A",115,"medium",3,{"$f":"IFERROR(AVERAGE(AP3,AS3),\"N/A\")","v":3},0.58,"medium",3,"N/A","N/A","N/A",{"v":100020,"d":"100,020"},"high",2,{"$f":"IFERROR(AVERAGE(AW3,AZ3,BC3),\"N/A\")","v":2.5},34,"high",2,2.9,"medium",3,{"$f":"IFERROR(AVERAGE(BG3,BJ3),\"N/A\")","v":2.5},22,"high",2,72.2,"medium",3,{"$f":"IFERROR(AVERAGE(BN3,BQ3),\"N/A\")","v":2.5},125,"low",4,{"v":0.0016,"d":"0.16%"},"low",4,3.1,"low",4,{"$f":"IFERROR(AVERAGE(BU3,BX3,CA3),\"N/A\")","v":4},1,"low",4,3,"high",2,{"v":0.68,"d":"68%"},"high",2,{"$f":"IFERROR(AVERAGE(CE3,CH3,CK3),\"N/A\")","v":2.6666666666666665}]
["Andorra","AD","N/A","N/A","N/A","N/A","N/A","N/A","N/A","N/A","N/A",{"$f":"IFERROR(AVERAGE(E4,H4,K4),\"N/A\")","v":"N/A"},"N/A","N/A","N/A","N/A","N/A","N/A",{"$f":"IFERROR(AVERAGE(O4,R4),\"N/A\")","v":"N/A"},"N/A","N/A","N/A","N/A","N/A","N/A",{"$f":"IFERROR(AVERAGE(V4,Y4),\"N/A\")","v":"N/A"},"N/A","N/A","N/A","N/A","N/A","N/A","N/A","N/A","N/A","N/A","N/A","N/A",{"$f":"IFERROR(AVERAGE(AC4,AF4,AI4,AL4),\"N/A\")","v":"N/A"},"N/A","N/A","N/A","N/A","N/A","N/A",{"$f":"IFERROR(AVERAGE(AP4,AS4),\"N/A\")","v":"N/A"},"N/A","N/A","N/A","N/A","N/A","N/A","N/A","N/A","N/A",{"$f":"IFERROR(AVERAGE(AW4,AZ4,BC4),\"N/A\")","v":"N/A"},"N/A","N/A","N/A","N/A","N/A","N/A","N/A",55,"low",4,"N/A","N/A","N/A",{"$f":"IFERROR(AVERAGE(BN4,BQ4),\"N/A\")","v":4},"N/A","N/A","N/A",{"v":0,"d":"0%"},"low",4,0,"low",4,{"$f":"IFERROR(AVERAGE(BU4,BX4,CA4),\"N/A\")","v":4},"N/A","N/A","N/A",3,"high",2,"N/A","N/A","N/A",{"$f":"IFERROR(AVERAGE(CE4,CH4,CK4),\"N/A\")","v":2}]
["Argentina","AR",0.842,"low",4,"N/A","N/A","N/A","3,5%","low",4,{"$f":"IFERROR(AVERAGE(E5,H5,K5),\"N/A\")","v":{"v":4,"d":"4.0"}},3,"medium",3,{"v":0.004,"d":"0.4%"},"low",4,{"$f":"IFERROR(AVERAGE(O5,R5),\"N/A\")","v":3.5},69,"medium",3,{"v":0.005,"d":"0.5%"},"low",4,3.5,{"v":0.053,"d":"5%"},"medium",3,"N/A","N/A","N/A","N/A","N/A","N/A","N/A","N/A","N/A",3,"NotIdentifiedinAgriculture","medium",3,157,"low",4,3.5,0.65,"medium",3,"Fullymeets","low",4,{"v":249026,"d":"249,026"},"high",2,3,90,"low",4,3.5,"veryHigh",1,2.5,49,"medium",3,47.9,"low",4,3.5,55,"medium",3,{"v":-0.0056,"d":"-0.56%"},"veryHigh",1,-164.1,"high",2,2,39,"veryHigh",1,1,"medium",3,{"v":0.35,"d":"35%"},"medium",3,2.3333333333333335]
["Australia","AU",0.951,"low",4,"N/A","N/A","N/A","0,7%","low",4,{"v":4,"d":"4.0"},4,"high",2,"N/A","N/A","N/A",2,19,"low",4,"N/A","N/A","N/A",4,"N/A","N/A","N/A","N/A","N/A","N/A","N/A","N/A","N/A","N/A","N/A","N/A","N/A","N/A","N/A","N/A",163,"low",4,4,0.66,"medium",3,"Fullymeets","low",4,{"v":153642,"d":"153,642"},"high",2,3,"N/A","N/A","N/A",2,"medium",3,3,56,"low",4,22.7,"low",4,4,19,"high",2,{"v":0.0034,"d":"0.34%"},"low",4,445.9,"low",4,3.3333333333333335,"N/A","N/A","N/A",2,"medium",3,{"v":0.29,"d":"29%"},"medium",3,3]
["Austria","AT",0.916,"low",4,"N/A","N/A","N/A","0,7%","low",4,{"v":4,"d":"4.0"},1,"low",4,"N/A","N/A","N/A",4,12,"low",4,"N/A","N/A","N/A",4,"N/A","N/A","N/A","N/A","N/A","N/A","N/A","N/A","N/A","N/A","N/A","N/A","N/A","N/A","N/A","N/A",144,"low",4,4,0.73,"medium",3,"FullyMeets","low",4,{"v":183523,"d":"183,523"},"high",2,3,"N/A","N/A","N/A","N/A","N/A","N/A","N/A",56,"low",4,25.4,"low",4,4,47,"high",2,{"v":0.0009,"d":"0.09%"},"low",4,3.6,"low",4,3.3333333333333335,"N/A","N/A","N/A",0,"low",4,{"v":0,"d":"0%"},"low",4,4]
["Bahrain","BH",0.875,"low",4,"N/A","N/A","N/A","N/A","N/A","N/A",{"v":4,"d":"4.0"},5,"veryHigh",1,"N/A","N/A","N/A",1,46,"low",4,"N/A","N/A","N/A",4,"N/A","N/A","N/A","N/A","N/A","N/A","N/A","N/A","N/A","N/A","N/A","N/A","N/A","N/A","N/A","N/A",136,"medium",3,3,"N/A","N/A","N/A","Meets","medium",3,446,"low",4,3.5,82,"low",4,"N/A","N/A","N/A",4,10,"veryHigh",1,66.6,"medium",3,2,130,"low",4,{"v":0.0302,"d":"3.02%"},"low",4,"N/A","N/A","N/A",4,"N/A","N/A","N/A",4,"veryHigh",1,{"v":1,"d":"100%"},"veryHigh",1,1]
["Bangladesh","BD",0.661,"high",2,{"v":0.0647,"d":"6.5%"},"medium",3,"51,6%","veryHigh",1,{"v":2,"d":"2.0"},5,"veryHigh",1,{"v":0.04,"d":"4.0%"},"medium",3,2,131,"high",2,{"v":0.062,"d":"6.2%"},"medium",3,2.5,{"v":0.092,"d":"9%"},"medium",3,{"v":0.07,"d":"7%"},"medium",3,{"v":0.83,"d":"83%"},"medium",3,{"v":0.64,"d":"64%"},"medium",3,3,"NotIdentifiedinAgriculture","medium",3,92,"medium",3,3,0.42,"high",2,"PartiallyMeets","high",2,{"v":2012646,"d":"2,012,646"},"veryHigh",1,1.6666666666666667,56,"medium",3,4,"veryHigh",1,2,24,"high",2,84.5,"high",2,2,13,"high",2,{"v":-0.0003,"d":"-0.03%"},"medium",3,-0.5,"medium",3,2.6666666666666665,65,"veryHigh",1,0,"low",4,{"v":0.33,"d":"33%"},"medium",3,2.6666666666666665]
["Belgium","BE",0.937,"low",4,"N/A","N/A","N/A","0,1%","low",4,{"v":4,"d":"4.0"},3,"medium",3,"N/A","N/A","N/A",3,10,"low",4,"N/A","N/A","N/A",4,"N/A","N/A","N/A","N/A","N/A","N/A","N/A","N/A","N/A","N/A","N/A","N/A","N/A","N/A","N/A","N/A",135,"medium",3,3,0.8,"low",4,"Meets","medium",3,{"v":105050,"d":"105,050"},"high",2,3,"N/A","N/A","N/A","N/A","N/A","N/A","N/A",57,"low",4,31.9,"low",4,4,64,"medium",3,{"v":-1E-4,"d":"-0.01%"},"medium",3,-0.1,"medium",3,3,11,"medium",3,3,"high",2,{"v":0.1,"d":"10%"},"low",4,3]
["Belize","BZ",0.683,"high",2,{"v":6.3E-3,"d":"0.6%"},"low",4,"37,0%","high",2,{"v":2.6666666666666665,"d":"2.7"},3,"medium",3,{"v":0.134,"d":"13.4%"},"high",2,2.5,86,"medium",3,{"v":0.093,"d":"9.3%"},"medium",3,3,{"v":0.016,"d":"2%"},"low",4,{"v":0.03,"d":"3%"},"low",4,{"v":0.95,"d":"95%"},"low",4,{"v":0.49,"d":"49%"},"high",2,3.5,"N/A","N/A","N/A","N/A","N/A","N/A","N/A",0.52,"medium",3,"PartiallyMeets","high",2,{"v":5553,"d":"5,553"},"medium",3,2.6666666666666665,"N/A","N/A","N/A",3.9,"veryHigh",1,1,53,"low",4,62.1,"medium",3,3.5,130,"low",4,{"v":-0.0085,"d":"-0.85%"},"veryHigh",1,-11.4,"medium",3,2.6666666666666665,81,"veryHigh",1,0,"low",4,{"v":0,"d":"0%"},"low",4,3]
["Benin","BJ",0.525,"veryHigh",1,{"v":0.409,"d":"40.9%"},"high",2,"53,2%","veryHigh",1,{"v":1.3333333333333333,"d":"1.3"},4,"high",2,{"v":0.373,"d":"37.3%"},"high",2,2,152,"high",2,{"v":0.289,"d":"28.9%"},"high",2,2,{"v":0.247,"d":"25%"},"high",2,{"v":0.25,"d":"25%"},"veryHigh",1,{"v":0.41,"d":"41%"},"veryHigh",1,{"v":0.12,"d":"12%"},"veryHigh",1,1.25,"Yes","veryHigh",1,66,"high",2,1.5,0.69,"medium",3,"N/A","N/A","N/A",{"v":2242,"d":"2,242"},"low",4,3.5,99,"low",4,"N/A","N/A","N/A",4,42,"medium",3,72.5,"medium",3,3,130,"low",4,{"v":-0.0147,"d":"-1.47%"},"veryHigh",1,-50,"medium",3,2.6666666666666665,53,"veryHigh",1,0,"low",4,{"v":0,"d":"0%"},"low",4,3]
["Bolivia","BO",0.692,"high",2,{"v":0.019,"d":"1.9%"},"low",4,"6,2%","medium",3,{"v":3,"d":"3.0"},3,"medium",3,{"v":0.044,"d":"4.4%"},"medium",3,3,99,"medium",3,{"v":0.044,"d":"4.4%"},"medium",3,3,{"v":0.154,"d":"15%"},"high",2,{"v":0.14,"d":"14%"},"medium",3,{"v":0.86,"d":"86%"},"medium",3,{"v":0.76,"d":"76%"},"medium",3,2.75,"Yes","veryHigh",1,129,"medium",3,2,0.39,"high",2,"PartiallyMeets","high",2,{"v":22172,"d":"22,172"},"medium",3,2.3333333333333335,74,"low",4,1.4,"low",4,4,39,"medium",3,73.4,"medium",3,3,10,"veryHigh",1,{"v":-4.3E-3,"d":"-0.43%"},"high",2,-225.2,"high",2,1.6666666666666667,18,"medium",3,1,"medium",3,{"v":0.28,"d":"28%"},"medium",3,3]
["Bosnia and Herzegovina","BA",0.78,"medium",3,"N/A","N/A","N/A","1,0%","low",4,3.5,3,"medium",3,{"v":1E-4,"d":"0.0%"},"low",4,3.5,38,"low",4,{"v":0,"d":"0.0%"},"low",4,4,{"v":0.089,"d":"9%"},"medium",3,"N/A","N/A","N/A",{"v":0.99,"d":"99%"},"low",4,{"v":0.96,"d":"96%"},"low",4,3.6666666666666665,"N/A","N/A","N/A",98,"medium",3,3,0.6,"medium",3,"FullyMeets","low",4,{"v":99147,"d":"99,147"},"high",2,3,41,"high",2,"N/A","N/A","N/A",2,34,"high",2,73,"medium",3,2.5,48,"high",2,{"v":0.4,"d":"40%"},"low",4,8.5,"low",4,3.3333333333333335,4,"low",4,1,"medium",3,{"v":0,"d":"0%"},"low",4,3.6666666666666665]
["Brazil","BR",0.754,"medium",3,{"v":0.009,"d":"0.9%"},"low",4,"5,3%","medium",3,{"v":3.3333333333333335,"d":"3.3"},5,"veryHigh",1,{"v":0.018,"d":"1.8%"},"low",4,2.5,94,"medium",3,{"v":0.02,"d":"2.0%"},"low",4,3.5,{"v":0.021,"d":"2%"},"low",4,{"v":0.05,"d":"5%"},"medium",3,{"v":0.92,"d":"92%"},"low",4,{"v":0.74,"d":"74%"},"medium",3,3.5,"N/A","N/A","N/A",142,"low",4,4,0.48,"high",2,"Meets","medium",3,{"v":463789,"d":"463,789"},"high",2,2.3333333333333335,"N/A","N/A","N/A",1.8,"low",4,4,42,"medium",3,73.9,"medium",3,3,27,"high",2,{"v":-0.003,"d":"-0.3%"},"high",2,-1496.1,"veryHigh",1,1.6666666666666667,27,"high",2,0,"low",4,{"v":0.31,"d":"31%"},"medium",3,3]
["Bulgaria","BG",0.795,"medium",3,"N/A","N/A","N/A","2,8%","low",4,3.5,3,"medium",3,"N/A","N/A","N/A",3,52,"low",4,"N/A","N/A","N/A",4,"N/A","N/A","N/A","N/A","N/A","N/A","N/A","N/A","N/A","N/A","N/A","N/A","N/A","N/A","N/A","N/A",78,"high",2,2,0.58,"medium",3,"FullyMeets","low",4,{"v":31497,"d":"31,497"},"medium",3,3.3333333333333335,"N/A","N/A","N/A","N/A","N/A","N/A","N/A",46,"medium",3,51.6,"medium",3,3,119,"low",4,{"v":0.0041,"d":"0.41%"},"low",4,15.6,"low",4,4,"N/A","N/A","N/A",2,"medium",3,{"v":0,"d":"0%"},"low",4,3.5]
["Burkina Faso","BF",0.449,"veryHigh",1,"N/A","N/A","N/A","59,8%","veryHigh",1,{"v":1,"d":"1.0"},4,"high",2,{"v":0.312,"d":"31.2%"},"high",2,2,157,"veryHigh",1,{"v":0.325,"d":"32.5%"},"high",2,1.5,{"v":0.357,"d":"36%"},"veryHigh",1,{"v":0.42,"d":"42%"},"veryHigh",1,{"v":0.21,"d":"21%"},"veryHigh",1,{"v":0.03,"d":"3%"},"veryHigh",1,1,"Yes","veryHigh",1,76,"high",2,1.5,0.67,"medium",3,"FullyMeets","low",4,{"v":1614399,"d":"1,614,399"},"veryHigh",1,2.6666666666666665,38,"high",2,1.4,"low",4,3,30,"high",2,90.5,"veryHigh",1,1.5,130,"low",4,{"v":-0.0077,"d":"-0.77%"},"veryHigh",1,-50,"medium",3,2.6666666666666665,19,"medium",3,3,"high",2,{"v":0.42,"d":"42%"},"high",2,2.3333333333333335]
["Burundi","BI",0.426,"veryHigh",1,{"v":0.461,"d":"46.1%"},"high",2,"86,7%","veryHigh",1,{"v":1.3333333333333333,"d":"1.3"},5,"veryHigh",1,{"v":0.794,"d":"79.4%"},"veryHigh",1,1,127,"high",2,{"v":0.7901,"d":"79.0%"},"veryHigh",1,1.5,{"v":0.332,"d":"33%"},"veryHigh",1,{"v":0.31,"d":"31%"},"veryHigh",1,{"v":0.47,"d":"47%"},"veryHigh",1,{"v":0.19,"d":"19%"},"veryHigh",1,1,"N/A","N/A","N/A",3,"veryHigh",1,1,"N/A","N/A","N/A","N/A","N/A","N/A",{"v":107146,"d":"107,146"},"high",2,2,19,"veryHigh",1,"N/A","N/A","N/A",1,10,"veryHigh",1,95.1,"veryHigh",1,1,57,"medium",3,{"v":0.0373,"d":"3.73%"},"low",4,8.6,"low",4,3.6666666666666665,29,"high",2,0,"low",4,{"v":0.34,"d":"34%"},"medium",3,3]
["Cameroon","CM",0.576,"high",2,{"v":0.246,"d":"24.6%"},"medium",3,"47,0%","veryHigh",1,{"v":2,"d":"2.0"},4,"high",2,{"v":0.213,"d":"21.3%"},"high",2,2,148,"high",2,{"v":0.222,"d":"22.2%"},"high",2,2,{"v":0.437,"d":"44%"},"veryHigh",1,{"v":0.39,"d":"39%"},"veryHigh",1,{"v":0.58,"d":"58%"},"high",2,{"v":0.27,"d":"27%"},"veryHigh",1,1.25,"N/A","N/A","N/A",44,"high",2,2,0.46,"high",2,"PartiallyMeets","high",2,{"v":1399608,"d":"1,399,608"},"veryHigh",1,1.6666666666666667,16,"veryHigh",1,2.9,"medium",3,2,9,"veryHigh",1,96,"veryHigh",1,1,68,"medium",3,{"v":-0.0027,"d":"-0.27%"},"high",2,-56,"medium",3,2.6666666666666665,0,"low",4,0,"low",4,{"v":0.09,"d":"9%"},"low",4,4]
["Canada","CA",0.936,"low",4,"N/A","N/A","N/A","0,5%","low",4,{"v":4,"d":"4.0"},3,"medium",3,"N/A","N/A","N/A",3,17,"low",4,"N/A","N/A","N/A",4,"N/A","N/A","N/A","N/A","N/A","N/A","N/A","N/A","N/A","N/A","N/A","N/A","N/A","N/A","N/A","N/A",166,"low",4,4,0.65,"medium",3,"FullyMeets","low",4,{"v":197555,"d":"197,555"},"high",2,3,"N/A","N/A","N/A",2.6,"medium",3,3,58,"low",4,20.1,"low",4,4,62,"medium",3,{"v":-1E-4,"d":"-0.01%"},"medium",3,-39.4,"medium",3,3,"N/A","N/A","N/A",0,"low",4,{"v":0.18,"d":"18%"},"medium",3,3.5]
["Cayman Islands","KY","N/A","N/A","N/A","N/A","N/A","N/A","N/A","N/A","N/A","N/A","N/A","N/A","N/A","N/A","N/A","N/A","N/A","N/A","N/A","N/A","N/A","N/A","N/A","N/A","N/A","N/A","N/A","N/A","N/A","N/A","N/A","N/A","N/A","N/A","N/A","N/A","N/A","N/A","N/A","N/A","N/A","N/A","N/A","N/A","N/A","N/A","N/A","N/A","N/A","N/A",179,"low",4,4,"N/A","N/A","N/A","N/A","N/A","N/A","N/A","N/A","N/A","N/A","N/A","N/A","N/A","N/A","N/A","N/A","N/A",{"v":0,"d":"0%"},"low",4,0,"low",4,4,"N/A","N/A","N/A","N/A","N/A","N/A","N/A","N/A","N/A","N/A"]
["Chile","CL",0.855,"low",4,"N/A","N/A","N/A","1,7%","low",4,{"v":4,"d":"4.0"},4,"high",2,{"v":1E-3,"d":"0.1%"},"low",4,3,47,"low",4,{"v":1.5E-3,"d":"0.2%"},"low",4,4,{"v":0.038,"d":"4%"},"low",4,{"v":0.06,"d":"6%"},"medium",3,{"v":0.96,"d":"96%"},"low",4,{"v":0.95,"d":"95%"},"low",4,3.75,"N/A","N/A","N/A",162,"low",4,4,0.57,"medium",3,"FullyMeets","low",4,{"v":624868,"d":"624,868"},"veryHigh",1,2.6666666666666665,"N/A","N/A","N/A",2.4,"medium",3,3,56,"low",4,43.2,"low",4,4,25,"high",2,{"v":0.0085,"d":"0.85%"},"low",4,148.5,"low",4,3.3333333333333335,1,"low",4,3,"high",2,{"v":0.52,"d":"52%"},"high",2,2.6666666666666665]
["China","CN",0.768,"medium",3,"N/A","N/A","N/A","3,0%","low",4,3.5,5,"veryHigh",1,{"v":2E-3,"d":"0.2%"},"low",4,2.5,48,"low",4,{"v":2E-3,"d":"0.2%"},"low",4,4,"N/A","N/A","N/A","N/A","N/A","N/A",{"v":0.96,"d":"96%"},"low",4,{"v":0.88,"d":"88%"},"low",4,4,"Yes","veryHigh",1,111,"medium",3,2,0.46,"high",2,"Meets","medium",3,{"v":304221,"d":"304,221"},"high",2,2.3333333333333335,42,"high",2,2.3,"medium",3,2.5,11,"veryHigh",1,66.9,"medium",3,2,32,"high",2,{"v":0.0093,"d":"0.93%"},"low",4,1936.8,"low",4,3.3333333333333335,27,"high",2,2,"medium",3,{"v":0.36,"d":"36%"},"medium",3,2.6666666666666665]
["Colombia","CO",0.752,"medium",3,{"v":0.0083,"d":"0.8%"},"low",4,"21,1%","medium",3,{"v":3.3333333333333335,"d":"3.3"},5,"veryHigh",1,{"v":0.024,"d":"2.4%"},"low",4,2.5,102,"medium",3,{"v":0.026,"d":"2.6%"},"low",4,3.5,{"v":0.025,"d":"3%"},"low",4,{"v":0.07,"d":"7%"},"medium",3,{"v":0.87,"d":"87%"},"medium",3,{"v":0.57,"d":"57%"},"high",2,3,"Yes","veryHigh",1,113,"medium",3,2,0.48,"high",2,"FullyMeets","low",4,{"v":9880716,"d":"9,880,716"},"veryHigh",1,2.3333333333333335,40,"high",2,1.5,"low",4,3,35,"medium",3,78.4,"medium",3,3,28,"high",2,{"v":-2.8E-3,"d":"-0.28%"},"high",2,-166.6,"high",2,2,7,"low",4,0,"low",4,{"v":0.2,"d":"20%"},"medium",3,3.6666666666666665]
["Congo (Democratic Republic)","CD",0.479,"veryHigh",1,{"v":0.368,"d":"36.8%"},"high",2,"87,7%","veryHigh",1,{"v":1.3333333333333333,"d":"1.3"},4,"high",2,{"v":0.688,"d":"68.8%"},"veryHigh",1,1.5,151,"high",2,{"v":0.688,"d":"68.8%"},"veryHigh",1,1.5,{"v":0.174,"d":"17%"},"high",2,{"v":0.15,"d":"15%"},"high",2,{"v":0.53,"d":"53%"},"high",2,{"v":0.39,"d":"39%"},"high",2,2,"NotIdentifiedinAgriculture","medium",3,12,"veryHigh",1,2,0.55,"medium",3,"N/A","N/A","N/A",{"v":5934206,"d":"5,934,206"},"veryHigh",1,2,7,"veryHigh",1,"N/A","N/A","N/A",1,15,"veryHigh",1,107.3,"veryHigh",1,1,51,"medium",3,{"v":-0.0083,"d":"-0.83%"},"veryHigh",1,-1101.4,"veryHigh",1,1.6666666666666667,6,"low",4,0,"low",4,{"v":0.01,"d":"1%"},"low",4,4]
["Costa Rica","CR",0.809,"low",4,{"v":0,"d":"0.0%"},"low",4,"6,0%","low",4,{"v":4,"d":"4.0"},2,"low",4,{"v":0.003,"d":"0.3%"},"low",4,4,60,"low",4,{"v":2E-3,"d":"0.2%"},"low",4,4,{"v":0.065,"d":"7%"},"medium",3,{"v":0.04,"d":"4%"},"low",4,{"v":0.98,"d":"98%"},"low",4,{"v":0.68,"d":"68%"},"medium",3,3.5,"N/A","N/A","N/A",159,"low",4,4,0.69,"medium",3,"N/A","N/A","N/A",{"v":186538,"d":"186,538"},"high",2,2.5,"N/A","N/A","N/A",1.9,"low",4,4,53,"low",4,41,"low",4,4,130,"low",4,{"v":0.0056,"d":"0.56%"},"low",4,16.4,"low",4,4,9,"low",4,0,"low",4,{"v":0,"d":"0%"},"low",4,4]
["Cote d'Ivoire","CI",0.55,"high",2,{"v":0.245,"d":"24.5%"},"medium",3,"39,6%","high",2,{"v":2.3333333333333335,"d":"2.3"},4,"high",2,{"v":0.2,"d":"20.0%"},"high",2,2,155,"veryHigh",1,{"v":0.23,"d":"23.0%"},"high",2,1.5,{"v":0.256,"d":"26%"},"veryHigh",1,{"v":0.22,"d":"22%"},"high",2,{"v":0.39,"d":"39%"},"veryHigh",1,{"v":0.11,"d":"11%"},"veryHigh",1,1.25,"Yes","veryHigh",1,56,"high",2,1.5,0.6,"medium",3,"FullyMeets","low",4,{"v":935782,"d":"935,782"},"veryHigh",1,2.6666666666666665,46,"high",2,2.8,"medium",3,2.5,30,"high",2,89.6,"high",2,2,129,"low",4,{"v":-0.0329,"d":"-3.29%"},"veryHigh",1,-112.9,"high",2,2.3333333333333335,14,"medium",3,0,"low",4,{"v":0,"d":"0%"},"low",4,3.6666666666666665]
["Croatia","HR",0.858,"low",4,"N/A","N/A","N/A","1,0%","low",4,{"v":4,"d":"4.0"},2,"low",4,"N/A","N/A","N/A",4,26,"low",4,"N/A","N/A","N/A",4,"N/A","N/A","N/A","N/A","N/A","N/A","N/A","N/A","N/A","N/A","N/A","N/A","N/A","N/A","N/A","N/A",54,"high",2,2,0.62,"medium",3,"FullyMeets","low",4,{"v":5018,"d":"5,018"},"medium",3,3.3333333333333335,109,"low",4,"N/A","N/A","N/A",4,49,"medium",3,49.3,"low",4,3.5,81,"medium",3,{"v":1E-3,"d":"0.1%"},"low",4,1.9,"low",4,3.6666666666666665,"N/A","N/A","N/A",0,"low",4,{"v":0,"d":"0%"},"low",4,4]
["Cuba","CU",0.764,"medium",3,{"v":1E-3,"d":"0.1%"},"low",4,"N/A","N/A","N/A",3.5,"N/A","N/A","N/A","N/A","N/A","N/A","N/A",73,"medium",3,"N/A","N/A","N/A",3,"N/A","N/A","N/A","N/A","N/A","N/A",{"v":0.99,"d":"99%"},"low",4,{"v":0.91,"d":"91%"},"low",4,4,"N/A","N/A","N/A",91,"medium",3,3,"N/A","N/A","N/A","N/A","N/A","N/A",220,"low",4,4,81,"low",4,4,"veryHigh",1,2.5,11,"veryHigh",1,60.1,"medium",3,2,"N/A","N/A","N/A",{"v":0.0101,"d":"1.01%"},"low",4,31,"low",4,4,"N/A","N/A","N/A",2,"medium",3,{"v":0.17,"d":"17%"},"medium",3,3]
["Cyprus","CY",0.896,"low",4,"N/A","N/A","N/A","0,2%","low",4,{"v":4,"d":"4.0"},"N/A","N/A","N/A","N/A","N/A","N/A","N/A",35,"low",4,"N/A","N/A","N/A",4,"N/A","N/A","N/A","N/A","N/A","N/A","N/A","N/A","N/A","N/A","N/A","N/A","N/A","N/A","N/A","N/A",82,"high",2,2,0.64,"medium",3,"N/A","N/A","N/A",{"v":41679,"d":"41,679"},"medium",3,3,"N/A","N/A","N/A","N/A","N/A","N/A","N/A",55,"low",4,56.9,"medium",3,3.5,130,"low",4,{"v":-0.0002,"d":"-0.02%"},"medium",3,"N/A","N/A","N/A",3.5,19,"medium",3,3,"high",2,{"v":0.21,"d":"21%"},"medium",3,2.6666666666666665]
["Czech Republic","CZ",0.889,"low",4,"N/A","N/A","N/A","0,0%","low",4,{"v":4,"d":"4.0"},2,"low",4,"N/A","N/A","N/A",4,34,"low",4,"N/A","N/A","N/A",4,"N/A","N/A","N/A","N/A","N/A","N/A","N/A","N/A","N/A","N/A","N/A","N/A","N/A","N/A","N/A","N/A",108,"medium",3,3,0.71,"medium",3,"Meets","medium",3,{"v":5121,"d":"5,121"},"medium",3,3,"N/A","N/A","N/A","N/A","N/A","N/A","N/A",55,"low",4,39.9,"low",4,4,107,"low",4,{"v":0.0007,"d":"0.07%"},"low",4,2,"low",4,4,6,"low",4,1,"medium",3,{"v":0,"d":"0%"},"low",4,3.6666666666666665]
["Denmark","DK",0.948,"low",4,"N/A","N/A","N/A","0,3%","low",4,{"v":4,"d":"4.0"},1,"low",4,"N/A","N/A","N/A",4,1,"low",4,"N/A","N/A","N/A",4,"N/A","N/A","N/A","N/A","N/A","N/A","N/A","N/A","N/A","N/A","N/A","N/A","N/A","N/A","N/A","N/A",150,"low",4,4,0.78,"low",4,"PartiallyMeets","high",2,{"v":49185,"d":"49,185"},"medium",3,3,"N/A","N/A","N/A","N/A","N/A","N/A","N/A",57,"low",4,18.1,"low",4,4,82,"medium",3,{"v":0.0069,"d":"0.69%"},"low",4,4.2,"low",4,3.6666666666666665,"N/A","N/A","N/A",2,"medium",3,{"v":0.43,"d":"43%"},"high",2,2.5]
["Dominican Republic","DO",0.767,"medium",3,"N/A","N/A","N/A","5,3%","medium",3,{"v":3,"d":"3.0"},2,"low",4,{"v":0.003,"d":"0.3%"},"low",4,4,106,"medium",3,{"v":0.003,"d":"0.3%"},"low",4,3.5,{"v":0.063,"d":"6%"},"medium",3,{"v":0.04,"d":"4%"},"low",4,{"v":0.88,"d":"88%"},"medium",3,{"v":0.69,"d":"69%"},"medium",3,3.25,"N/A","N/A","N/A",87,"high",2,2,0.52,"medium",3,"N/A","N/A","N/A",{"v":116804,"d":"116,804"},"high",2,2.5,111,"low",4,"N/A","N/A","N/A",4,41,"medium",3,62.8,"medium",3,3,130,"low",4,{"v":0.0034,"d":"0.34%"},"low",4,7.1,"low",4,4,"N/A","N/A","N/A",1,"medium",3,{"v":0.53,"d":"53%"},"high",2,2.5]
["Ecuador","EC",0.74,"medium",3,"N/A","N/A","N/A","14,4%","medium",3,{"v":3,"d":"3.0"},5,"veryHigh",1,{"v":0.045,"d":"4.5%"},"medium",3,2,85,"medium",3,{"v":0.045,"d":"4.5%"},"medium",3,3,{"v":0.082,"d":"8%"},"medium",3,"N/A","N/A","N/A",{"v":0.98,"d":"98%"},"low",4,{"v":0.84,"d":"84%"},"low",4,3.6666666666666665,"N/A","N/A","N/A",123,"medium",3,3,0.45,"high",2,"Meets","medium",3,{"v":567622,"d":"567,622"},"veryHigh",1,2,85,"low",4,1.9,"low",4,4,40,"medium",3,69.1,"medium",3,3,121,"low",4,{"v":-0.0041,"d":"-0.41%"},"high",2,-53,"medium",3,3,30,"veryHigh",1,1,"medium",3,{"v":0.22,"d":"22%"},"medium",3,2.3333333333333335]
["Egypt","EG",0.731,"medium",3,"N/A","N/A","N/A","22,0%","high",2,2.5,5,"veryHigh",1,{"v":0.018,"d":"1.8%"},"low",4,2.5,109,"medium",3,{"v":0.024,"d":"2.4%"},"low",4,3.5,{"v":0.049,"d":"5%"},"low",4,{"v":0.05,"d":"5%"},"medium",3,{"v":0.9,"d":"90%"},"medium",3,{"v":0.77,"d":"77%"},"medium",3,3.25,"N/A","N/A","N/A",63,"high",2,2,0.47,"high",2,"Meets","medium",3,{"v":341083,"d":"341,083"},"high",2,2.3333333333333335,30,"high",2,"N/A","N/A","N/A",2,12,"veryHigh",1,83.6,"high",2,1.5,120,"low",4,{"v":-0.0371,"d":"-3.71%"},"veryHigh",1,-2.1,"medium",3,2.6666666666666665,1,"low",4,3,"high",2,{"v":0.49,"d":"49%"},"high",2,2.6666666666666665]
["El Salvador","SV",0.675,"high",2,"N/A","N/A","N/A","6,6%","medium",3,2.5,3,"medium",3,{"v":0.005,"d":"0.5%"},"low",4,3.5,88,"medium",3,{"v":2E-3,"d":"0.2%"},"low",4,3.5,{"v":0.041,"d":"4%"},"low",4,{"v":0.07,"d":"7%"},"medium",3,{"v":0.81,"d":"81%"},"medium",3,{"v":0.59,"d":"59%"},"high",2,3,"N/A","N/A","N/A",119,"medium",3,3,0.5,"high",2,"FullyMeets","low",4,{"v":74689,"d":"74,689"},"high",2,2.6666666666666665,55,"medium",3,"N/A","N/A","N/A",3,33,"high",2,70.8,"medium",3,2.5,103,"low",4,{"v":-0.0074,"d":"-0.74%"},"veryHigh",1,-4.5,"medium",3,2.6666666666666665,16,"medium",3,1,"medium",3,{"v":0.51,"d":"51%"},"high",2,2.6666666666666665]
["Estonia","EE",0.89,"low",4,"N/A","N/A","N/A","0,9%","low",4,{"v":4,"d":"4.0"},2,"low",4,"N/A","N/A","N/A",4,28,"low",4,"N/A","N/A","N/A",4,"N/A","N/A","N/A","N/A","N/A","N/A","N/A","N/A","N/A","N/A","N/A","N/A","N/A","N/A","N/A","N/A",94,"medium",3,3,0.81,"low",4,"FullyMeets","low",4,{"v":70930,"d":"70,930"},"high",2,3.3333333333333335,"N/A","N/A","N/A","N/A","N/A","N/A","N/A",56,"low",4,37.7,"low",4,4,83,"medium",3,{"v":4.3E-3,"d":"0.43%"},"low",4,10.2,"low",4,3.6666666666666665,"N/A","N/A","N/A",2,"medium",3,{"v":0.39,"d":"39%"},"medium",3,3]
["Eswatini","SZ",0.597,"high",2,"N/A","N/A","N/A","58,0%","veryHigh",1,1.5,5,"veryHigh",1,{"v":0.221,"d":"22.1%"},"high",2,1.5,138,"high",2,{"v":0.226,"d":"22.6%"},"high",2,2,{"v":0.117,"d":"12%"},"medium",3,{"v":0.08,"d":"8%"},"medium",3,{"v":0.67,"d":"67%"},"high",2,{"v":0.46,"d":"46%"},"high",2,2.5,"N/A","N/A","N/A",24,"veryHigh",1,1,"N/A","N/A","N/A","N/A","N/A","N/A",{"v":1551,"d":"1,551"},"low",4,4,92,"low",4,2.4,"medium",3,3.5,16,"veryHigh",1,80.4,"high",2,1.5,130,"low",4,{"v":0.0025,"d":"0.25%"},"low",4,1.2,"low",4,4,13,"medium",3,1,"medium",3,{"v":0,"d":"0%"},"low",4,3.3333333333333335]
["Ethiopia","ET",0.498,"veryHigh",1,{"v":0.419,"d":"41.9%"},"high",2,"65,0%","veryHigh",1,{"v":1.3333333333333333,"d":"1.3"},4,"high",2,{"v":0.184,"d":"18.4%"},"high",2,2,129,"high",2,{"v":0.197,"d":"19.7%"},"high",2,2,{"v":0.415,"d":"42%"},"veryHigh",1,{"v":0.45,"d":"45%"},"veryHigh",1,{"v":0.4,"d":"40%"},"veryHigh",1,{"v":0.11,"d":"11%"},"veryHigh",1,1,"NotIdentifiedinAgriculture","medium",3,52,"high",2,2.5,0.81,"low",4,"Meets","medium",3,{"v":4555173,"d":"4,555,173"},"veryHigh",1,2.6666666666666665,12,"veryHigh",1,1.9,"low",4,2.5,11,"veryHigh",1,99.3,"veryHigh",1,1,72,"medium",3,{"v":-0.0042,"d":"-0.42%"},"high",2,-73,"medium",3,2.6666666666666665,29,"high",2,1,"medium",3,{"v":0.19,"d":"19%"},"medium",3,2.6666666666666665]
["Fiji","FJ",0.73,"medium",3,"N/A","N/A","N/A","12,4%","medium",3,{"v":3,"d":"3.0"},4,"high",2,{"v":2E-3,"d":"0.2%"},"low",4,3,77,"medium",3,{"v":1E-3,"d":"0.1%"},"low",4,3.5,"Yes","medium",3,{"v":0.17,"d":"17%"},"high",2,"N/A","N/A","N/A","N/A","N/A","N/A",2.5,"N/A","N/A","N/A","N/A","N/A","N/A","N/A","N/A","N/A","N/A","PartiallyMeets","high",2,18,"low",4,3,110,"low",4,"N/A","N/A","N/A",4,35,"medium",3,68.9,"medium",3,3,75,"medium",3,{"v":0.0061,"d":"0.61%"},"low",4,6.7,"low",4,3.6666666666666665,"N/A","N/A","N/A","N/A","N/A","N/A",{"v":0,"d":"0%"},"low",4,4]
["Finland","FI",0.94,"low",4,"N/A","N/A","N/A","0,1%","low",4,{"v":4,"d":"4.0"},1,"low",4,"N/A","N/A","N/A",4,6,"low",4,"N/A","N/A","N/A",4,"N/A","N/A","N/A","N/A","N/A","N/A","N/A","N/A","N/A","N/A","N/A","N/A","N/A","N/A","N/A","N/A",149,"low",4,4,0.85,"low",4,"FullyMeets","low",4,{"v":30042,"d":"30,042"},"medium",3,3.6666666666666665,"N/A","N/A","N/A",4,"veryHigh",1,1,60,"low",4,15.1,"low",4,4,112,"low",4,{"v":0.0007,"d":"0.07%"},"low",4,16.7,"low",4,4,1,"low",4,0,"low",4,{"v":0.17,"d":"17%"},"medium",3,3.6666666666666665]
["France","FR",0.903,"low",4,"N/A","N/A","N/A","0,1%","low",4,{"v":4,"d":"4.0"},2,"low",4,"N/A","N/A","N/A",4,22,"low",4,"N/A","N/A","N/A",4,"N/A","N/A","N/A","N/A","N/A","N/A","N/A","N/A","N/A","N/A","N/A","N/A","N/A","N/A","N/A","N/A",136,"medium",3,3,0.62,"medium",3,"Meets","medium",3,{"v":580898,"d":"580,898"},"veryHigh",1,2.3333333333333335,"N/A","N/A","N/A","N/A","N/A","N/A","N/A",51,"medium",3,30.9,"low",4,3.5,40,"high",2,{"v":0.5,"d":"50%"},"low",4,83.4,"low",4,3.3333333333333335,12,"medium",3,2,"medium",3,{"v":0.08,"d":"8%"},"low",4,3.3333333333333335]
["Germany","DE",0.942,"low",4,"N/A","N/A","N/A","0,2%","low",4,{"v":4,"d":"4.0"},1,"low",4,"N/A","N/A","N/A",4,19,"low",4,"N/A","N/A","N/A",4,"N/A","N/A","N/A","N/A","N/A","N/A","N/A","N/A","N/A","N/A","N/A","N/A","N/A","N/A","N/A","N/A",134,"medium",3,3,0.78,"low",4,"FullyMeets","low",4,{"v":1537500,"d":"1,537,500"},"veryHigh",1,3,"N/A","N/A","N/A","N/A","N/A","N/A","N/A",55,"low",4,23.6,"low",4,4,56,"medium",3,{"v":1E-4,"d":"0.01%"},"low",4,1,"low",4,3.6666666666666665,"N/A","N/A","N/A",2,"medium",3,{"v":0.16,"d":"16%"},"medium",3,3]
["Ghana","GH",0.632,"high",2,{"v":0.084,"d":"8.4%"},"medium",3,"48,9%","veryHigh",1,{"v":2,"d":"2.0"},2,"low",4,{"v":0.079,"d":"7.9%"},"medium",3,3.5,130,"high",2,{"v":0.082,"d":"8.2%"},"medium",3,2.5,{"v":0.13,"d":"13%"},"medium",3,{"v":0.2,"d":"20%"},"high",2,{"v":0.65,"d":"65%"},"high",2,{"v":0.36,"d":"36%"},"high",2,2.25,"NotIdentifiedinAgriculture","medium",3,71,"high",2,2.5,0.57,"medium",3,"PartiallyMeets","high",2,{"v":13773,"d":"13,773"},"medium",3,2.6666666666666665,"N/A","N/A","N/A",2.1,"medium",3,3,45,"medium",3,63,"medium",3,3,42,"high",2,{"v":0.0005,"d":"0.05%"},"low",4,4.3,"low",4,3.3333333333333335,14,"medium",3,0,"low",4,{"v":0.37,"d":"37%"},"medium",3,3.3333333333333335]
["Greece","GR",0.887,"low",4,"N/A","N/A","N/A","1,3%","low",4,{"v":4,"d":"4.0"},4,"high",2,"N/A","N/A","N/A",2,32,"low",4,"N/A","N/A","N/A",4,"N/A","N/A","N/A","N/A","N/A","N/A","N/A","N/A","N/A","N/A","N/A","N/A","N/A","N/A","N/A","N/A",27,"veryHigh",1,1,0.55,"medium",3,"Meets","medium",3,{"v":164838,"d":"164,838"},"high",2,2.6666666666666665,"N/A","N/A","N/A","N/A","N/A","N/A","N/A",50,"medium",3,55.8,"medium",3,3,36,"high",2,"N/A","N/A","N/A","N/A","N/A","N/A",2,16,"medium",3,3,"high",2,{"v":0.36,"d":"36%"},"medium",3,2.6666666666666665]
["Guatemala","GT",0.627,"high",2,{"v":0.112,"d":"11.2%"},"medium",3,"25,9%","high",2,{"v":2.3333333333333335,"d":"2.3"},5,"veryHigh",1,{"v":0.032,"d":"3.2%"},"medium",3,2,121,"high",2,{"v":0.041,"d":"4.1%"},"medium",3,2.5,{"v":0.065,"d":"7%"},"medium",3,"N/A","N/A","N/A",{"v":0.72,"d":"72%"},"high",2,{"v":0.35,"d":"35%"},"high",2,2.3333333333333335,"N/A","N/A","N/A",99,"medium",3,3,0.43,"high",2,"FullyMeets","low",4,{"v":556801,"d":"556,801"},"veryHigh",1,2.3333333333333335,66,"medium",3,"N/A","N/A","N/A",3,30,"high",2,77.5,"medium",3,2.5,62,"medium",3,{"v":-0.0054,"d":"-0.54%"},"veryHigh",1,-19.5,"medium",3,2.3333333333333335,24,"high",2,2,"medium",3,{"v":0.24,"d":"24%"},"medium",3,2.6666666666666665]
["Haiti","HT",0.53,"veryHigh",1,{"v":0.185,"d":"18.5%"},"medium",3,"58,0%","veryHigh",1,{"v":1.6666666666666667,"d":"1.7"},5,"veryHigh",1,{"v":0.203,"d":"20.3%"},"high",2,1.5,163,"veryHigh",1,{"v":0.213,"d":"21.3%"},"high",2,1.5,{"v":0.344,"d":"34%"},"veryHigh",1,{"v":0.36,"d":"36%"},"veryHigh",1,{"v":0.43,"d":"43%"},"veryHigh",1,{"v":0.23,"d":"23%"},"veryHigh",1,1,"N/A","N/A","N/A",62,"high",2,2,0.51,"medium",3,"N/A","N/A","N/A","N/A","N/A","N/A",3,57,"medium",3,"N/A","N/A","N/A",3,22,"high",2,99.7,"veryHigh",1,1.5,50,"high",2,{"v":-0.0085,"d":"-0.85%"},"veryHigh",1,-3.1,"medium",3,2,"N/A","N/A","N/A",1,"medium",3,{"v":0.46,"d":"46%"},"high",2,2.5]
["Honduras","HN",0.621,"high",2,"N/A","N/A","N/A","26,4%","high",2,{"v":2,"d":"2.0"},5,"veryHigh",1,{"v":0.215,"d":"21.5%"},"high",2,1.5,107,"medium",3,{"v":0.073,"d":"7.3%"},"medium",3,3,{"v":0.09,"d":"9%"},"medium",3,"N/A","N/A","N/A",{"v":0.83,"d":"83%"},"medium",3,{"v":0.4,"d":"40%"},"high",2,2.6666666666666665,"N/A","N/A","N/A",99,"medium",3,3,0.41,"high",2,"FullyMeets","low",4,{"v":252586,"d":"252,586"},"high",2,2.6666666666666665,73,"low",4,1.6,"low",4,4,26,"high",2,78.7,"medium",3,2.5,79,"medium",3,{"v":-3.3E-3,"d":"-0.33%"},"high",2,-21.6,"medium",3,2.6666666666666665,"N/A","N/A","N/A",0,"low",4,{"v":0.16,"d":"16%"},"medium",3,3.5]
["Hong Kong","HK",0.952,"low",4,"N/A","N/A","N/A","N/A","N/A","N/A",{"v":4,"d":"4.0"},5,"veryHigh",1,"N/A","N/A","N/A",1,"N/A","N/A","N/A","N/A","N/A","N/A","N/A","N/A","N/A","N/A","N/A","N/A","N/A","N/A","N/A","N/A","N/A","N/A","N/A","N/A","N/A","N/A","N/A",156,"low",4,4,0.73,"medium",3,"N/A","N/A","N/A",271,"low",4,3.5,"N/A","N/A","N/A","N/A","N/A","N/A","N/A",33,"high",2,"N/A",null,null,2,"N/A","N/A","N/A","N/A","N/A","N/A","N/A","N/A","N/A","N/A","N/A","N/A","N/A","N/A","N/A","N/A","N/A","N/A","N/A","N/A"]
["Hungary","HU",0.846,"low",4,"N/A","N/A","N/A","0,9%","low",4,{"v":4,"d":"4.0"},4,"high",2,"N/A","N/A","N/A",2,55,"low",4,"N/A","N/A","N/A",4,"N/A","N/A","N/A","N/A","N/A","N/A","N/A","N/A","N/A","N/A","N/A","N/A","N/A","N/A","N/A","N/A",93,"medium",3,3,0.41,"high",2,"FullyMeets","low",4,{"v":5816,"d":"5,816"},"medium",3,3,"N/A","N/A","N/A","N/A","N/A","N/A","N/A",43,"medium",3,50.8,null,3,3,97,"medium",3,{"v":0.0003,"d":"0.03%"},"low",4,0.7,"low",4,3.6666666666666665,13,"medium",3,0,"low",4,{"v":0.07,"d":"7%"},"low",4,3.6666666666666665]
["Iceland","IS",0.959,"low",4,"N/A","N/A","N/A","0,0%","low",4,{"v":4,"d":"4.0"},1,"low",4,"N/A","N/A","N/A",4,8,"low",4,"N/A","N/A","N/A",4,"N/A","N/A","N/A","N/A","N/A","N/A","N/A","N/A","N/A","N/A","N/A","N/A","N/A","N/A","N/A","N/A",131,"medium",3,3,"N/A","N/A","N/A","Meets","medium",3,{"v":2204,"d":"2,204"},"low",4,3.5,"N/A","N/A","N/A","N/A","N/A","N/A","N/A",57,"low",4,17.1,null,4,4,100,"low",4,{"v":0.014,"d":"1.4%"},"low",4,0.7,"low",4,4,"N/A","N/A","N/A",0,"low",4,{"v":0,"d":"0%"},"low",4,4]
["India","IN",0.633,"high",2,{"v":0.088,"d":"8.8%"},"medium",3,"44,8%","veryHigh",1,{"v":2,"d":"2.0"},5,"veryHigh",1,{"v":0.076,"d":"7.6%"},"medium",3,2,122,"high",2,{"v":0.095,"d":"9.5%"},"medium",3,2.5,{"v":0.014,"d":"1%"},"low",4,"N/A","N/A","N/A",{"v":0.91,"d":"91%"},"low",4,{"v":0.79,"d":"79%"},"medium",3,3.6666666666666665,"Yes","veryHigh",1,53,"high",2,1.5,0.45,"high",2,"RequiresFurtherProgress","veryHigh",1,{"v":245935,"d":"245,935"},"high",2,1.6666666666666667,51,"medium",3,2.4,"medium",3,3,33,"high",2,75.3,null,3,2.5,7,"veryHigh",1,{"v":3.8E-3,"d":"0.38%"},"low",4,266.4,"low",4,3,30,"veryHigh",1,4,"veryHigh",1,{"v":0.33,"d":"33%"},"medium",3,1.6666666666666667]
["Indonesia","ID",0.705,"medium",3,{"v":0.004,"d":"0.4%"},"low",4,"22,4%","high",2,{"v":3,"d":"3.0"},5,"veryHigh",1,{"v":0.029,"d":"2.9%"},"low",4,2.5,110,"medium",3,{"v":0.032,"d":"3.2%"},"medium",3,3,{"v":0.037,"d":"4%"},"low",4,"N/A","N/A","N/A",{"v":0.95,"d":"95%"},"low",4,{"v":0.83,"d":"83%"},"low",4,4,"N/A","N/A","N/A",74,"high",2,2,0.44,"high",2,"Meets","medium",3,{"v":13909,"d":"13,909"},"medium",3,2.6666666666666665,50,"high",2,2.6,"medium",3,2.5,29,"high",2,66.6,null,3,2.5,14,"high",2,{"v":-0.0078,"d":"-0.78%"},"veryHigh",1,-752.6,"veryHigh",1,1.3333333333333333,21,"high",2,2,"medium",3,{"v":0.36,"d":"36%"},"medium",3,2.6666666666666665]
["Iran","IR",0.774,"medium",3,"N/A","N/A","N/A","6,2%","medium",3,{"v":3,"d":"3.0"},5,"veryHigh",1,{"v":2E-3,"d":"0.2%"},"low",4,2.5,115,"medium",3,{"v":2E-3,"d":"0.2%"},"low",4,3.5,"N/A","N/A","N/A","N/A","N/A","N/A","N/A","N/A","N/A","N/A","N/A","N/A","N/A","N/A","N/A","N/A",10,"veryHigh",1,1,0.44,"high",2,"N/A","N/A","N/A",{"v":802087,"d":"802,087"},"veryHigh",1,1.5,14,"veryHigh",1,"N/A","N/A","N/A",1,10,"veryHigh",1,84.1,null,2,1.5,18,"high",2,{"v":0.0006,"d":"0.06%"},"low",4,6,"low",4,3.3333333333333335,23,"high",2,4,"veryHigh",1,{"v":0.41,"d":"41%"},"high",2,1.6666666666666667]
["Ireland","IE",0.945,"low",4,"N/A","N/A","N/A","0,1%","low",4,{"v":4,"d":"4.0"},1,"low",4,"N/A","N/A","N/A",4,21,"low",4,"N/A","N/A","N/A",4,"N/A","N/A","N/A","N/A","N/A","N/A","N/A","N/A","N/A","N/A","N/A","N/A","N/A","N/A","N/A","N/A",147,"low",4,4,0.77,"low",4,"Meets","medium",3,{"v":16482,"d":"16,482"},"medium",3,3.3333333333333335,"N/A","N/A","N/A","N/A","N/A","N/A","N/A",58,"low",4,20.8,null,4,4,123,"low",4,{"v":0.0082,"d":"0.82%"},"low",4,6.2,"low",4,4,"N/A","N/A","N/A",0,"low",4,{"v":0,"d":"0%"},"low",4,4]
["Israel","IL",0.919,"low",4,"N/A","N/A","N/A","1,0%","low",4,{"v":4,"d":"4.0"},2,"low",4,"N/A","N/A","N/A",4,22,"low",4,"N/A","N/A","N/A",4,"N/A","N/A","N/A","N/A","N/A","N/A","N/A","N/A","N/A","N/A","N/A","N/A","N/A","N/A","N/A","N/A",90,"medium",3,3,"N/A","N/A","N/A","FullyMeets","low",4,{"v":39187,"d":"39,187"},"medium",3,3.5,108,"low",4,4,"veryHigh",1,2.5,42,"medium",3,42.6,null,4,3.5,128,"low",4,{"v":-0.0095,"d":"-0.95%"},"veryHigh",1,-1.4,"medium",3,2.6666666666666665,"N/A","N/A","N/A",4,"veryHigh",1,{"v":0.93,"d":"93%"},"veryHigh",1,1]
["Italy","IT",0.895,"low",4,"N/A","N/A","N/A","2,1%","low",4,{"v":4,"d":"4.0"},1,"low",4,"N/A","N/A","N/A",4,13,"low",4,"N/A","N/A","N/A",4,"N/A","N/A","N/A","N/A","N/A","N/A","N/A","N/A","N/A","N/A","N/A","N/A","N/A","N/A","N/A","N/A",122,"medium",3,3,0.66,"medium",3,"FullyMeets","low",4,{"v":199641,"d":"199,641"},"high",2,3,"N/A","N/A","N/A","N/A","N/A","N/A","N/A",54,"low",4,43.4,null,4,4,35,"high",2,{"v":0.0058,"d":"0.58%"},"low",4,53.8,"low",4,3.3333333333333335,13,"medium",3,3,"high",2,{"v":0.19,"d":"19%"},"medium",3,2.6666666666666665]
["Japan","JP",0.925,"low",4,"N/A","N/A","N/A","0,9%","low",4,{"v":4,"d":"4.0"},2,"low",4,"N/A","N/A","N/A",4,22,"low",4,"N/A","N/A","N/A",4,"N/A","N/A","N/A","N/A","N/A","N/A","N/A","N/A","N/A","N/A","N/A","N/A","N/A","N/A","N/A","N/A",167,"low",4,4,0.82,"low",4,"FullyMeets","low",4,{"v":18748,"d":"18,748"},"medium",3,3.6666666666666665,"N/A","N/A","N/A","N/A","N/A","N/A","N/A",56,"low",4,31,null,4,4,4,"veryHigh",1,{"v":-1E-4,"d":"-0.01%"},"medium",3,-3.1,"medium",3,2.3333333333333335,"N/A","N/A","N/A",1,"medium",3,{"v":0.35,"d":"35%"},"medium",3,3]
["Kenya","KE",0.575,"high",2,"N/A","N/A","N/A","59,6%","veryHigh",1,1.5,4,"high",2,{"v":0.264,"d":"26.4%"},"high",2,2,128,"high",2,{"v":0.268,"d":"26.8%"},"high",2,2,{"v":0.116,"d":"12%"},"medium",3,"N/A","N/A","N/A",{"v":0.76,"d":"76%"},"medium",3,{"v":0.59,"d":"59%"},"high",2,2.6666666666666665,"N/A","N/A","N/A",41,"high",2,2,0.46,"high",2,"FullyMeets","low",4,{"v":710978,"d":"710,978"},"veryHigh",1,2.3333333333333335,52,"medium",3,2.2,"medium",3,3,29,"high",2,88.2,null,2,2,25,"high",2,{"v":-1E-4,"d":"-0.01%"},"medium",3,-0.5,"medium",3,2.6666666666666665,40,"veryHigh",1,0,"low",4,{"v":0.35,"d":"35%"},"medium",3,2.6666666666666665]
["Kiribati","KI",0.624,"high",2,{"v":0.035,"d":"3.5%"},"low",4,"19,4%","high",2,{"v":2.6666666666666665,"d":"2.7"},"N/A","N/A","N/A","N/A","N/A","N/A","N/A","N/A","N/A","N/A","N/A","N/A","N/A","N/A",{"v":0.146,"d":"15%"},"medium",3,{"v":0.17,"d":"17%"},"high",2,{"v":0.93,"d":"93%"},"low",4,{"v":0.71,"d":"71%"},"medium",3,3,"N/A","N/A","N/A","N/A","N/A","N/A","N/A","N/A","N/A","N/A","N/A","N/A","N/A","N/A","N/A","N/A","N/A","N/A","N/A","N/A","N/A","N/A","N/A","N/A",56,"low",4,"N/A",null,"N/A",4,130,"low",4,{"v":0,"d":"0%"},"low",4,0,"low",4,4,"N/A","N/A","N/A","N/A","N/A","N/A","N/A","N/A","N/A","N/A"]
["Kuwait","KW",0.831,"low",4,"N/A","N/A","N/A","N/A","N/A","N/A",{"v":4,"d":"4.0"},5,"veryHigh",1,"N/A","N/A","N/A",1,74,"medium",3,"N/A","N/A","N/A",3,"N/A","N/A","N/A","N/A","N/A","N/A","N/A","N/A","N/A","N/A","N/A","N/A","N/A","N/A","N/A","N/A",155,"low",4,4,"N/A","N/A","N/A","FullyMeets","low",4,{"v":93821,"d":"93,821"},"high",2,3,"N/A","N/A","N/A","N/A","N/A","N/A","N/A",23,"high",2,52.2,null,3,2.5,130,"low",4,{"v":0,"d":"0%"},"low",4,0,"low",4,4,64,"veryHigh",1,4,"veryHigh",1,{"v":0.86,"d":"86%"},"veryHigh",1,1]
["Kyrgyzstan","KG",0.692,"high",2,{"v":0,"d":"0.0%"},"low",4,"18,7%","high",2,{"v":2.6666666666666665,"d":"2.7"},4,"high",2,{"v":0.003,"d":"0.3%"},"low",4,3,87,"medium",3,{"v":1E-3,"d":"0.1%"},"low",4,3.5,{"v":0.34,"d":"34%"},"veryHigh",1,{"v":0.22,"d":"22%"},"high",2,{"v":0.99,"d":"99%"},"low",4,{"v":0.99,"d":"99%"},"low",4,2.75,"N/A","N/A","N/A",85,"high",2,2,0.49,"high",2,"FullyMeets","low",4,{"v":1598,"d":"1,598"},"low",4,3.3333333333333335,53,"medium",3,"N/A","N/A","N/A",3,23,"high",2,77.1,null,3,2.5,130,"low",4,{"v":0.0068,"d":"0.68%"},"low",4,8.6,"low",4,4,24,"high",2,3,"high",2,{"v":0.24,"d":"24%"},"medium",3,2.3333333333333335]
["Laos","LA",0.607,"high",2,{"v":0.096,"d":"9.6%"},"medium",3,"32,5%","high",2,{"v":2.3333333333333335,"d":"2.3"},5,"veryHigh",1,{"v":0.093,"d":"9.3%"},"medium",3,2,120,"high",2,{"v":0.091,"d":"9.1%"},"medium",3,2.5,"N/A","N/A","N/A",{"v":0.28,"d":"28%"},"veryHigh",1,{"v":0.79,"d":"79%"},"medium",3,{"v":0.44,"d":"44%"},"high",2,2,"N/A","N/A","N/A",22,"veryHigh",1,1,"N/A","N/A","N/A","N/A","N/A","N/A","N/A","N/A","N/A","N/A",54,"medium",3,3,"high",2,2.5,11,"veryHigh",1,75.5,null,3,2,45,"high",2,{"v":-0.0021,"d":"-0.21%"},"high",2,-34.5,"medium",3,2.3333333333333335,"N/A","N/A","N/A",0,"low",4,{"v":0,"d":"0%"},"low",4,4]
["Lebanon","LB",0.706,"medium",3,"N/A","N/A","N/A","0,0%","low",4,3.5,4,"high",2,{"v":1E-3,"d":"0.1%"},"low",4,3,108,"medium",3,{"v":1E-3,"d":"0.1%"},"low",4,3.5,"Yes","medium",3,"N/A","N/A","N/A","N/A","N/A","N/A","N/A","N/A","N/A",3,"N/A","N/A","N/A",145,"low",4,4,0.39,"high",2,"FullyMeets","low",4,{"v":868919,"d":"868,919"},"veryHigh",1,2.3333333333333335,31,"high",2,"N/A","N/A","N/A",2,29,"high",2,91.3,null,1,1.5,44,"high",2,{"v":4.3E-3,"d":"0.43%"},"low",4,0.6,"low",4,3.3333333333333335,"N/A","N/A","N/A",4,"veryHigh",1,{"v":0.72,"d":"72%"},"high",2,1.5]
["Liechtenstein","LI",0.935,"low",4,"N/A","N/A","N/A","N/A","N/A","N/A",{"v":4,"d":"4.0"},"N/A","N/A","N/A","N/A","N/A","N/A","N/A","N/A","N/A","N/A","N/A","N/A","N/A","N/A","N/A","N/A","N/A","N/A","N/A","N/A","N/A","N/A","N/A","N/A","N/A","N/A","N/A","N/A","N/A","N/A","N/A","N/A","N/A","N/A","N/A","N/A","N/A","N/A","N/A","N/A",155,"low",4,4,"N/A","N/A","N/A","N/A","N/A","N/A","N/A",57,"low",4,"N/A",null,"N/A",4,"N/A","N/A","N/A","N/A","N/A","N/A","N/A","N/A","N/A","N/A","N/A","N/A","N/A",0,"low",4,"N/A","N/A","N/A",4]
["Lithuania","LT",0.875,"low",4,"N/A","N/A","N/A","0,7%","low",4,{"v":4,"d":"4.0"},2,"low",4,"N/A","N/A","N/A",4,30,"low",4,"N/A","N/A","N/A",4,"N/A","N/A","N/A","N/A","N/A","N/A","N/A","N/A","N/A","N/A","N/A","N/A","N/A","N/A","N/A","N/A",59,"high",2,2,0.75,"medium",3,"FullyMeets","low",4,{"v":4722,"d":"4,722"},"low",4,3.6666666666666665,"N/A","N/A","N/A","N/A","N/A","N/A","N/A",51,"medium",3,38.6,null,4,3.5,130,"low",4,{"v":1.4E-3,"d":"0.14%"},"low",4,3.1,"low",4,4,3,"low",4,1,"medium",3,{"v":0,"d":"0%"},"low",4,3.6666666666666665]
["Luxembourg","LU",0.93,"low",4,"N/A","N/A","N/A","0,1%","low",4,{"v":4,"d":"4.0"},"N/A","N/A","N/A","N/A","N/A","N/A","N/A",9,"low",4,"N/A","N/A","N/A",4,"N/A","N/A","N/A","N/A","N/A","N/A","N/A","N/A","N/A","N/A","N/A","N/A","N/A","N/A","N/A","N/A",154,"low",4,4,0.71,"medium",3,"FullyMeets","low",4,{"v":8057,"d":"8,057"},"medium",3,3.3333333333333335,"N/A","N/A","N/A","N/A","N/A","N/A",{"$f":"IFERROR(AVERAGE(BG67,BJ67),\"N/A\")","v":"N/A"},59,"low",4,20,null,4,4,74,"medium",3,{"v":0,"d":"0%"},"low",4,0,"low",4,3.6666666666666665,4,"low",4,2,"medium",3,{"v":0,"d":"0%"},"low",4,3.6666666666666665]
["Madagascar","MG",0.501,"veryHigh",1,{"v":0.455,"d":"45.5%"},"high",2,"92,4%","veryHigh",1,{"v":1.3333333333333333,"d":"1.3"},3,"medium",3,{"v":0.761,"d":"76.1%"},"veryHigh",1,2,143,"high",2,{"v":0.752,"d":"75.2%"},"veryHigh",1,{"$f":"IFERROR(AVERAGE(V68,Y68),\"N/A\")","v":1.5},{"v":0.432,"d":"43%"},"veryHigh",1,{"v":0.37,"d":"37%"},"veryHigh",1,{"v":0.5,"d":"50%"},"veryHigh",1,{"v":0.19,"d":"19%"},"veryHigh",1,{"$f":"IFERROR(AVERAGE(AC68,AF68,AI68,AL68),\"N/A\")","v":1},"N/A","N/A","N/A",34,"veryHigh",1,{"$f":"IFERROR(AVERAGE(AP68,AS68),\"N/A\")","v":1},0.62,"medium",3,"N/A","N/A","N/A",297,"low",4,{"$f":"IFERROR(AVERAGE(AW68,AZ68,BC68),\"N/A\")","v":3.5},86,"low",4,3,"high",2,3,34,"high",2,80.4,null,2,{"$f":"IFERROR(AVERAGE(BN68,BQ68),\"N/A\")","v":2},29,"high",2,{"v":-0.0011,"d":"-0.11%"},"medium",3,-13.2,"medium",3,{"$f":"IFERROR(AVERAGE(BU68,BX68,CA68),\"N/A\")","v":2.6666666666666665},30,"veryHigh",1,0,"low",4,{"v":0.09,"d":"9%"},"low",4,{"$f":"IFERROR(AVERAGE(CE68,CH68,CK68),\"N/A\")","v":3}]
["Malawi","MW",0.512,"veryHigh",1,{"v":0.198,"d":"19.8%"},"medium",3,"89,1%","veryHigh",1,{"$f":"IFERROR(AVERAGE(E69,H69,K69),\"N/A\")","v":{"v":1.6666666666666667,"d":"1.7"}},2,"low",4,{"v":0.65,"d":"65.0%"},"veryHigh",1,{"$f":"IFERROR(AVERAGE(O69,R69),\"N/A\")","v":2.5},142,"high",2,{"v":0.677,"d":"67.7%"},"veryHigh",1,1.5,{"v":0.229,"d":"23%"},"high",2,{"v":0.14,"d":"14%"},"medium",3,{"v":0.43,"d":"43%"},"veryHigh",1,{"v":0.16,"d":"16%"},"veryHigh",1,1.75,"NotIdentifiedinAgriculture","medium",3,35,"veryHigh",1,2,0.56,"medium",3,"FullyMeets","low",4,{"v":52673,"d":"52,673"},"medium",3,3.3333333333333335,94,"low",4,2.5,"medium",3,3.5,37,"medium",3,83,null,2,2.5,5,"veryHigh",1,{"v":-0.017,"d":"-1.70%"},"veryHigh",1,-42,"medium",3,1.6666666666666667,17,"medium",3,0,"low",4,{"v":0.28,"d":"28%"},"medium",3,3.3333333333333335]
["Malaysia","MY",0.803,"low",4,"N/A","N/A","N/A","0,4%","low",4,{"v":4,"d":"4.0"},5,"veryHigh",1,{"v":0,"d":"0.0%"},"low",4,2.5,57,"low",4,{"v":0,"d":"0.0%"},"low",4,4,"N/A","N/A","N/A","N/A","N/A","N/A","N/A","N/A","N/A","N/A","N/A","N/A","N/A","N/A","N/A","N/A",42,"high",2,2,0.54,"medium",3,"N/A","N/A","N/A",{"v":348878,"d":"348,878"},"high",2,2.5,"N/A","N/A","N/A",3.5,"veryHigh",1,1,30,"high",2,56.4,null,3,2.5,99,"medium",3,{"v":0.0009,"d":"0.09%"},"low",4,16.6,"low",4,3.6666666666666665,16,"medium",3,0,"low",4,{"v":0.2,"d":"20%"},"medium",3,3.3333333333333335]
["Mali","ML",0.428,"veryHigh",1,{"v":0.447,"d":"44.7%"},"high",2,"47,5%","veryHigh",1,{"v":1.3333333333333333,"d":"1.3"},4,"high",2,{"v":0.4433,"d":"44.3%"},"veryHigh",1,1.5,155,"veryHigh",1,{"v":0.451,"d":"45.1%"},"veryHigh",1,1,{"v":0.492,"d":"49%"},"veryHigh",1,{"v":0.13,"d":"13%"},"medium",3,{"v":0.36,"d":"36%"},"veryHigh",1,{"v":0.22,"d":"22%"},"veryHigh",1,1.5,"Yes","veryHigh",1,95,"medium",3,2,0.57,"medium",3,"N/A","N/A","N/A",{"v":400948,"d":"400,948"},"high",2,2.5,17,"veryHigh",1,"N/A","N/A","N/A",1,24,"high",2,98.6,null,1,1.5,90,"medium",3,{"v":0,"d":"0%"},"low",4,0,"low",4,3.6666666666666665,3,"low",4,0,"low",4,{"v":0.25,"d":"25%"},"medium",3,3.6666666666666665]
["Malta","MT",0.918,"low",4,"N/A","N/A","N/A","0,4%","low",4,{"v":4,"d":"4.0"},"N/A","N/A","N/A","N/A","N/A","N/A","N/A",42,"low",4,"N/A","N/A","N/A",4,"N/A","N/A","N/A","N/A","N/A","N/A","N/A","N/A","N/A","N/A","N/A","N/A","N/A","N/A","N/A","N/A","N/A","N/A","N/A","N/A",0.67,"medium",3,"FullyMeets","low",4,{"v":13020,"d":"13,020"},"medium",3,3.3333333333333335,"N/A","N/A","N/A","N/A","N/A","N/A","N/A",54,"low",4,34.7,null,4,4,68,"medium",3,{"v":0.0277,"d":"2.77%"},"low",4,"N/A","N/A","N/A",3.5,"N/A","N/A","N/A","N/A","N/A","N/A",{"v":0.68,"d":"68%"},"high",2,2]
["Mauritius","MU",0.802,"low",4,"N/A","N/A","N/A","1,8%","low",4,{"v":4,"d":"4.0"},3,"medium",3,{"v":0.0005,"d":"0.1%"},"low",4,3.5,82,"medium",3,{"v":0,"d":"0.0%"},"low",4,3.5,"Yes","medium",3,"N/A","N/A","N/A","N/A","N/A","N/A","N/A","N/A","N/A",3,"N/A","N/A","N/A",161,"low",4,4,0.57,"medium",3,"Meets","medium",3,10,"low",4,3.3333333333333335,"N/A","N/A","N/A","N/A","N/A","N/A","N/A",50,"medium",3,38.1,null,4,3.5,125,"low",4,{"v":1E-3,"d":"0.1%"},"low",4,"N/A","N/A","N/A",4,27,"high",2,"N/A",null,null,"N/A",null,null,2]
["Mexico","MX",0.758,"medium",3,{"v":0.01,"d":"1.0%"},"low",4,"9,9%","medium",3,{"v":3.3333333333333335,"d":"3.3"},3,"medium",3,{"v":0.0113,"d":"1.1%"},"low",4,3.5,75,"medium",3,{"v":0.011,"d":"1.1%"},"low",4,3.5,{"v":0.04,"d":"4%"},"low",4,{"v":0.06,"d":"6%"},"medium",3,{"v":0.97,"d":"97%"},"low",4,{"v":0.82,"d":"82%"},"low",4,3.75,"N/A","N/A","N/A",114,"medium",3,3,0.36,"high",2,"FullyMeets","low",4,{"v":459008,"d":"459,008"},"high",2,2.6666666666666665,72,"low",4,2.1,"medium",3,3.5,33,"high",2,70.3,null,3,2.5,54,"medium",3,{"v":-1.9E-3,"d":"-0.19%"},"high",2,-125.1,"high",2,2.3333333333333335,47,"veryHigh",1,3,null,2,{"v":0.52,"d":"52%"},null,2,1.6666666666666667]
["Monaco","MC","N/A","N/A","N/A","N/A","N/A","N/A","N/A","N/A","N/A","N/A","N/A","N/A","N/A","N/A","N/A","N/A","N/A","N/A","N/A","N/A","N/A","N/A","N/A","N/A","N/A","N/A","N/A","N/A","N/A","N/A","N/A","N/A","N/A","N/A","N/A","N/A","N/A","N/A","N/A","N/A","N/A","N/A","N/A","N/A","N/A","N/A","N/A","N/A","N/A","N/A",17,"low",4,4,"N/A","N/A","N/A","N/A","N/A","N/A","N/A",57,"low",4,"N/A",null,"N/A",4,"N/A","N/A","N/A",{"v":0,"d":"0%"},"low",4,0,"low",4,4,"N/A","N/A","N/A","N/A",null,"N/A","N/A",null,"N/A","N/A"]
["Morocco","MA",0.683,"high",2,{"v":0.014,"d":"1.4%"},"low",4,"9,8%","medium",3,{"v":3,"d":"3.0"},4,"high",2,{"v":0.0035,"d":"0.4%"},"low",4,3,104,"medium",3,{"v":0.003,"d":"0.3%"},"low",4,3.5,{"v":0.045,"d":"5%"},"low",4,"N/A","N/A","N/A","N/A","N/A","N/A","N/A","N/A","N/A",4,"N/A","N/A","N/A",121,"medium",3,3,0.61,"medium",3,"N/A","N/A","N/A",{"v":18228,"d":"18,228"},"medium",3,3,68,"medium",3,"N/A","N/A","N/A",3,24,"high",2,70.1,null,3,2.5,90,"medium",3,{"v":0.0012,"d":"0.12%"},"low",4,6.8,"low",4,3.6666666666666665,19,"medium",3,3,null,2,{"v":0.56,"d":"56%"},null,2,2.3333333333333335]
["Mozambique","MZ",0.446,"veryHigh",1,"N/A","N/A","N/A","83,1%","veryHigh",1,{"v":1,"d":"1.0"},4,"high",2,{"v":0.5127,"d":"51.3%"},"veryHigh",1,1.5,136,"high",2,{"v":0.621,"d":"62.1%"},"veryHigh",1,1.5,{"v":0.225,"d":"23%"},"high",2,"N/A","N/A","N/A",{"v":0.25,"d":"25%"},"veryHigh",1,{"v":0.05,"d":"5%"},"veryHigh",1,1.3333333333333333,"N/A","N/A","N/A",67,"high",2,2,0.55,"medium",3,"Meets","medium",3,{"v":774141,"d":"774,141"},"veryHigh",1,2.3333333333333335,22,"high",2,1.7,"low",4,3,29,"high",2,94.3,null,1,1.5,1,"veryHigh",1,{"v":-0.0059,"d":"-0.59%"},"veryHigh",1,-222.8,"high",2,1.3333333333333333,"N/A","N/A","N/A",0,null,4,{"v":0.06,"d":"6%"},null,4,4]
["Myanmar","MM",0.585,"high",2,{"v":0.138,"d":"13.8%"},"medium",3,"19,6%","high",2,{"v":2.3333333333333335,"d":"2.3"},5,"veryHigh",1,{"v":0.0229,"d":"2.3%"},"low",4,2.5,125,"high",2,{"v":0.011,"d":"1.1%"},"low",4,3,{"v":0.004,"d":"0%"},"low",4,{"v":0.1,"d":"10%"},"medium",3,{"v":0.81,"d":"81%"},"medium",3,{"v":0.33,"d":"33%"},"high",2,3,"Yes","veryHigh",1,18,"veryHigh",1,1,0.4,"high",2,"PartiallyMeets","high",2,{"v":1272011,"d":"1,272,011"},"veryHigh",1,1.6666666666666667,10,"veryHigh",1,4,"veryHigh",1,1,9,"veryHigh",1,100,null,1,1,21,"high",2,{"v":-0.0096,"d":"-0.96%"},"veryHigh",1,-289.7,"high",2,1.6666666666666667,23,"high",2,0,null,4,{"v":0.03,"d":"3%"},null,4,3.3333333333333335]
["Netherlands","NL",0.941,"low",4,"N/A","N/A","N/A","0,1%","low",4,{"v":4,"d":"4.0"},2,"low",4,"N/A","N/A","N/A",4,5,"low",4,"N/A","N/A","N/A",4,"N/A","N/A","N/A","N/A","N/A","N/A","N/A","N/A","N/A","N/A","N/A","N/A","N/A","N/A","N/A","N/A",143,"low",4,4,0.81,"low",4,"N/A","N/A","N/A",{"v":121218,"d":"121,218"},"high",2,3,"N/A","N/A","N/A","N/A","N/A","N/A","N/A",58,"low",4,22.1,null,4,4,109,"low",4,{"v":-0.0011,"d":"-0.11%"},"medium",3,-0.4,"medium",3,3.3333333333333335,"N/A","N/A","N/A",1,null,3,{"v":0.1,"d":"10%"},null,4,3.5]
["New Caledonia","NC","N/A","N/A","N/A","N/A","N/A","N/A","N/A","N/A","N/A","N/A","N/A","N/A","N/A","N/A","N/A","N/A","N/A","N/A","N/A","N/A","N/A","N/A","N/A","N/A","N/A","N/A","N/A","N/A","N/A","N/A","N/A","N/A","N/A","N/A","N/A","N/A","N/A","N/A","N/A","N/A","N/A","N/A","N/A","N/A","N/A","N/A","N/A","N/A","N/A","N/A","N/A","N/A","N/A","N/A","N/A","N/A","N/A","N/A","N/A","N/A","N/A","N/A","N/A","N/A","N/A",null,"N/A","N/A","N/A","N/A","N/A",{"v":-1E-4,"d":"-0.01%"},"medium",3,-0.1,"medium",3,3,"N/A","N/A","N/A","N/A",null,"N/A",{"v":0.01,"d":"1%"},null,4,4]
["New Zealand","NZ",0.937,"low",4,"N/A","N/A","N/A","N/A","N/A","N/A",{"v":4,"d":"4.0"},2,"low",4,"N/A","N/A","N/A",4,25,"low",4,"N/A","N/A","N/A",4,"N/A","N/A","N/A","N/A","N/A","N/A","N/A","N/A","N/A","N/A","N/A","N/A","N/A","N/A","N/A","N/A",164,"low",4,4,0.74,"medium",3,"FullyMeets","low",4,{"v":2505,"d":"2,505"},"low",4,3.6666666666666665,"N/A","N/A","N/A",2.1,"medium",3,3,59,"low",4,17.5,null,4,4,66,"medium",3,{"v":0.0005,"d":"0.05%"},"low",4,4.4,"low",4,3.6666666666666665,"N/A","N/A","N/A",0,null,4,{"v":0.29,"d":"29%"},null,3,3.5]
["Nicaragua","NI",0.667,"high",2,"N/A","N/A","N/A","14,4%","medium",3,2.5,"N/A","N/A","N/A",{"v":0.025,"d":"2.5%"},"low",4,4,102,"medium",3,{"v":0.015,"d":"1.5%"},"low",4,3.5,{"v":0.477,"d":"48%"},"veryHigh",1,"N/A","N/A","N/A","N/A","N/A","N/A","N/A","N/A","N/A",1,"N/A","N/A","N/A",107,"medium",3,3,0.38,"high",2,"N/A","N/A","N/A",{"v":1027,"d":"1,027"},"low",4,3,37,"high",2,1.4,"low",4,3,18,"high",2,77.1,null,3,2.5,49,"high",2,{"v":-0.0204,"d":"-2.04%"},"veryHigh",1,-78.1,"medium",3,2,"N/A","N/A","N/A",0,null,4,{"v":0.39,"d":"39%"},null,3,3.5]
["North Macedonia","MK",0.77,"medium",3,"N/A","N/A","N/A","7,1%","medium",3,{"v":3,"d":"3.0"},3,"medium",3,{"v":0.01,"d":"1.0%"},"low",4,3.5,37,"low",4,{"v":0.013,"d":"1.3%"},"low",4,4,{"v":0.188,"d":"19%"},"high",2,{"v":0.03,"d":"3%"},"low",4,{"v":0.99,"d":"99%"},"low",4,{"v":0.95,"d":"95%"},"low",4,3.5,"N/A","N/A","N/A",25,"veryHigh",1,1,"N/A","N/A","N/A","N/A","N/A","N/A","N/A","N/A","N/A","N/A",95,"low",4,"N/A","N/A","N/A",4,39,"medium",3,62.6,null,3,3,130,"low",4,"N/A","N/A","N/A","N/A","N/A","N/A",4,"N/A","N/A","N/A",2,null,3,{"v":0,"d":"0%"},null,4,3.5]
["Norway","NO",0.961,"low",4,"N/A","N/A","N/A","0,3%","low",4,{"v":4,"d":"4.0"},1,"low",4,"N/A","N/A","N/A",4,2,"low",4,"N/A","N/A","N/A",4,"N/A","N/A","N/A","N/A","N/A","N/A","N/A","N/A","N/A","N/A","N/A","N/A","N/A","N/A","N/A","N/A",140,"low",4,4,0.82,"low",4,"Meets","medium",3,{"v":51254,"d":"51,254"},"medium",3,3.3333333333333335,"N/A","N/A","N/A",2.6,"medium",3,3,60,"low",4,15.6,null,4,4,106,"low",4,{"v":0.0006,"d":"0.06%"},"low",4,7.8,"low",4,4,"N/A","N/A","N/A",0,null,4,{"v":0.14,"d":"14%"},null,4,4]
["Oman","OM",0.816,"low",4,"N/A","N/A","N/A","N/A","N/A","N/A",{"v":4,"d":"4.0"},4,"high",2,"N/A","N/A","N/A",2,72,"medium",3,{"v":2E-3,"d":"0.2%"},"low",4,3.5,"Yes","medium",3,"N/A","N/A","N/A","N/A","N/A","N/A","N/A","N/A","N/A",3,"N/A","N/A","N/A",128,"medium",3,3,"N/A","N/A","N/A","FullyMeets","low",4,792,"low",4,4,"N/A","N/A","N/A",4,"veryHigh",1,1,18,"high",2,49.5,null,4,3,95,"medium",3,{"v":-0.0181,"d":"-1.81%"},"veryHigh",1,-0.1,"medium",3,2.3333333333333335,7,"low",4,4,null,1,{"v":0.87,"d":"87%"},null,1,2]
["Pakistan","PK",0.544,"veryHigh",1,{"v":0.215,"d":"21.5%"},"medium",3,"39,8%","high",2,{"v":2,"d":"2.0"},5,"veryHigh",1,{"v":0.037,"d":"3.7%"},"medium",3,2,135,"high",2,{"v":0.04,"d":"4.0%"},"medium",3,2.5,{"v":0.098,"d":"10%"},"medium",3,{"v":0.11,"d":"11%"},"medium",3,{"v":0.52,"d":"52%"},"high",2,{"v":0.4,"d":"40%"},"high",2,2.5,"NotIdentifiedinAgriculture","medium",3,8,"veryHigh",1,2,0.37,"high",2,"N/A","N/A","N/A",{"v":2833195,"d":"2,833,195"},"veryHigh",1,1.5,11,"veryHigh",1,3.7,"veryHigh",1,1,22,"high",2,89.7,null,2,2,15,"high",2,{"v":-0.0094,"d":"-0.94%"},"veryHigh",1,-36.8,"medium",3,2,5,"low",4,4,null,1,{"v":0.47,"d":"47%"},null,2,2.3333333333333335]
["Palestine","PS",0.715,"medium",3,{"v":0,"d":"0.0%"},"low",4,"3,1%","medium",3,{"v":3.3333333333333335,"d":"3.3"},5,"veryHigh",1,"N/A","N/A","N/A",1,"N/A","N/A","N/A","N/A","N/A","N/A","N/A","Yes","medium",3,{"v":0.07,"d":"7%"},"medium",3,{"v":1,"d":"100%"},"low",4,{"v":0.84,"d":"84%"},"low",4,3.5,"N/A","N/A","N/A","N/A","N/A","N/A","N/A","N/A","N/A","N/A","RequiresFurtherProgress","veryHigh",1,"N/A","N/A","N/A",1,21,"high",2,"N/A","N/A","N/A",2,19,"high",2,85.6,null,2,2,"N/A","N/A","N/A",{"v":1.9E-3,"d":"0.19%"},"low",4,"N/A","N/A","N/A",4,15,"medium",3,"N/A",null,"N/A","N/A",null,"N/A",3]
["Panama","PA",0.805,"low",4,"N/A","N/A","N/A","3,7%","medium",3,3.5,3,"medium",3,{"v":0.006,"d":"0.6%"},"low",4,3.5,96,"medium",3,{"v":0.003,"d":"0.3%"},"low",4,3.5,{"v":0.045,"d":"5%"},"low",4,{"v":0.02,"d":"2%"},"low",4,{"v":0.88,"d":"88%"},"medium",3,{"v":0.63,"d":"63%"},"medium",3,3.5,"N/A","N/A","N/A",133,"medium",3,3,0.48,"high",2,"FullyMeets","low",4,{"v":156693,"d":"156,693"},"high",2,2.6666666666666665,"N/A","N/A","N/A",1.5,"low",4,4,48,"medium",3,47.5,null,4,3.5,127,"low",4,{"v":-0.0027,"d":"-0.27%"},"high",2,-11.4,"medium",3,3,14,"medium",3,0,null,4,{"v":0,"d":"0%"},null,4,3.6666666666666665]
["Papua New Guinea","PG",0.558,"high",2,{"v":0.258,"d":"25.8%"},"medium",3,"68,0%","veryHigh",1,{"v":2,"d":"2.0"},"N/A","N/A","N/A",{"v":0.24,"d":"24.0%"},"high",2,2,169,"veryHigh",1,{"v":0.236,"d":"23.6%"},"high",2,1.5,"Yes","medium",3,"N/A","N/A","N/A","N/A","N/A","N/A","N/A","N/A","N/A",3,"N/A","N/A","N/A",21,"veryHigh",1,1,"N/A","N/A","N/A","FullyMeets","low",4,{"v":36080,"d":"36,080"},"medium",3,3.5,67,"medium",3,2.1,"medium",3,3,39,"medium",3,79.5,null,3,3,51,"medium",3,{"v":-0.0009,"d":"-0.09%"},"medium",3,-32.3,"medium",3,3,21,"high",2,0,null,4,{"v":0,"d":"0%"},null,4,3.3333333333333335]
["Paraguay","PY",0.717,"medium",3,{"v":0.01,"d":"1.0%"},"low",4,"5,2%","medium",3,{"v":3.3333333333333335,"d":"3.3"},3,"medium",3,{"v":0.003,"d":"0.3%"},"low",4,3.5,111,"medium",3,{"v":0.003,"d":"0.3%"},"low",4,3.5,{"v":0.054,"d":"5%"},"medium",3,{"v":0.18,"d":"18%"},"high",2,{"v":0.91,"d":"91%"},"low",4,{"v":0.66,"d":"66%"},"medium",3,3,"N/A","N/A","N/A",151,"low",4,4,0.46,"high",2,"PartiallyMeets","high",2,{"v":10835,"d":"10,835"},"medium",3,2.3333333333333335,104,"low",4,2,"medium",3,3.5,37,"medium",3,65.4,null,3,3,20,"high",2,{"v":-0.0193,"d":"-1.93%"},"veryHigh",1,-346.8,"high",2,1.6666666666666667,52,"veryHigh",1,0,null,4,{"v":0,"d":"0%"},null,4,3]
["Peru","PE",0.762,"medium",3,{"v":0.011,"d":"1.1%"},"low",4,"17,4%","high",2,{"v":3,"d":"3.0"},4,"high",2,{"v":0.0291,"d":"2.9%"},"low",4,3,90,"medium",3,{"v":0.03,"d":"3.0%"},"medium",3,3,{"v":0.218,"d":"22%"},"high",2,{"v":0.15,"d":"15%"},"high",2,{"v":0.92,"d":"92%"},"low",4,{"v":0.63,"d":"63%"},"medium",3,2.75,"N/A","N/A","N/A",118,"medium",3,3,0.46,"high",2,"FullyMeets","low",4,{"v":1834632,"d":"1,834,632"},"veryHigh",1,2.3333333333333335,101,"low",4,1.6,"low",4,4,42,"medium",3,69.8,null,3,3,46,"high",2,{"v":-2.3E-3,"d":"-0.23%"},"high",2,-171.9,"high",2,2,"N/A","N/A","N/A",2,null,3,{"v":0.57,"d":"57%"},null,2,2.5]
["Philippines","PH",0.699,"high",2,{"v":0.013,"d":"1.3%"},"low",4,"18,3%","high",2,{"v":2.6666666666666665,"d":"2.7"},5,"veryHigh",1,{"v":0.028,"d":"2.8%"},"low",4,2.5,101,"medium",3,{"v":0.016,"d":"1.6%"},"low",4,3.5,{"v":0.02,"d":"2%"},"low",4,"N/A","N/A","N/A",{"v":0.91,"d":"91%"},"low",4,{"v":0.78,"d":"78%"},"medium",3,3.6666666666666665,"N/A","N/A","N/A",30,"veryHigh",1,1,0.42,"high",2,"FullyMeets","low",4,{"v":235552,"d":"235,552"},"high",2,2.6666666666666665,29,"high",2,1.5,"low",4,3,30,"high",2,80.5,null,2,2,17,"high",2,{"v":0.005,"d":"0.5%"},"low",4,34.9,"low",4,3.3333333333333335,38,"veryHigh",1,1,null,3,{"v":0.26,"d":"26%"},null,3,2.3333333333333335]
["Poland","PL",0.876,"low",4,"N/A","N/A","N/A","0,4%","low",4,{"v":4,"d":"4.0"},3,"medium",3,"N/A","N/A","N/A",3,31,"low",4,"N/A","N/A","N/A",4,"N/A","N/A","N/A","N/A","N/A","N/A","N/A","N/A","N/A","N/A","N/A","N/A","N/A","N/A","N/A","N/A",100,"medium",3,3,0.6,"medium",3,"Meets","medium",3,{"v":10085,"d":"10,085"},"medium",3,3,"N/A","N/A","N/A","N/A","N/A","N/A","N/A",47,"medium",3,42.2,null,4,3.5,93,"medium",3,{"v":0.0016,"d":"0.16%"},"low",4,15.4,"low",4,3.6666666666666665,5,"low",4,1,null,3,{"v":0.15,"d":"15%"},null,4,3.6666666666666665]
["Portugal","PT",0.866,"low",4,"N/A","N/A","N/A","0,2%","low",4,{"v":4,"d":"4.0"},2,"low",4,"N/A","N/A","N/A",4,15,"low",4,"N/A","N/A","N/A",4,"N/A","N/A","N/A","N/A","N/A","N/A","N/A","N/A","N/A","N/A","N/A","N/A","N/A","N/A","N/A","N/A",120,"medium",3,3,0.68,"medium",3,"Meets","medium",3,{"v":4872,"d":"4,872"},"low",4,3.3333333333333335,"N/A","N/A","N/A","N/A","N/A","N/A","N/A",56,"low",4,27.5,null,4,4,37,"high",2,{"v":1.8E-3,"d":"0.18%"},"low",4,6,"low",4,3.3333333333333335,32,"veryHigh",1,3,null,2,{"v":0,"d":"0%"},null,4,2.3333333333333335]
["Puerto Rico","PR","N/A","N/A","N/A","N/A","N/A","N/A","N/A","N/A","N/A","N/A","N/A","N/A","N/A","N/A","N/A","N/A","N/A","N/A","N/A","N/A","N/A","N/A","N/A","N/A","N/A","N/A","N/A","N/A","N/A","N/A","N/A","N/A","N/A","N/A","N/A","N/A","N/A","N/A","N/A","N/A","N/A","N/A","N/A","N/A","N/A","N/A","N/A","N/A","N/A","N/A","N/A","N/A","N/A","N/A","N/A","N/A","N/A","N/A","N/A","N/A","N/A","N/A","N/A","N/A","N/A",null,"N/A","N/A",130,"low",4,{"v":1E-3,"d":"0.1%"},"low",4,0.5,"low",4,4,"N/A","N/A","N/A","N/A",null,"N/A",{"v":0.48,"d":"48%"},null,2,2]
["Romania","RO",0.821,"low",4,"N/A","N/A","N/A","4,7%","low",4,{"v":4,"d":"4.0"},4,"high",2,"N/A","N/A","N/A",2,67,"medium",3,"N/A","N/A","N/A",3,"N/A","N/A","N/A","N/A","N/A","N/A","N/A","N/A","N/A","N/A","N/A","N/A","N/A","N/A","N/A","N/A",81,"high",2,2,0.71,"medium",3,"Meets","medium",3,{"v":6201,"d":"6,201"},"medium",3,3,"N/A","N/A","N/A","N/A","N/A","N/A","N/A",48,"medium",3,50.8,null,3,3,123,"low",4,{"v":0.0062,"d":"0.62%"},"low",4,41.4,"low",4,4,2,"low",4,1,null,3,{"v":0.08,"d":"8%"},null,4,3.6666666666666665]
["Rwanda","RW",0.534,"veryHigh",1,{"v":0.222,"d":"22.2%"},"medium",3,"78,0%","veryHigh",1,{"v":1.6666666666666667,"d":"1.7"},3,"medium",3,{"v":0.465,"d":"46.5%"},"veryHigh",1,2,93,"medium",3,{"v":0.451,"d":"45.1%"},"veryHigh",1,2,{"v":0.054,"d":"5%"},"medium",3,{"v":0.19,"d":"19%"},"high",2,{"v":0.51,"d":"51%"},"high",2,{"v":0.23,"d":"23%"},"veryHigh",1,2,"N/A","N/A","N/A",16,"veryHigh",1,1,0.69,"medium",3,"Meets","medium",3,{"v":145474,"d":"145,474"},"high",2,2.6666666666666665,58,"medium",3,2.8,"medium",3,3,14,"veryHigh",1,83.7,null,2,1.5,42,"high",2,{"v":0.0041,"d":"0.41%"},"low",4,1.1,"low",4,3.3333333333333335,12,"medium",3,0,null,4,{"v":0.5,"d":"50%"},null,2,3]
["Saint Lucia","LC",0.715,"medium",3,"N/A","N/A","N/A","11,7%","medium",3,{"v":3,"d":"3.0"},"N/A","N/A","N/A","N/A","N/A","N/A","N/A",91,"medium",3,"N/A","N/A","N/A",3,{"v":0.075,"d":"8%"},"medium",3,{"v":0.03,"d":"3%"},"low",4,{"v":0.99,"d":"99%"},"low",4,{"v":0.92,"d":"92%"},"low",4,3.75,"N/A","N/A","N/A","N/A","N/A","N/A","N/A","N/A","N/A","N/A","N/A","N/A","N/A","N/A","N/A","N/A","N/A","N/A","N/A","N/A","N/A","N/A","N/A","N/A",54,"low",4,"N/A",null,"N/A",4,130,"low",4,{"v":0,"d":"0%"},"low",4,0,"low",4,4,"N/A","N/A","N/A","N/A",null,"N/A","N/A",null,"N/A","N/A"]
["San Marino","SM",0.853,"low",4,"N/A","N/A","N/A","N/A","N/A","N/A",{"v":4,"d":"4.0"},"N/A","N/A","N/A","N/A","N/A","N/A","N/A","N/A","N/A","N/A","N/A","N/A","N/A","N/A","N/A","N/A","N/A","N/A","N/A","N/A","N/A","N/A","N/A","N/A","N/A","N/A","N/A","N/A","N/A","N/A","N/A","N/A","N/A","N/A","N/A","N/A","N/A","N/A","N/A","N/A","N/A","N/A","N/A","N/A","N/A","N/A","N/A","N/A","N/A","N/A","N/A",55,"low",4,"N/A",null,"N/A",4,"N/A","N/A","N/A",{"v":0,"d":"0%"},"low",4,0,"low",4,4,"N/A","N/A","N/A",4,null,1,"N/A",null,"N/A",1]
["Sao Tome & Principe","ST",0.618,"high",2,{"v":0.021,"d":"2.1%"},"low",4,"44,8%","veryHigh",1,{"v":2.3333333333333335,"d":"2.3"},"N/A","N/A","N/A","N/A","N/A","N/A","N/A",124,"high",2,"N/A","N/A","N/A",2,{"v":0.142,"d":"14%"},"medium",3,{"v":0.11,"d":"11%"},"medium",3,{"v":0.88,"d":"88%"},"medium",3,{"v":0.58,"d":"58%"},"high",2,2.75,"N/A","N/A","N/A","N/A","N/A","N/A","N/A","N/A","N/A","N/A","Meets","medium",3,"N/A","N/A","N/A",3,114,"low",4,"N/A","N/A","N/A",4,49,"medium",3,70.4,null,3,3,"N/A","N/A","N/A",{"v":-0.0112,"d":"-1.12%"},"veryHigh",1,-0.6,"medium",3,2,"N/A","N/A","N/A","N/A",null,"N/A","N/A",null,"N/A","N/A"]
["Saudi Arabia","SA",0.875,"low",4,"N/A","N/A","N/A","N/A","N/A","N/A",{"v":4,"d":"4.0"},4,"high",2,"N/A","N/A","N/A",2,59,"low",4,"N/A","N/A","N/A",4,"N/A","N/A","N/A","N/A","N/A","N/A","N/A","N/A","N/A","N/A","N/A","N/A","N/A","N/A","N/A","N/A",136,"medium",3,3,"N/A","N/A","N/A","FullyMeets","low",4,{"v":82782,"d":"82,782"},"high",2,3,89,"low",4,4,"veryHigh",1,2.5,6,"veryHigh",1,67.5,null,3,2,75,"medium",3,{"v":0,"d":"0%"},"low",4,0,"low",4,3.6666666666666665,4,"low",4,4,null,1,{"v":0.63,"d":"63%"},null,2,2.3333333333333335]
["Senegal","SN",0.511,"veryHigh",1,{"v":0.277,"d":"27.7%"},"medium",3,"37,4%","high",2,{"v":2,"d":"2.0"},4,"high",2,{"v":0.301,"d":"30.1%"},"high",2,2,131,"high",2,{"v":0.318,"d":"31.8%"},"high",2,2,{"v":0.223,"d":"22%"},"high",2,{"v":0.23,"d":"23%"},"high",2,{"v":0.34,"d":"34%"},"veryHigh",1,{"v":0.13,"d":"13%"},"veryHigh",1,1.5,"N/A","N/A","N/A",109,"medium",3,3,0.66,"medium",3,"FullyMeets","low",4,{"v":16524,"d":"16,524"},"medium",3,3.3333333333333335,93,"low",4,"N/A","N/A","N/A",4,39,"medium",3,72.1,null,3,3,70,"medium",3,{"v":-0.0048,"d":"-0.48%"},"high",2,-40,"medium",3,2.6666666666666665,6,"low",4,1,null,3,{"v":0.62,"d":"62%"},null,2,3]
["Serbia","RS",0.802,"low",4,{"v":0,"d":"0.0%"},"low",4,"4,0%","medium",3,{"v":3.6666666666666665,"d":"3.7"},4,"high",2,{"v":1E-3,"d":"0.1%"},"low",4,3,36,"low",4,{"v":0,"d":"0.0%"},"low",4,4,{"v":0.188,"d":"19%"},"high",2,{"v":0.1,"d":"10%"},"medium",3,{"v":1,"d":"100%"},"low",4,{"v":0.99,"d":"99%"},"low",4,3.25,"N/A","N/A","N/A",101,"medium",3,3,0.63,"medium",3,"Meets","medium",3,{"v":244678,"d":"244,678"},"high",2,2.6666666666666665,75,"low",4,"N/A","N/A","N/A",4,41,"medium",3,67.8,null,3,3,105,"low",4,{"v":0.0004,"d":"0.04%"},"low",4,1,"low",4,4,6,"low",4,0,null,4,{"v":0.1,"d":"10%"},null,4,4]
["Sierra Leone","SL",0.477,"veryHigh",1,{"v":0.28,"d":"28.0%"},"medium",3,"64,3%","veryHigh",1,{"v":1.6666666666666667,"d":"1.7"},4,"high",2,{"v":0.434,"d":"43.4%"},"veryHigh",1,1.5,162,"veryHigh",1,{"v":0.449,"d":"44.9%"},"veryHigh",1,1,{"v":0.351,"d":"35%"},"veryHigh",1,{"v":0.25,"d":"25%"},"veryHigh",1,{"v":0.45,"d":"45%"},"veryHigh",1,{"v":0.2,"d":"20%"},"veryHigh",1,1,"NotIdentifiedinAgriculture","medium",3,70,"high",2,2.5,0.49,"high",2,"Meets","medium",3,345,"low",4,3,87,"low",4,2.2,"medium",3,3.5,37,"medium",3,82.4,null,2,2.5,86,"medium",3,{"v":-0.0075,"d":"-0.75%"},"veryHigh",1,-19.7,"medium",3,2.3333333333333335,18,"medium",3,0,null,4,{"v":0,"d":"0%"},null,4,3.6666666666666665]
["Singapore","SG",0.939,"low",4,"N/A","N/A","N/A","N/A","N/A","N/A",{"v":4,"d":"4.0"},2,"low",4,"N/A","N/A","N/A",4,7,"low",4,"N/A","N/A","N/A",4,"N/A","N/A","N/A","N/A","N/A","N/A","N/A","N/A","N/A","N/A","N/A","N/A","N/A","N/A","N/A","N/A",97,"medium",3,3,0.83,"low",4,"N/A","N/A","N/A",{"v":1109,"d":"1,109"},"low",4,4,"N/A","N/A","N/A",4,"veryHigh",1,1,28,"high",2,25.8,null,4,3,130,"low",4,{"v":-0.013,"d":"-1.30%"},"veryHigh",1,-0.2,"medium",3,2.6666666666666665,"N/A","N/A","N/A","N/A",null,"N/A",{"v":1,"d":"100%"},null,1,1]
["Slovakia","SK",0.848,"low",4,"N/A","N/A","N/A","0,5%","low",4,{"v":4,"d":"4.0"},2,"low",4,"N/A","N/A","N/A",4,45,"low",4,"N/A","N/A","N/A",4,"N/A","N/A","N/A","N/A","N/A","N/A","N/A","N/A","N/A","N/A","N/A","N/A","N/A","N/A","N/A","N/A",105,"medium",3,3,0.63,"medium",3,"FullyMeets","low",4,{"v":4024,"d":"4,024"},"low",4,3.6666666666666665,"N/A","N/A","N/A","N/A","N/A","N/A","N/A",53,"low",4,37.1,null,4,4,87,"medium",3,{"v":0.0004,"d":"0.04%"},"low",4,0.8,"low",4,3.6666666666666665,4,"low",4,0,null,4,{"v":0,"d":"0%"},null,4,4]
["Slovenia","SI",0.918,"low",4,"N/A","N/A","N/A","0,0%","low",4,{"v":4,"d":"4.0"},"N/A","N/A","N/A","N/A","N/A","N/A","N/A",18,"low",4,"N/A","N/A","N/A",4,"N/A","N/A","N/A","N/A","N/A","N/A","N/A","N/A","N/A","N/A","N/A","N/A","N/A","N/A","N/A","N/A",127,"medium",3,3,0.71,"medium",3,"Meets","medium",3,{"v":1427,"d":"1,427"},"low",4,3.3333333333333335,"N/A","N/A","N/A","N/A","N/A","N/A","N/A",52,"medium",3,27.7,null,4,3.5,103,"low",4,{"v":-0.0007,"d":"-0.07%"},"medium",3,-0.9,"medium",3,3.3333333333333335,5,"low",4,0,null,4,{"v":0,"d":"0%"},null,4,4]
["South Africa","ZA",0.713,"medium",3,{"v":0.009,"d":"0.9%"},"low",4,"40,0%","high",2,{"v":3,"d":"3.0"},3,"medium",3,{"v":0.077,"d":"7.7%"},"medium",3,3,97,"medium",3,{"v":0.076,"d":"7.6%"},"medium",3,3,{"v":0.15,"d":"15%"},"high",2,{"v":0.04,"d":"4%"},"low",4,{"v":0.95,"d":"95%"},"low",4,{"v":0.84,"d":"84%"},"low",4,3.5,"N/A","N/A","N/A",110,"medium",3,3,0.52,"medium",3,"N/A","N/A","N/A",{"v":242923,"d":"242,923"},"high",2,2.5,"N/A","N/A","N/A",1.8,"low",4,4,46,"medium",3,72,null,3,3,24,"high",2,{"v":-0.0021,"d":"-0.21%"},"high",2,-36.4,"medium",3,2.3333333333333335,78,"veryHigh",1,2,null,3,{"v":0.49,"d":"49%"},null,2,2]
["South Korea","KR",0.925,"low",4,"N/A","N/A","N/A","1,0%","low",4,{"v":4,"d":"4.0"},5,"veryHigh",1,{"v":0,"d":"0.0%"},"low",4,2.5,15,"low",4,{"v":0,"d":"0.0%"},"low",4,4,"N/A","N/A","N/A","N/A","N/A","N/A","N/A","N/A","N/A","N/A","N/A","N/A","N/A","N/A","N/A","N/A",137,"low",4,4,0.72,"medium",3,"N/A","N/A","N/A",{"v":15907,"d":"15,907"},"medium",3,3,"N/A","N/A","N/A","N/A","N/A","N/A","N/A",50,"medium",3,32.7,null,4,3.5,60,"medium",3,{"v":-0.0016,"d":"-0.16%"},"high",2,-10,"medium",3,2.6666666666666665,"N/A","N/A","N/A",2,null,3,{"v":0.47,"d":"47%"},null,2,2.5]
["Spain","ES",0.905,"low",4,"N/A","N/A","N/A","1,0%","low",4,{"v":4,"d":"4.0"},2,"low",4,"N/A","N/A","N/A",4,14,"low",4,"N/A","N/A","N/A",4,"N/A","N/A","N/A","N/A","N/A","N/A","N/A","N/A","N/A","N/A","N/A","N/A","N/A","N/A","N/A","N/A",124,"medium",3,3,0.73,"medium",3,"FullyMeets","low",4,{"v":238773,"d":"238,773"},"high",2,3,"N/A","N/A","N/A","N/A","N/A","N/A","N/A",53,"low",4,44.4,null,4,4,32,"high",2,{"v":1E-4,"d":"0.01%"},"low",4,2.7,"low",4,3.3333333333333335,18,"medium",3,3,null,2,{"v":0.48,"d":"48%"},null,2,2.3333333333333335]
["Sri Lanka","LK",0.782,"medium",3,{"v":0.003,"d":"0.3%"},"low",4,"13,8%","medium",3,{"v":3.3333333333333335,"d":"3.3"},4,"high",2,{"v":2.3E-3,"d":"0.2%"},"low",4,3,92,"medium",3,{"v":2E-3,"d":"0.2%"},"low",4,3.5,{"v":0.008,"d":"1%"},"low",4,{"v":0.01,"d":"1%"},"low",4,{"v":0.99,"d":"99%"},"low",4,{"v":0.95,"d":"95%"},"low",4,4,"N/A","N/A","N/A",130,"medium",3,3,0.55,"medium",3,"N/A","N/A","N/A",{"v":9910,"d":"9,910"},"medium",3,3,39,"high",2,4,"veryHigh",1,1.5,32,"high",2,79.3,null,3,2.5,30,"high",2,{"v":0.0004,"d":"0.04%"},"low",4,0.9,"low",4,3.3333333333333335,36,"veryHigh",1,1,null,3,{"v":0.18,"d":"18%"},null,3,2.3333333333333335]
["Sweden","SE",0.947,"low",4,"N/A","N/A","N/A","0,4%","low",4,{"v":4,"d":"4.0"},1,"low",4,"N/A","N/A","N/A",4,4,"low",4,"N/A","N/A","N/A",4,"N/A","N/A","N/A","N/A","N/A","N/A","N/A","N/A","N/A","N/A","N/A","N/A","N/A","N/A","N/A","N/A",152,"low",4,4,0.74,"medium",3,"Meets","medium",3,{"v":301741,"d":"301,741"},"high",2,2.6666666666666665,"N/A","N/A","N/A",3.3,"high",2,2,60,"low",4,20.9,null,4,4,118,"low",4,{"v":-0.0003,"d":"-0.03%"},"medium",3,-9.3,"medium",3,3.3333333333333335,"N/A","N/A","N/A",0,null,4,{"v":0.13,"d":"13%"},null,4,4]
["Switzerland","CH",0.962,"low",4,"N/A","N/A","N/A","0,0%","low",4,{"v":4,"d":"4.0"},2,"low",4,"N/A","N/A","N/A",4,3,"low",4,"N/A","N/A","N/A",4,"N/A","N/A","N/A","N/A","N/A","N/A","N/A","N/A","N/A","N/A","N/A","N/A","N/A","N/A","N/A","N/A",146,"low",4,4,"N/A","N/A","N/A","FullyMeets","low",4,{"v":126776,"d":"126,776"},"high",2,3,"N/A","N/A","N/A","N/A","N/A","N/A","N/A",57,"low",4,18.9,null,4,4,96,"medium",3,{"v":2.8E-3,"d":"0.28%"},"low",4,3.4,"low",4,3.6666666666666665,"N/A","N/A","N/A",0,null,4,{"v":0,"d":"0%"},null,4,4]
["Taiwan","TW","N/A","N/A","N/A","N/A","N/A","N/A","N/A","N/A","N/A","N/A",2,"low",4,{"v":0.0004,"d":"0.0%"},"low",4,4,"N/A","N/A","N/A",{"v":0.0005,"d":"0.1%"},"low",4,4,"N/A","N/A","N/A","N/A","N/A","N/A","N/A","N/A","N/A","N/A","N/A","N/A","N/A","N/A","N/A","N/A",165,"low",4,4,"N/A","N/A","N/A","N/A","N/A","N/A","N/A","N/A","N/A","N/A","N/A","N/A","N/A","N/A","N/A","N/A","N/A",56,"low",4,"N/A",null,"N/A",4,"N/A","N/A","N/A","N/A","N/A","N/A","N/A","N/A","N/A","N/A","N/A","N/A","N/A","N/A",null,"N/A",{"v":0.37,"d":"37%"},null,3,3]
["Tajikistan","TJ",0.685,"high",2,{"v":0.007,"d":"0.7%"},"low",4,"25,7%","high",2,{"v":2.6666666666666665,"d":"2.7"},"N/A","N/A","N/A",{"v":0.014,"d":"1.4%"},"low",4,4,68,"medium",3,{"v":0.025,"d":"2.5%"},"low",4,3.5,"N/A","N/A","N/A","N/A","N/A","N/A",{"v":0.99,"d":"99%"},"low",4,{"v":0.94,"d":"94%"},"low",4,4,"Yes","veryHigh",1,75,"high",2,1.5,"N/A","N/A","N/A","FullyMeets","low",4,{"v":19880,"d":"19,880"},"medium",3,3.5,44,"high",2,"N/A","N/A","N/A",2,8,"veryHigh",1,75,null,3,2,122,"low",4,{"v":3.3E-3,"d":"0.33%"},"low",4,1.4,"low",4,4,97,"veryHigh",1,2,null,3,{"v":0.19,"d":"19%"},null,3,2.3333333333333335]
["Tanzania","TZ",0.549,"veryHigh",1,{"v":0.275,"d":"27.5%"},"medium",3,"74,3%","veryHigh",1,{"v":1.6666666666666667,"d":"1.7"},4,"high",2,{"v":0.485,"d":"48.5%"},"veryHigh",1,1.5,146,"high",2,{"v":0.512,"d":"51.2%"},"veryHigh",1,1.5,{"v":0.293,"d":"29%"},"veryHigh",1,{"v":0.25,"d":"25%"},"veryHigh",1,{"v":0.74,"d":"74%"},"high",2,{"v":0.17,"d":"17%"},"veryHigh",1,1.25,"N/A","N/A","N/A",51,"high",2,2,0.56,"medium",3,"N/A","N/A","N/A",{"v":246694,"d":"246,694"},"high",2,2.5,80,"low",4,1.1,"low",4,4,22,"high",2,78.2,null,3,2.5,67,"medium",3,{"v":-0.0088,"d":"-0.88%"},"veryHigh",1,-420.5,"high",2,2,"N/A","N/A","N/A",1,null,3,{"v":0.13,"d":"13%"},null,4,3.5]
["Thailand","TH",0.8,"low",4,{"v":0,"d":"0.0%"},"low",4,"0,7%","low",4,{"v":4,"d":"4.0"},5,"veryHigh",1,{"v":1E-3,"d":"0.1%"},"low",4,2.5,79,"medium",3,{"v":0,"d":"0.0%"},"low",4,3.5,{"v":0.13,"d":"13%"},"medium",3,"N/A","N/A","N/A",{"v":0.98,"d":"98%"},"low",4,{"v":0.83,"d":"83%"},"low",4,3.6666666666666665,"NotIdentifiedinAgriculture","medium",3,23,"veryHigh",1,2,0.51,"medium",3,"FullyMeets","low",4,{"v":662912,"d":"662,912"},"veryHigh",1,2.6666666666666665,60,"medium",3,3.4,"high",2,2.5,24,"high",2,70,null,3,2.5,34,"high",2,{"v":-1E-3,"d":"-0.10%"},"medium",3,-20,"medium",3,2.6666666666666665,21,"high",2,2,null,3,{"v":0.08,"d":"8%"},null,4,3]
["Togo","TG",0.539,"veryHigh",1,{"v":0.152,"d":"15.2%"},"medium",3,"56,8%","veryHigh",1,{"v":1.6666666666666667,"d":"1.7"},2,"low",4,{"v":0.345,"d":"34.5%"},"high",2,3,149,"high",2,{"v":0.341,"d":"34.1%"},"high",2,2,{"v":0.296,"d":"30%"},"veryHigh",1,{"v":0.39,"d":"39%"},"veryHigh",1,{"v":0.76,"d":"76%"},"medium",3,{"v":0.36,"d":"36%"},"high",2,1.75,"N/A","N/A","N/A",45,"high",2,2,0.6,"medium",3,"Meets","medium",3,{"v":11493,"d":"11,493"},"medium",3,3,79,"low",4,"N/A","N/A","N/A",4,27,"high",2,83.6,null,2,2,130,"low",4,{"v":-0.0024,"d":"-0.24%"},"high",2,-3,"medium",3,3,12,"medium",3,0,null,4,{"v":0,"d":"0%"},null,4,3.6666666666666665]
["Tunisia","TN",0.731,"medium",3,{"v":1E-3,"d":"0.1%"},"low",4,"2,2%","low",4,{"v":3.6666666666666665,"d":"3.7"},5,"veryHigh",1,{"v":1E-3,"d":"0.1%"},"low",4,2.5,61,"low",4,{"v":1E-3,"d":"0.1%"},"low",4,4,{"v":0.03,"d":"3%"},"low",4,{"v":0.02,"d":"2%"},"low",4,{"v":0.91,"d":"91%"},"low",4,{"v":0.59,"d":"59%"},"high",2,3.5,"N/A","N/A","N/A",126,"medium",3,3,0.59,"medium",3,"RequiresFurtherProgress","veryHigh",1,{"v":9371,"d":"9,371"},"medium",3,2.3333333333333335,88,"low",4,"N/A","N/A","N/A",4,38,"medium",3,68.2,null,3,3,130,"low",4,{"v":0.0022,"d":"0.22%"},"low",4,1.5,"low",4,4,13,"medium",3,3,null,2,{"v":0.54,"d":"54%"},null,2,2.3333333333333335]
["Türkiye","TR",0.838,"low",4,"N/A","N/A","N/A","2,2%","low",4,{"v":4,"d":"4.0"},5,"veryHigh",1,{"v":1E-3,"d":"0.1%"},"low",4,2.5,65,"medium",3,{"v":1E-3,"d":"0.1%"},"low",4,3.5,"N/A","N/A","N/A",{"v":0.04,"d":"4%"},"low",4,{"v":0.96,"d":"96%"},"low",4,{"v":0.91,"d":"91%"},"low",4,4,"N/A","N/A","N/A",48,"high",2,2,0.38,"high",2,"FullyMeets","low",4,{"v":4064787,"d":"4,064,787"},"veryHigh",1,2.3333333333333335,35,"high",2,3.1,"high",2,2,16,"veryHigh",1,78.1,null,3,2,64,"medium",3,{"v":5.3E-3,"d":"0.53%"},"low",4,113.7,"low",4,3.6666666666666665,9,"low",4,3,null,2,{"v":0.27,"d":"27%"},null,3,3]
["Uganda","UG",0.525,"veryHigh",1,{"v":0.257,"d":"25.7%"},"medium",3,"71,9%","veryHigh",1,{"v":1.6666666666666667,"d":"1.7"},4,"high",2,{"v":0.34,"d":"34.0%"},"high",2,2,131,"high",2,{"v":0.364,"d":"36.4%"},"high",2,2,{"v":0.222,"d":"22%"},"high",2,{"v":0.18,"d":"18%"},"high",2,{"v":0.36,"d":"36%"},"veryHigh",1,{"v":0.17,"d":"17%"},"veryHigh",1,1.5,"N/A","N/A","N/A",33,"veryHigh",1,1,0.44,"high",2,"FullyMeets","low",4,{"v":4069197,"d":"4,069,197"},"veryHigh",1,2.3333333333333335,28,"high",2,1.6,"low",4,3,23,"high",2,92.1,null,1,1.5,31,"high",2,{"v":-0.0161,"d":"-1.61%"},"veryHigh",1,-41.3,"medium",3,2,22,"high",2,0,null,4,{"v":0.39,"d":"39%"},null,3,3]
["Ukraine","UA",0.773,"medium",3,{"v":0,"d":"0.0%"},"low",4,"0,2%","low",4,{"v":3.6666666666666665,"d":"3.7"},"N/A","N/A","N/A",{"v":1E-3,"d":"0.1%"},"low",4,4,49,"low",4,{"v":1E-4,"d":"0.0%"},"low",4,4,{"v":0.097,"d":"10%"},"medium",3,{"v":0.03,"d":"3%"},"low",4,{"v":0.99,"d":"99%"},"low",4,{"v":1,"d":"100%"},"low",4,3.75,"N/A","N/A","N/A",49,"high",2,2,0.67,"medium",3,"FullyMeets","low",4,{"v":2319834,"d":"2,319,834"},"veryHigh",1,2.6666666666666665,36,"high",2,"N/A","N/A","N/A",2,35,"medium",3,68.6,null,3,3,85,"medium",3,{"v":1.5E-3,"d":"0.15%"},"low",4,14.2,"low",4,3.6666666666666665,25,"high",2,1,null,3,{"v":0.22,"d":"22%"},null,3,2.6666666666666665]
["United Arab Emirates","AE",0.911,"low",4,"N/A","N/A","N/A","0,0%","low",4,{"v":4,"d":"4.0"},5,"veryHigh",1,"N/A","N/A","N/A",1,11,"low",4,{"v":0,"d":"0.0%"},"low",4,4,"N/A","N/A","N/A","N/A","N/A","N/A","N/A","N/A","N/A","N/A","N/A","N/A","N/A","N/A","N/A","N/A",148,"low",4,4,0.62,"medium",3,"N/A","N/A","N/A",{"v":8197,"d":"8,197"},"medium",3,3,"N/A","N/A","N/A","N/A","N/A","N/A","N/A",12,"veryHigh",1,39.1,null,4,2.5,130,"low",4,{"v":0,"d":"0%"},"low",4,0,"low",4,4,1,"low",4,4,null,1,{"v":0.94,"d":"94%"},null,1,2]
["United Kingdom","GB",0.929,"low",4,"N/A","N/A","N/A","0,5%","low",4,{"v":4,"d":"4.0"},3,"medium",3,"N/A","N/A","N/A",3,27,"low",4,"N/A","N/A","N/A",4,"N/A","N/A","N/A","N/A","N/A","N/A","N/A","N/A","N/A","N/A","N/A","N/A","N/A","N/A","N/A","N/A",132,"medium",3,3,0.69,"medium",3,"FullyMeets","low",4,{"v":247410,"d":"247,410"},"high",2,3,"N/A","N/A","N/A","N/A","N/A","N/A","N/A",54,"low",4,40.6,null,4,4,102,"low",4,{"v":0.0042,"d":"0.42%"},"low",4,13.1,"low",4,4,"N/A","N/A","N/A",1,null,3,{"v":0.46,"d":"46%"},null,2,2.5]
["United States","US",0.921,"low",4,"N/A","N/A","N/A","1,2%","low",4,{"v":4,"d":"4.0"},4,"high",2,"N/A","N/A","N/A",2,44,"low",4,"N/A","N/A","N/A",4,"N/A","N/A","N/A","N/A","N/A","N/A","N/A","N/A","N/A","N/A","N/A","N/A","N/A","N/A","N/A","N/A",158,"low",4,4,0.48,"high",2,"N/A","N/A","N/A",{"v":1642407,"d":"1,642,407"},"veryHigh",1,1.5,"N/A","N/A","N/A",2.4,"medium",3,3,51,"medium",3,46.6,null,4,3.5,"N/A","N/A","N/A",{"v":0.0003,"d":"0.03%"},"low",4,107.5,"low",4,4,"N/A","N/A","N/A",1,null,3,{"v":0.24,"d":"24%"},null,3,3]
["Uruguay","UY",0.809,"low",4,"N/A","N/A","N/A","0,9%","low",4,{"v":4,"d":"4.0"},1,"low",4,{"v":0,"d":"0.0%"},"low",4,4,58,"low",4,{"v":0,"d":"0.0%"},"low",4,4,"N/A","N/A","N/A",{"v":0.04,"d":"4%"},"low",4,{"v":0.97,"d":"97%"},"low",4,{"v":0.52,"d":"52%"},"high",2,3.3333333333333335,"N/A","N/A","N/A",160,"low",4,4,0.74,"medium",3,"FullyMeets","low",4,{"v":33416,"d":"33,416"},"medium",3,3.3333333333333335,"N/A","N/A","N/A",3.9,"veryHigh",1,1,57,"low",4,35.2,null,4,4,90,"medium",3,{"v":0.0161,"d":"1.61%"},"low",4,30,"low",4,3.6666666666666665,26,"high",2,0,null,4,{"v":0,"d":"0%"},null,4,3.3333333333333335]
["Uzbekistan","UZ",0.727,"medium",3,"N/A","N/A","N/A","94,9%","veryHigh",1,{"v":2,"d":"2.0"},"N/A","N/A","N/A",{"v":0.065,"d":"6.5%"},"medium",3,3,56,"low",4,{"v":0.048,"d":"4.8%"},"medium",3,3.5,{"v":0.043,"d":"4%"},"low",4,"N/A","N/A","N/A","N/A","N/A","N/A","N/A","N/A","N/A",4,"N/A","N/A","N/A",69,"high",2,2,0.57,"medium",3,"N/A","N/A","N/A",{"v":51025,"d":"51,025"},"medium",3,3,70,"medium",3,4,"veryHigh",1,2,9,"veryHigh",1,69.6,null,3,2,130,"low",4,{"v":0.0097,"d":"0.97%"},"low",4,34,"low",4,4,29,"high",2,3,null,2,{"v":0.2,"d":"20%"},null,3,2.3333333333333335]
["Vietnam","VN",0.691,"high",2,"N/A","N/A","N/A","5,3%","medium",3,2.5,4,"high",2,{"v":0.012,"d":"1.2%"},"low",4,3,71,"medium",3,{"v":0.017,"d":"1.7%"},"low",4,3.5,"N/A","N/A","N/A",{"v":0.07,"d":"7%"},"medium",3,{"v":0.96,"d":"96%"},"low",4,{"v":0.81,"d":"81%"},"low",4,3.6666666666666665,"NotIdentifiedinAgriculture","medium",3,77,"high",2,2.5,0.58,"medium",3,"Meets","medium",3,{"v":35475,"d":"35,475"},"medium",3,3,76,"low",4,2.8,"medium",3,3.5,16,"veryHigh",1,60.9,null,3,2,38,"high",2,{"v":0.009,"d":"0.9%"},"low",4,125.5,"low",4,3.3333333333333335,31,"veryHigh",1,0,null,4,{"v":0.04,"d":"4%"},null,4,3]
["Zambia","ZM",0.565,"high",2,{"v":0.21,"d":"21.0%"},"medium",3,"77,5%","veryHigh",1,{"v":2,"d":"2.0"},4,"high",2,{"v":0.559,"d":"55.9%"},"veryHigh",1,1.5,138,"high",2,{"v":0.56,"d":"56.0%"},"veryHigh",1,1.5,{"v":0.281,"d":"28%"},"veryHigh",1,{"v":0.23,"d":"23%"},"high",2,{"v":0.61,"d":"61%"},"high",2,{"v":0.34,"d":"34%"},"high",2,1.75,"N/A","N/A","N/A",60,"high",2,2,0.49,"high",2,"FullyMeets","low",4,{"v":104410,"d":"104,410"},"high",2,2.6666666666666665,78,"low",4,2.1,"medium",3,3.5,30,"high",2,83.6,null,2,2,59,"medium",3,{"v":-0.0041,"d":"-0.41%"},"high",2,-188.2,"high",2,2.3333333333333335,7,"low",4,0,null,4,{"v":0.09,"d":"9%"},null,4,4]
["Zimbabwe","ZW",0.593,"high",2,{"v":0.068,"d":"6.8%"},"medium",3,"64,5%","veryHigh",1,{"v":2,"d":"2.0"},5,"veryHigh",1,{"v":0.386,"d":"38.6%"},"high",2,1.5,134,"high",2,{"v":0.367,"d":"36.7%"},"high",2,2,{"v":0.404,"d":"40%"},"veryHigh",1,{"v":0.28,"d":"28%"},"veryHigh",1,{"v":0.86,"d":"86%"},"medium",3,{"v":0.38,"d":"38%"},"high",2,1.75,"N/A","N/A","N/A",47,"high",2,2,0.45,"high",2,"FullyMeets","low",4,{"v":22341,"d":"22,341"},"medium",3,3,27,"high",2,2.7,"medium",3,2.5,17,"high",2,97.8,null,1,1.5,2,"veryHigh",1,{"v":-0.0026,"d":"-0.26%"},"high",2,-46.1,"medium",3,2,36,"veryHigh",1,1,null,3,{"v":0.28,"d":"28%"},null,3,2.3333333333333335]

{"sheet":"FairtradeReport","index":10,"n_rows":2,"n_cols":6,"rows_kept":2,"hidden":true}
["PO","Email","Risks priotisise N1","Risks priotisise N2","Risks priotisise N3","N high risk"]
[1254884,"elianiale7@gmail.com","Force Labour","Child Labur","Climate Change",7]